Workbook

Sheet Tarifa (hidden)
E1: Tűz és elemi károk | F1: Betöréses lopás és rablás | G1: Üzemszünet | H1: Általános felelősség | I1: Munkaadói felelősség | J1: Bérlői felelősség | K1: Termékfelelősség | L1: Szolgáltatói felelősség | M1: Környezetszennyezési | N1: Bérbeadói
S2: Felelősség limitek | Z2: 3 | AA2: díjfiz ütem | AD2: díjfiz mód | AF2: 1
A3: 1 | B3: 631 | C3: Adatfeldolgozás, web-hoszting, világháló-portál szolgáltatás | E3: 3 | F3: 2 | G3: 4 | H3: 2 | I3: 2 | J3: 2 | K3: 2 | L3: 0 | M3: 2 | N3: 3 | O3: 20 | P3: =VLOOKUP(O3,$A$3:$C$246,2) -> 310 | Q3: =VLOOKUP(O3,$A$3:$C$246,3,FALSE) -> Bútorgyártás | R3: 1 | S3: 0 | T3: 0 | U3: 0 | Z3: 1 | AA3: éves | AB3: 0.9 | AC3: 0.1 | AD3: postai utalás | AE3: 1 | AF3: 0 | AM3: lejárat | AN3: 2017-06-30
A4: 2 | B4: 821 | C4: Adminisztratív, kiegészítő szolgáltatás | E4: 4 | F4: 4 | G4: 2 | H4: 3 | I4: 3 | J4: 2 | K4: 0 | L4: 2 | M4: 2 | N4: 3 | O4: 3 | P4: =VLOOKUP(O4,$A$3:$C$246,2) -> 477813 | Q4: =VLOOKUP(O4,$A$3:$C$246,3,FALSE) -> Ajándéktárgy-kiskereskedelem | R4: 2 | S4: 5 millió Ft | T4: 5 millió Ft | U4: 5 millió Ft | Z4: 2 | AA4: féléves | AB4: 0.94 | AC4: 0.06 | AD4: banki átutalás | AE4: 0.97 | AF4: 0.03
A5: 3 | B5: 477813 | C5: Ajándéktárgy-kiskereskedelem | E5: 3 | F5: 2 | G5: 2 | H5: 3 | I5: 2 | J5: 3 | K5: 3 | L5: 0 | M5: 3 | N5: 3 | O5: 39 | P5: =VLOOKUP(O5,$A$3:$C$246,2) -> 182 | Q5: =VLOOKUP(O5,$A$3:$C$246,3,FALSE) -> Egyéb sokszorosítás | R5: 3 | S5: 25 millió Ft | T5: 15 millió Ft | U5: 15 millió Ft | Z5: 3 | AA5: negyedéves | AB5: 0.98 | AC5: 0.02 | AD5: csoportos beszedés | AE5: 0.97 | AF5: 0.03
A6: 4 | B6: 852 | C6: Alapfokú oktatás | E6: 4 | F6: 3 | G6: 4 | H6: 3 | I6: 3 | J6: 3 | K6: 2 | L6: 4 | M6: 3 | N6: 4 | O6: 39 | P6: =VLOOKUP(O6,$A$3:$C$246,2) -> 182 | Q6: =VLOOKUP(O6,$A$3:$C$246,3,FALSE) -> Egyéb sokszorosítás | R6: 4 | S6: 50 millió Ft | T6: 25 millió Ft | Z6: 4 | AA6: havi | AB6: 1 | AC6: 0 | AD6: csoportos beszedés K&H Banknál vezetett bankszámláról | AE6: 0.95 | AF6: 0.05
A7: 5 | B7: 663 | C7: Alapkezelés | E7: 3 | F7: 5 | G7: 2 | H7: 1 | I7: 1 | J7: 1 | K7: 0 | L7: 0 | M7: 2 | N7: 2 | O7: 14 | P7: =VLOOKUP(O7,$A$3:$C$246,2) -> 643 | Q7: =VLOOKUP(O7,$A$3:$C$246,3,FALSE) -> Befektetési alapok és hasonlók | AB7: =VLOOKUP(Z2,Z3:AB6,3,FALSE) -> 0.98 | AC7: =VLOOKUP(Z2,Z3:AC6,4,FALSE) -> 0.02 | AE7: =VLOOKUP(AF2,Z3:AE6,6,FALSE) -> 1 | AF7: =VLOOKUP(AF2,Z3:AF6,7,FALSE) -> 0
A8: 6 | B8: 900 | C8: Alkotó-, művészeti, szórakoztató tevékenység | E8: 3 | F8: 1 | G8: 2 | H8: 2 | I8: 2 | J8: 2 | K8: 0 | L8: 2 | M8: 3 | N8: 3 | R8: Tűz | S8: =VLOOKUP(O3,$A$3:$L$246,5) -> 5 | T8: =VLOOKUP(O4,$A$3:$L$246,5) -> 3 | U8: =VLOOKUP(O5,$A$3:$L$246,5) -> 3 | V8: =VLOOKUP(O6,$A$3:$L$246,5) -> 3 | W8: =VLOOKUP(O7,$A$3:$L$246,5) -> 2 | Z8: =1-((1-AB7)+(1-IF(AB7<1,AE7,1))) -> 0.98 | AA8: =AC7+AF7 -> 0.02 | AC8: =VLOOKUP(Z2,Z3:AB6,2,FALSE) -> negyedéves | AE8: =VLOOKUP(AF2,Z3:AE6,5,FALSE) -> postai utalás
A9: 7 | B9: 750 | C9: Állat-egészségügyi ellátás | E9: 4 | F9: 2 | G9: 3 | H9: 3 | I9: 4 | J9: 3 | K9: 0 | L9: 4 | M9: 4 | N9: 3 | S9: =HLOOKUP(S8,S10:X11,2) -> 2.7 | T9: =HLOOKUP(T8,S10:X11,2) -> 1.95 | U9: =HLOOKUP(U8,$S$10:$X$11,2) -> 1.95 | V9: =HLOOKUP(V8,$S$10:$X$11,2) -> 1.95 | W9: =HLOOKUP(W8,$S$10:$X$11,2) -> 1.8
A10: 8 | B10: 990911 | C10: Állatkozmetika, kutyaiskola | E10: 2 | F10: 2 | G10: 1 | H10: 2 | I10: 3 | J10: 2 | K10: 1 | L10: 3 | M10: 4 | N10: 3 | S10: 1 | T10: 2 | U10: 3 | V10: 4 | W10: 5 | X10: 6
A11: 9 | B11: 014 | C11: Állattenyésztés | E11: 4 | F11: 2 | G11: 3 | H11: 3 | I11: 3 | J11: 2 | K11: 1 | L11: 1 | M11: 2 | N11: 2 | S11: 1.71 | T11: 1.8 | U11: 1.95 | V11: 2.43 | W11: 2.7 | X11: 3.06 | AA11: DES | AB11: ='1.telephely'!C60 -> 1 | AC11: =1-AB11 -> 0 | AK11: lojalitás+DES max. 20% | AN11: =1-AO11 -> 0 | AO11: =AA15*AB11 -> 1 | AP11: =IF(AO11<0.8,"0,8",AO11) -> 1
A12: 10 | B12: 8621 | C12: Általános járóbeteg-ellátás | E12: 4 | F12: 2 | G12: 3 | H12: 3 | I12: 3 | J12: 3 | K12: 0 | L12: 0 | M12: 5 | N12: 3 | AA12: Közp. DES | AB12: ='1.telephely'!C61 -> 1 | AC12: =1-AB12 -> 0 | AK12: volumen+csomag+lojalitás+DES max. 50% | AN12: =1-AO12 -> 0 | AO12: =AP11*AE15*AF31 -> 1 | AP12: =IF(AO12<0.5,"0,5",AO12) -> 1
A13: 11 | B13: 281 | C13: Általános rendeltetésű gép gyártása | E13: 3 | F13: 2 | G13: 3 | H13: 2 | I13: 2 | J13: 3 | K13: 3 | L13: 0 | M13: 4 | N13: 3 | S13: =IF(U109=FALSE,"Bp",IF('1.telephely'!F5<2000,"Bp","Vidék")) -> Bp | T13: =IF(U110=FALSE,"Bp",IF('2.telephely'!F2<2000,"Bp","Vidék")) -> Bp | U13: =IF(U111=FALSE,"Bp",IF('3.telephely'!F2<2000,"Bp","Vidék")) -> Bp | V13: =IF(U112=FALSE,"Bp",IF('4.telephely'!F2<2000,"Bp","Vidék")) -> Bp | W13: =IF(U113=FALSE,"Bp",IF('5.telephely'!F2<2000,"Bp","Vidék")) -> Bp
A14: 12 | B14: 4743 | C14: Audio-, videoberendezés kiskereskedelme | E14: 2 | F14: 2 | G14: 2 | H14: 2 | I14: 2 | J14: 2 | K14: 1 | L14: 0 | M14: 3 | N14: 2 | S14: =IF(S13="Bp",1,Y17) -> 1 | T14: =IF(T13="Bp",1,Y17) -> 1 | U14: =IF(U13="Bp",1,Y17) -> 1 | V14: =IF(V13="Bp",1,Y17) -> 1 | W14: =IF(W13="Bp",1,Y17) -> 1
A15: 13 | B15: 433 | C15: Befejező építés | E15: 2 | F15: 3 | G15: 2 | H15: 5 | I15: 4 | J15: 5 | K15: 5 | L15: 1 | M15: 4 | N15: 3 | S15: =VLOOKUP(O3,$A$3:$L$246,6) -> 2 | T15: =VLOOKUP(O4,$A$3:$L$246,6) -> 2 | U15: =VLOOKUP(O5,$A$3:$L$246,6) -> 1 | V15: =VLOOKUP(O6,$A$3:$L$246,6) -> 1 | W15: =VLOOKUP(O7,$A$3:$L$246,6) -> 2 | AA15: =VLOOKUP(AC15,AA16:AC18,3,FALSE) -> 1 | AB15: lojalitás | AC15: 1 | AD15: =VLOOKUP(AC15,AA16:AD18,4,FALSE) -> Nincs | AE15: =IF(AE16=1,AH16,IF(AE17=1,AH17,IF(AE18=1,AH18))) -> 1 | AF15: csomag | AG15: =1-AE15 -> 0
A16: 14 | B16: 643 | C16: Befektetési alapok és hasonlók | E16: 2 | F16: 2 | G16: 1 | H16: 2 | I16: 2 | J16: 2 | K16: 0 | L16: 0 | M16: 2 | N16: 3 | R16: Betlop | S16: =HLOOKUP(S15,S17:X18,2) -> 3.1 | T16: =HLOOKUP(T15,S17:X18,2) -> 3.1 | U16: =HLOOKUP(U15,$S$17:$X$18,2) -> 2.5 | V16: =HLOOKUP(V15,$S$17:$X$18,2) -> 2.5 | W16: =HLOOKUP(W15,$S$17:$X$18,2) -> 3.1 | Y16: Vidéki eng. | AA16: 1 | AB16: Nincs | AC16: 1 | AD16: Nincs | AE16: =IF(AND($AV$29>=AF16,$AV$29<=AG16),1,0) -> 1 | AF16: 0 | AG16: 3 | AH16: 1 | AI16: Nincs
A17: 15 | B17: 236 | C17: Beton-, gipsz-, cementtermék gyártása | E17: 2 | F17: 1 | G17: 3 | H17: 2 | I17: 3 | J17: 2 | K17: 2 | L17: 0 | M17: 4 | N17: 2 | S17: 1 | T17: 2 | U17: 3 | V17: 4 | W17: 5 | X17: 6 | Y17: 0.8 | AA17: 2 | AB17: K&H Banknál vezetett vállalkozói bankszámlával rendelkezik | AC17: 0.98 | AD17: 0.02 | AE17: =IF(AND($AV$29>=AF17,$AV$29<=AG17),1,0) -> 0 | AF17: 4 | AG17: 5 | AH17: 0.95 | AI17: 0.05
A18: 16 | B18: 662 | C18: Biztosítást, nyugdíjalapot kiegészítő tevékenység | E18: 2 | F18: 2 | G18: 2 | H18: 2 | I18: 2 | J18: 2 | K18: 0 | L18: 0 | M18: 2 | N18: 2 | S18: 2.5 | T18: 3.1 | U18: 4 | V18: 4.2 | W18: 5.2 | X18: 11.2 | AA18: 3 | AB18: K&H Banknál felvett vállalkozói hitellel rendelkezik | AC18: 0.95 | AD18: 0.05 | AE18: =IF(AND($AV$29>=AF18,$AV$29<=AG18),1,0) -> 0 | AF18: 6 | AG18: 20 | AH18: 0.9 | AI18: 0.1
A19: 17 | B19: 431 | C19: Bontás, építési terület előkészítése | E19: 3 | F19: 3 | G19: 3 | H19: 2 | I19: 2 | J19: 0 | K19: 0 | L19: 4 | M19: 4 | N19: 3
A20: 18 | B20: 151 | C20: Bőr, szőrme kikészítése | E20: 3 | F20: 3 | G20: 3 | H20: 2 | I20: 2 | J20: 2 | K20: 2 | L20: 0 | M20: 3 | N20: 2 | AA20: irodai | AB20: 4 | AD20: vakolat | AE20: 0.5 | AG20: vandalizmus | AH20: 9
A21: 19 | B21: 4759 | C21: Bútor, világítási eszköz, egyéb háztartási cikk kiskereskedelme | E21: 4 | F21: 3 | G21: 2 | H21: 3 | I21: 3 | J21: 3 | K21: 2 | L21: 0 | M21: 3 | N21: 3 | T21: =VLOOKUP(O3,$A$3:$N$246,7) -> 5 | U21: =VLOOKUP(O4,$A$3:$L$246,7) -> 2 | V21: =VLOOKUP(O5,$A$3:$L$246,7) -> 3 | W21: =VLOOKUP(O6,$A$3:$L$246,7) -> 3 | X21: =VLOOKUP(O7,$A$3:$L$246,7) -> 1 | AA21: szállítmány | AB21: 50 | AD21: tetőbeázás | AE21: 0.08 | AG21: kül.üveg | AH21: 50
A22: 20 | B22: 310 | C22: Bútorgyártás | E22: 5 | F22: 2 | G22: 5 | H22: 2 | I22: 4 | J22: 2 | K22: 4 | L22: 1 | M22: 3 | N22: 3 | R22: Üzemsz | T22: =HLOOKUP(T21,$S$23:$Y$24,2) -> 1.2 | U22: =HLOOKUP(U21,$S$23:$Y$24,2) -> 0.6 | V22: =HLOOKUP(V21,$S$23:$Y$24,2) -> 0.8 | W22: =HLOOKUP(W21,$S$23:$Y$24,2) -> 0.8 | X22: =HLOOKUP(X21,$S$23:$Y$24,2) -> 0.4
A23: 21 | B23: 477816 | C23: Díszállat- és díszhal-kiskereskedelem | E23: 2 | F23: 1 | G23: 2 | H23: 3 | I23: 2 | J23: 4 | K23: 1 | L23: 0 | M23: 2 | N23: 3 | S23: 0 | T23: 1 | U23: 2 | V23: 3 | W23: 4 | X23: 5 | Y23: 6 | AA23: csomag | AB23: betlop | AC23: irodai | AD23: üzemszü | AE23: száll | AF23: vakolat | AG23: tetőbeázás | AH23: vandalizmus | AI23: kül.üveg | AJ23: áltfel | AK23: munkfel | AL23: termfel | AM23: bérlfel | AN23: szolgfel | AO23: bérbeadói | AP23: környezet | AQ23: szálloda | AR23: gépjármű | AS23: eredetiség | AT23: szolg.tárgy | AU23: tanuló
A24: 22 | B24: 4776 | C24: Dísznövény, vetőmag, műtrágya, hobbiállat-eledel kiskereskedelme | E24: 3 | F24: 2 | G24: 2 | H24: 3 | I24: 2 | J24: 3 | K24: 2 | L24: 0 | M24: 3 | N24: 3 | S24: 0 | T24: 0.4 | U24: 0.6 | V24: 0.8 | W24: 1.05 | X24: 1.2 | Y24: 1.4 | AA24: 1 telephely | AB24: =IF('1.telephely'!$C$26=0,0,1) -> 0 | AC24: =IF('1.telephely'!$C$28=0,0,1) -> 0 | AD24: =IF('1.telephely'!$C$30=0,0,1) -> 0 | AE24: =IF('1.telephely'!$C$32=0,0,1) -> 0 | AF24: =IF('1.telephely'!$C$34=0,0,1) -> 0 | AG24: =IF('1.telephely'!$C$36=0,0,1) -> 0 | AH24: =IF('1.telephely'!$C$38=0,0,1) -> 0 | AI24: =IF('1.telephely'!$C$40=0,0,1) -> 0 | AJ24: =IF('1.telephely'!$C$42=0,0,1) -> 0 | AK24: =IF('1.telephely'!$C$44=0,0,1) -> 0 | AL24: =IF('1.telephely'!$C$45=0,0,1) -> 0 | AM24: =IF('1.telephely'!$C$46=0,0,1) -> 0 | AN24: =IF('1.telephely'!$C$47=0,0,1) -> 0 | AO24: =IF('1.telephely'!$C$52=0,0,1) -> 0 | AP24: =IF('1.telephely'!$C$53=0,0,1) -> 0 | AQ24: =IF('1.telephely'!$C$48=0,0,1) -> 0 | AR24: =IF('1.telephely'!$C$49=0,0,1) -> 0 | AS24: =IF('1.telephely'!$C$50=0,0,1) -> 0 | AT24: =IF('1.telephely'!$C$51=0,0,1) -> 0 | AU24: =IF('1.telephely'!$C$43=0,0,1) -> 0
A25: 23 | B25: 741 | C25: Divat-, formatervezés | E25: 2 | F25: 2 | G25: 1 | H25: 2 | I25: 2 | J25: 2 | K25: 1 | L25: 4 | M25: 3 | N25: 3 | AA25: 2 telephely | AB25: =IF('2.telephely'!$C$23=0,0,1) -> 0 | AC25: =IF('2.telephely'!$C$25=0,0,1) -> 0 | AD25: =IF('2.telephely'!$C$27=0,0,1) -> 0 | AE25: =IF('2.telephely'!$C$29=0,0,1) -> 0 | AF25: =IF('2.telephely'!$C$39=0,0,1) -> 0 | AG25: =IF('2.telephely'!$C$41=0,0,1) -> 0 | AH25: =IF('2.telephely'!$C$43=0,0,1) -> 0 | AI25: =IF('2.telephely'!$C$45=0,0,1) -> 0 | AJ25: =IF('2.telephely'!$C$39=0,0,1) -> 0 | AK25: =IF('2.telephely'!$C$41=0,0,1) -> 0 | AL25: =IF('2.telephely'!$C$42=0,0,1) -> 0 | AM25: =IF('2.telephely'!$C$43=0,0,1) -> 0 | AN25: =IF('2.telephely'!$C$44=0,0,1) -> 0 | AO25: =IF('2.telephely'!$C$49=0,0,1) -> 0 | AP25: =IF('2.telephely'!$C$50=0,0,1) -> 0 | AQ25: =IF('2.telephely'!$C$45=0,0,1) -> 0 | AR25: =IF('2.telephely'!$C$46=0,0,1) -> 0 | AS25: =IF('2.telephely'!$C$47=0,0,1) -> 0 | AT25: =IF('2.telephely'!$C$48=0,0,1) -> 0 | AU25: =IF('2.telephely'!$C$40=0,0,1) -> 0
A26: 24 | B26: 4726 | C26: Dohányáru kiskereskedelem | E26: 4 | F26: 6 | G26: 2 | H26: 2 | I26: 3 | J26: 2 | K26: 2 | L26: 0 | M26: 2 | N26: 3 | S26: =VLOOKUP(S28,$X$31:$Y$34,2,FALSE) -> 5 millió Ft | T26: =VLOOKUP(T28,$X$31:$Y$34,2,FALSE) -> 5 millió Ft | U26: =VLOOKUP(U28,$X$31:$Y$34,2,FALSE) -> 5 millió Ft | V26: =VLOOKUP(V28,$X$31:$Y$34,2,FALSE) -> 5 millió Ft | W26: =VLOOKUP(W28,$X$31:$Y$34,2,FALSE) -> 5 millió Ft | AA26: 3 telephely | AB26: =IF('3.telephely'!$C$23=0,0,1) -> 0 | AC26: =IF('3.telephely'!$C$25=0,0,1) -> 0 | AD26: =IF('3.telephely'!$C$27=0,0,1) -> 0 | AE26: =IF('3.telephely'!$C$29=0,0,1) -> 0 | AF26: =IF('3.telephely'!$C$39=0,0,1) -> 0 | AG26: =IF('3.telephely'!$C$41=0,0,1) -> 0 | AH26: =IF('3.telephely'!$C$43=0,0,1) -> 0 | AI26: =IF('3.telephely'!$C$45=0,0,1) -> 0 | AJ26: =IF('3.telephely'!$C$39=0,0,1) -> 0 | AK26: =IF('3.telephely'!$C$41=0,0,1) -> 0 | AL26: =IF('3.telephely'!$C$42=0,0,1) -> 0 | AM26: =IF('3.telephely'!$C$43=0,0,1) -> 0 | AN26: =IF('3.telephely'!$C$44=0,0,1) -> 0 | AO26: =IF('3.telephely'!$C$49=0,0,1) -> 0 | AP26: =IF('3.telephely'!$C$50=0,0,1) -> 0 | AQ26: =IF('3.telephely'!$C$45=0,0,1) -> 0 | AR26: =IF('3.telephely'!$C$46=0,0,1) -> 0 | AS26: =IF('3.telephely'!$C$47=0,0,1) -> 0 | AT26: =IF('3.telephely'!$C$48=0,0,1) -> 0 | AU26: =IF('3.telephely'!$C$40=0,0,1) -> 0
A27: 25 | B27: 282 | C27: Egyéb általános rendeltetésű gép gyártása | E27: 3 | F27: 2 | G27: 3 | H27: 2 | I27: 2 | J27: 3 | K27: 3 | L27: 0 | M27: 4 | N27: 3 | S27: =VLOOKUP(O3,$A$3:$L$246,8) -> 2 | T27: =VLOOKUP(O4,$A$3:$L$246,8) -> 3 | U27: =VLOOKUP(O5,$A$3:$L$246,8) -> 2 | V27: =VLOOKUP(O6,$A$3:$L$246,8) -> 2 | W27: =VLOOKUP(O7,$A$3:$L$246,8) -> 2 | AA27: 4 telephely | AB27: =IF('4.telephely'!$C$23=0,0,1) -> 0 | AC27: =IF('4.telephely'!$C$25=0,0,1) -> 0 | AD27: =IF('4.telephely'!$C$27=0,0,1) -> 0 | AE27: =IF('4.telephely'!$C$29=0,0,1) -> 0 | AF27: =IF('4.telephely'!$C$39=0,0,1) -> 0 | AG27: =IF('4.telephely'!$C$41=0,0,1) -> 0 | AH27: =IF('4.telephely'!$C$43=0,0,1) -> 0 | AI27: =IF('4.telephely'!$C$45=0,0,1) -> 0 | AJ27: =IF('4.telephely'!$C$39=0,0,1) -> 0 | AK27: =IF('4.telephely'!$C$41=0,0,1) -> 0 | AL27: =IF('4.telephely'!$C$42=0,0,1) -> 0 | AM27: =IF('4.telephely'!$C$43=0,0,1) -> 0 | AN27: =IF('4.telephely'!$C$44=0,0,1) -> 0 | AO27: =IF('4.telephely'!$C$49=0,0,1) -> 0 | AP27: =IF('4.telephely'!$C$50=0,0,1) -> 0 | AQ27: =IF('4.telephely'!$C$45=0,0,1) -> 0 | AR27: =IF('4.telephely'!$C$46=0,0,1) -> 0 | AS27: =IF('4.telephely'!$C$47=0,0,1) -> 0 | AT27: =IF('4.telephely'!$C$48=0,0,1) -> 0 | AU27: =IF('4.telephely'!$C$40=0,0,1) -> 0
A28: 26 | B28: 879 | C28: Egyéb bentlakásos ellátás | E28: 2 | F28: 2 | G28: 2 | H28: 4 | I28: 4 | J28: 4 | K28: 0 | L28: 3 | M28: 3 | N28: 4 | S28: 2 | T28: 2 | U28: 2 | V28: 2 | W28: 2 | AA28: 5 telephely | AB28: =IF('5.telephely'!$C$23=0,0,1) -> 0 | AC28: =IF('5.telephely'!$C$25=0,0,1) -> 0 | AD28: =IF('5.telephely'!$C$27=0,0,1) -> 0 | AE28: =IF('5.telephely'!$C$29=0,0,1) -> 0 | AF28: =IF('5.telephely'!$C$39=0,0,1) -> 0 | AG28: =IF('5.telephely'!$C$41=0,0,1) -> 0 | AH28: =IF('5.telephely'!$C$43=0,0,1) -> 0 | AI28: =IF('5.telephely'!$C$45=0,0,1) -> 0 | AJ28: =IF('5.telephely'!$C$39=0,0,1) -> 0 | AK28: =IF('5.telephely'!$C$41=0,0,1) -> 0 | AL28: =IF('5.telephely'!$C$42=0,0,1) -> 0 | AM28: =IF('5.telephely'!$C$43=0,0,1) -> 0 | AN28: =IF('5.telephely'!$C$44=0,0,1) -> 0 | AO28: =IF('5.telephely'!$C$49=0,0,1) -> 0 | AP28: =IF('5.telephely'!$C$50=0,0,1) -> 0 | AQ28: =IF('5.telephely'!$C$45=0,0,1) -> 0 | AR28: =IF('5.telephely'!$C$46=0,0,1) -> 0 | AS28: =IF('5.telephely'!$C$47=0,0,1) -> 0 | AT28: =IF('5.telephely'!$C$48=0,0,1) -> 0 | AU28: =IF('5.telephely'!$C$40=0,0,1) -> 0
A29: 27 | B29: 108 | C29: Egyéb élelmiszer gyártása | E29: 3 | F29: 2 | G29: 3 | H29: 2 | I29: 3 | J29: 2 | K29: 4 | L29: 1 | M29: 3 | N29: 2 | S29: =HLOOKUP(S28,S30:W35,S27+1,FALSE) -> 1067 | T29: =HLOOKUP(T28,S30:W35,T27+1,FALSE) -> 1593 | U29: =HLOOKUP(U28,$S$30:$W$35,U27+1,FALSE) -> 1067 | V29: =HLOOKUP(V28,$S$30:$W$35,V27+1,FALSE) -> 1067 | W29: =HLOOKUP(W28,$S$30:$W$35,W27+1,FALSE) -> 1067 | AA29: össz: | AB29: =IF(AB$24=1,1,IF(AB$25=1,1,IF(AB$26=1,1,IF(AB$27=1,1,IF(AB$28=1,1,0))))) -> 0 | AC29: 0 | AD29: 0 | AE29: 0 | AF29: 0 | AG29: 0 | AH29: 0 | AI29: 0 | AJ29: 0 | AK29: 0 | AL29: 0 | AM29: 0 | AN29: 0 | AO29: 0 | AP29: 0 | AQ29: 0 | AR29: 0 | AS29: 0 | AT29: 0 | AU29: 0 | AV29: =SUM(AB29:AU29) -> 0
A30: 28 | B30: 783 | C30: Egyéb emberierőforrás-ellátás, -gazdálkodás | E30: 2 | F30: 1 | G30: 2 | H30: 2 | I30: 2 | J30: 2 | K30: 0 | L30: 4 | M30: 3 | N30: 3 | S30: Ált fel. | T30: 1 | U30: 2 | V30: 3 | W30: 4
A31: 29 | B31: 259 | C31: Egyéb fémfeldolgozási termék gyártása | E31: 4 | F31: 2 | G31: 2 | H31: 2 | I31: 4 | J31: 2 | K31: 2 | L31: 0 | M31: 3 | N31: 3 | S31: 1 | T31: 0 | U31: 531 | V31: 816 | W31: 1062 | X31: 1 | Y31: 0 | AA31: =IF(AND(('1.telephely'!$B$24+'2.telephely'!$B$21+'3.telephely'!$B$21+'4.telephely'!$B$21+'5.telephely'!$B$21)>=AB31,('1.telephely'!$B$24+'2.telephely'!$B$21+'3.telephely'!$B$21+'4.telephely'!$B$21+'5.telephely'!$B$21)<=AC31),1,0) -> 1 | AB31: 0 | AC31: 20000 | AD31: 1 | AE31: Nincs | AF31: =IF(AA31=1,AD31,IF(AA32=1,AD32,IF(AA33=1,AD33,IF(AA34=1,AD34,IF(AA35=1,AD35,IF(AA36=1,AD36)))))) -> 1 | AG31: volumen
A32: 30 | B32: 475 | C32: Egyéb háztartási cikk kiskereskedelme | E32: 3 | F32: 2 | G32: 2 | H32: 3 | I32: 3 | J32: 3 | K32: 3 | L32: 0 | M32: 3 | N32: 2 | S32: 2 | T32: 0 | U32: 1067 | V32: 1639 | W32: 2133 | X32: 2 | Y32: 5 millió Ft | AA32: =IF(AND(('1.telephely'!$B$24+'2.telephely'!$B$21+'3.telephely'!$B$21+'4.telephely'!$B$21+'5.telephely'!$B$21)>=AB32,('1.telephely'!$B$24+'2.telephely'!$B$21+'3.telephely'!$B$21+'4.telephely'!$B$21+'5.telephely'!$B$21)<=AC32),1,0) -> 0 | AB32: 20000.001 | AC32: 50000 | AD32: 0.9 | AE32: 0.1 | AF32: =1-AF31 -> 0
A33: 31 | B33: 869 | C33: Egyéb humán-egészségügyi ellátás | E33: 2 | F33: 1 | G33: 2 | H33: 2 | I33: 1 | J33: 2 | K33: 0 | L33: 0 | M33: 5 | N33: 3 | S33: 3 | T33: 0 | U33: 1593 | V33: 2449 | W33: 3186 | X33: 3 | Y33: 25 millió Ft | AA33: =IF(AND(('1.telephely'!$B$24+'2.telephely'!$B$21+'3.telephely'!$B$21+'4.telephely'!$B$21+'5.telephely'!$B$21)>=AB33,('1.telephely'!$B$24+'2.telephely'!$B$21+'3.telephely'!$B$21+'4.telephely'!$B$21+'5.telephely'!$B$21)<=AC33),1,0) -> 0 | AB33: 50000.001 | AC33: 75000 | AD33: 0.8 | AE33: 0.2
A34: 32 | B34: 639 | C34: Egyéb információs szolgáltatás | E34: 3 | F34: 2 | G34: 4 | H34: 2 | I34: 2 | J34: 2 | K34: 2 | L34: 0 | M34: 2 | N34: 3 | S34: 4 | T34: 0 | U34: 2390 | V34: 3673 | W34: 4779 | X34: 4 | Y34: 50 millió Ft | AA34: =IF(AND(('1.telephely'!$B$24+'2.telephely'!$B$21+'3.telephely'!$B$21+'4.telephely'!$B$21+'5.telephely'!$B$21)>=AB34,('1.telephely'!$B$24+'2.telephely'!$B$21+'3.telephely'!$B$21+'4.telephely'!$B$21+'5.telephely'!$B$21)<=AC34),1,0) -> 0 | AB34: 75000.001 | AC34: 150000 | AD34: 0.7 | AE34: 0.3
A35: 33 | B35: 829 | C35: Egyéb kiegészítő gazdasági tevékenység | E35: 3 | F35: 4 | G35: 0 | H35: 5 | I35: 5 | J35: 2 | K35: 0 | L35: 0 | M35: 2 | N35: 3 | S35: 5 | T35: 0 | U35: 3204 | V35: 4925 | W35: 6408 | AA35: =IF(AND(('1.telephely'!$B$24+'2.telephely'!$B$21+'3.telephely'!$B$21+'4.telephely'!$B$21+'5.telephely'!$B$21)>=AB35,('1.telephely'!$B$24+'2.telephely'!$B$21+'3.telephely'!$B$21+'4.telephely'!$B$21+'5.telephely'!$B$21)<=AC35),1,0) -> 0 | AB35: 150000.001 | AC35: 300000 | AD35: 0.6 | AE35: 0.4
A36: 34 | B36: 949 | C36: Egyéb közösségi, társadalmi tevékenység | E36: 2 | F36: 2 | G36: 2 | H36: 3 | I36: 2 | J36: 4 | K36: 0 | L36: 0 | M36: 3 | N36: 4 | AA36: =IF(AND(('1.telephely'!$B$24+'2.telephely'!$B$21+'3.telephely'!$B$21+'4.telephely'!$B$21+'5.telephely'!$B$21)>=AB36,('1.telephely'!$B$24+'2.telephely'!$B$21+'3.telephely'!$B$21+'4.telephely'!$B$21+'5.telephely'!$B$21)<=AC36),1,0) -> 0 | AB36: 300000.001 | AC36: 500000 | AD36: 0.5 | AE36: 0.5
A37: 35 | B37: 477 | C37: Egyéb m.n.s. áru kiskereskedelme | E37: 3 | F37: 3 | G37: 3 | H37: 3 | I37: 2 | J37: 3 | K37: 2 | L37: 0 | M37: 3 | N37: 3 | S37: =VLOOKUP(S39,$X$31:$Y$34,2,FALSE) -> 5 millió Ft | T37: =VLOOKUP(T39,$X$31:$Y$34,2,FALSE) -> 5 millió Ft | U37: =VLOOKUP(U39,$X$31:$Y$34,2,FALSE) -> 5 millió Ft | V37: =VLOOKUP(V39,$X$31:$Y$34,2,FALSE) -> 5 millió Ft | W37: =VLOOKUP(W39,$X$31:$Y$34,2,FALSE) -> 5 millió Ft
A38: 36 | B38: 855 | C38: Egyéb oktatás | E38: 4 | F38: 4 | G38: 4 | H38: 4 | I38: 4 | J38: 4 | K38: 3 | L38: 1 | M38: 3 | N38: 4 | S38: =VLOOKUP(O3,$A$3:$L$246,9) -> 4 | T38: =VLOOKUP(O4,$A$3:$L$246,9) -> 2 | U38: =VLOOKUP(O5,$A$3:$L$246,9) -> 2 | V38: =VLOOKUP(O6,$A$3:$L$246,9) -> 2 | W38: =VLOOKUP(O7,$A$3:$L$246,9) -> 2
A39: 37 | B39: 649 | C39: Egyéb pénzügyi közvetítés | E39: 2 | F39: 2 | G39: 1 | H39: 2 | I39: 2 | J39: 2 | K39: 0 | L39: 0 | M39: 2 | N39: 3 | S39: 2 | T39: 2 | U39: 2 | V39: 2 | W39: 2 | AA39: =S27 -> 2 | AB39: =T27 -> 3 | AC39: =U27 -> 2 | AD39: =V27 -> 2 | AE39: =W27 -> 2 | AG39: =S38 -> 4 | AH39: =T38 -> 2 | AI39: =U38 -> 2 | AJ39: =V38 -> 2 | AK39: =W38 -> 2
A40: 38 | B40: 532 | C40: Egyéb postai, futárpostai tevékenység | E40: 2 | F40: 2 | G40: 1 | H40: 2 | I40: 4 | J40: 2 | K40: 0 | L40: 1 | M40: 3 | N40: 3 | S40: =HLOOKUP(S39,S41:W46,S38+1,FALSE) -> 3985 | T40: =HLOOKUP(T39,S41:W46,T38+1,FALSE) -> 1775 | U40: =HLOOKUP(U39,$S$41:$W$46,U38+1,FALSE) -> 1775 | V40: =HLOOKUP(V39,$S$41:$W$46,V38+1,FALSE) -> 1775 | W40: =HLOOKUP(W39,$S$41:$W$46,W38+1,FALSE) -> 1775 | AA40: =VLOOKUP(AA39,AA43:AC48,3) -> 747 | AB40: =VLOOKUP(AB39,AA43:AC48,3) -> 1115 | AC40: =VLOOKUP(AC39,AA43:AC48,3) -> 747 | AD40: =VLOOKUP(AD39,AA43:AC48,3) -> 747 | AE40: =VLOOKUP(AE39,AA43:AC48,3) -> 747 | AG40: =VLOOKUP(AG39,AG43:AI48,3) -> 2163 | AH40: =VLOOKUP(AH39,AG43:AI48,3) -> 1057 | AI40: =VLOOKUP(AI39,AG43:AI48,3) -> 1057 | AJ40: =VLOOKUP(AJ39,AG43:AI48,3) -> 1057 | AK40: =VLOOKUP(AK39,AG43:AI48,3) -> 1057
A41: 39 | B41: 182 | C41: Egyéb sokszorosítás | E41: 3 | F41: 1 | G41: 3 | H41: 2 | I41: 2 | J41: 2 | K41: 2 | L41: 2 | M41: 3 | N41: 2 | S41: Munkált. | T41: 1 | U41: 2 | V41: 3 | W41: 4 | AA41: ='1.telephely'!B43*Tarifa!AA40 -> 0 | AB41: ='2.telephely'!B40*Tarifa!AB40 -> 0 | AC41: ='3.telephely'!B40*Tarifa!AC40 -> 0 | AD41: ='4.telephely'!B40*Tarifa!AD40 -> 0 | AE41: ='5.telephely'!B40*Tarifa!AE40 -> 0 | AG41: ='1.telephely'!B43*AG40 -> 0 | AH41: ='2.telephely'!B40*AH40 -> 0 | AI41: ='3.telephely'!B41*Tarifa!AI40 -> 0 | AJ41: ='4.telephely'!B40*Tarifa!AJ40 -> 0 | AK41: ='5.telephely'!B40*Tarifa!AK40 -> 0
A42: 40 | B42: 289 | C42: Egyéb speciális rendeltetésű gép gyártása | E42: 3 | F42: 1 | G42: 3 | H42: 2 | I42: 2 | J42: 3 | K42: 3 | L42: 0 | M42: 4 | N42: 3 | S42: 1 | T42: 0 | U42: 890 | V42: 1368 | W42: 1780 | AA42: Tanuló ált | AB42: 1 | AC42: 2 | AG42: Tanuló munk. | AH42: 1 | AI42: 2
A43: 41 | B43: 439 | C43: Egyéb speciális szaképítés | E43: 4 | F43: 1 | G43: 2 | H43: 2 | I43: 2 | J43: 1 | K43: 4 | L43: 4 | M43: 4 | N43: 3 | S43: 2 | T43: 0 | U43: 1775 | V43: 2729 | W43: 3550 | AA43: 0 | AB43: 0 | AC43: 0 | AE43: Össz: | AG43: 0 | AH43: 0 | AI43: 0
A44: 42 | B44: 467 | C44: Egyéb szakosodott nagykereskedelem | E44: 3 | F44: 2 | G44: 3 | H44: 3 | I44: 3 | J44: 3 | K44: 3 | L44: 0 | M44: 3 | N44: 3 | S44: 3 | T44: 0 | U44: 2650 | V44: 4074 | W44: 5300 | AA44: 1 | AB44: 0 | AC44: 372 | AE44: =IF(OR(AA41=0,AG41=0),0,AA41+AG41) -> 0 | AG44: 1 | AH44: 0 | AI44: 434
A45: 43 | B45: 559 | C45: Egyéb szálláshely-szolgáltatás | E45: 3 | F45: 2 | G45: 3 | H45: 3 | I45: 1 | J45: 3 | K45: 2 | L45: 2 | M45: 2 | N45: 2 | S45: 4 | T45: 0 | U45: 3985 | V45: 6126 | W45: 7970 | AA45: 2 | AB45: 0 | AC45: 747 | AE45: =IF(OR(AB41=0,AH41=0),0,AB41+AH41) -> 0 | AG45: 2 | AH45: 0 | AI45: 1057
A46: 44 | B46: 960 | C46: Egyéb személyi szolgáltatás | E46: 2 | F46: 2 | G46: 2 | H46: 3 | I46: 4 | J46: 4 | K46: 0 | L46: 3 | M46: 3 | N46: 3 | S46: 5 | T46: 0 | U46: 5340 | V46: 8209 | W46: 10680 | AA46: 3 | AB46: 0 | AC46: 1115 | AE46: =IF(OR(AC41=0,AI41=0),0,AC41+AI41) -> 0 | AG46: 3 | AH46: 0 | AI46: 1302
A47: 45 | B47: 889 | C47: Egyéb szociális ellátás bentlakás nélkül | E47: 2 | F47: 1 | G47: 4 | H47: 3 | I47: 3 | J47: 3 | K47: 3 | L47: 3 | M47: 3 | N47: 3 | AA47: 4 | AB47: 0 | AC47: 1673 | AE47: =IF(OR(AD41=0,AJ41=0),0,AD41+AJ41) -> 0 | AG47: 4 | AH47: 0 | AI47: 2163
A48: 46 | B48: 932 | C48: Egyéb szórakoztatás, szabadidős tevékenység | E48: 5 | F48: 4 | G48: 4 | H48: 5 | I48: 5 | J48: 4 | K48: 0 | L48: 0 | M48: 3 | N48: 4 | S48: =VLOOKUP(S50,$X$31:$Y$34,2,FALSE) -> 5 millió Ft | T48: =VLOOKUP(T50,$X$31:$Y$34,2,FALSE) -> 5 millió Ft | U48: =VLOOKUP(U50,$X$31:$Y$34,2,FALSE) -> 5 millió Ft | V48: =VLOOKUP(V50,$X$31:$Y$34,2,FALSE) -> 5 millió Ft | W48: =VLOOKUP(W50,$X$31:$Y$34,2,FALSE) -> 5 millió Ft | AA48: 5 | AB48: 0 | AC48: 2243 | AE48: =IF(OR(AE41=0,AK41=0),0,AE41+AK41) -> 0 | AG48: 5 | AH48: 0 | AI48: 2884
A49: 47 | B49: 139 | C49: Egyéb textiláru gyártása | E49: 5 | F49: 1 | G49: 3 | H49: 2 | I49: 4 | J49: 2 | K49: 2 | L49: 1 | M49: 3 | N49: 2 | S49: =VLOOKUP(O3,$A$3:$L$246,11) -> 4 | T49: =VLOOKUP(O4,$A$3:$L$246,11) -> 3 | U49: =VLOOKUP($O5,$A$3:$L$246,11) -> 2 | V49: =VLOOKUP($O6,$A$3:$L$246,11) -> 2 | W49: =VLOOKUP($O7,$A$3:$L$246,11) -> 0
A50: 48 | B50: 205 | C50: Egyéb vegyi termék gyártása | E50: 5 | F50: 2 | G50: 5 | H50: 4 | I50: 5 | J50: 4 | K50: 5 | L50: 0 | M50: 5 | N50: 4 | S50: 2 | T50: 2 | U50: 2 | V50: 2 | W50: 2
A51: 49 | B51: 279 | C51: Egyéb villamos berendezés gyártása | E51: 3 | F51: 1 | G51: 3 | H51: 2 | I51: 2 | J51: 2 | K51: 2 | L51: 0 | M51: 4 | N51: 2 | S51: =HLOOKUP(S50,S52:W58,S49+2,FALSE) -> 890 | T51: =HLOOKUP(T50,S52:W58,T49+2,FALSE) -> 616 | U51: =HLOOKUP(U50,$S$52:$W$58,U49+2,FALSE) -> 411 | V51: =HLOOKUP(V50,$S$52:$W$58,V49+2,FALSE) -> 411 | W51: =HLOOKUP(W50,$S$52:$W$58,W49+2,FALSE) -> 0 | AA51: Eredetiségvizsgálók | AB51: 50000
A52: 50 | B52: 9491 | C52: Egyházi tevékenység | E52: 4 | F52: 4 | G52: 2 | H52: 3 | I52: 2 | J52: 3 | K52: 0 | L52: 2 | M52: 3 | N52: 3 | S52: Termék | T52: 1 | U52: 2 | V52: 3 | W52: 4
A53: 51 | B53: 321 | C53: Ékszergyártás | E53: 2 | F53: 2 | G53: 2 | H53: 2 | I53: 2 | J53: 2 | K53: 0 | L53: 0 | M53: 2 | N53: 2 | S53: 0 | T53: 0 | U53: 0 | V53: 0 | W53: 0 | AA53: =VLOOKUP(AA54,$AF$54:$AG$56,2,FALSE) -> 5 millió Ft | AB53: =VLOOKUP(AB54,$AF$54:$AG$56,2,FALSE) -> 5 millió Ft | AC53: =VLOOKUP(AC54,$AF$54:$AG$56,2,FALSE) -> 5 millió Ft | AD53: =VLOOKUP(AD54,$AF$54:$AG$56,2,FALSE) -> 5 millió Ft | AE53: =VLOOKUP(AE54,$AF$54:$AG$56,2,FALSE) -> 5 millió Ft
A54: 52 | B54: 261 | C54: Elektronikai alkatrész, áramköri kártya gyártása | E54: 3 | F54: 3 | G54: 3 | H54: 1 | I54: 1 | J54: 2 | K54: 2 | L54: 0 | M54: 4 | N54: 2 | S54: 1 | T54: 0 | U54: 205 | V54: 411 | W54: 499 | AA54: 2 | AB54: 2 | AC54: 2 | AD54: 2 | AE54: 2 | AF54: 1 | AG54: 0
A55: 53 | B55: 264 | C55: Elektronikus fogyasztási cikk gyártása | E55: 3 | F55: 2 | G55: 3 | H55: 2 | I55: 2 | J55: 2 | K55: 2 | L55: 0 | M55: 4 | N55: 2 | S55: 2 | T55: 0 | U55: 411 | V55: 822 | W55: 999 | AA55: =IF(AA54=1,0,IF(AA54=2,'1.telephely'!B49*Tarifa!AB57,IF(Tarifa!AA54=3,'1.telephely'!B49*Tarifa!AB58,0))) -> 0 | AB55: =IF(AB54=1,0,IF(AB54=2,'2.telephely'!B46*Tarifa!AB57,IF(Tarifa!AB54=3,'2.telephely'!B46*Tarifa!AB58,0))) -> 0 | AC55: =IF(AC54=1,0,IF(AC54=2,'3.telephely'!B46*Tarifa!AB57,IF(Tarifa!AC54=3,'3.telephely'!B46*Tarifa!AB58,0))) -> 0 | AD55: =IF(AD54=1,0,IF(AD54=2,'4.telephely'!B46*Tarifa!AB57,IF(Tarifa!AD54=3,'4.telephely'!B46*Tarifa!AB58,0))) -> 0 | AE55: =IF(AE54=1,0,IF(AE54=2,'5.telephely'!B46*Tarifa!AB57,IF(Tarifa!AE54=3,'5.telephely'!B46*Tarifa!AB58,0))) -> 0 | AF55: 2 | AG55: 5 millió Ft
A56: 54 | B56: 472 | C56: Élelmiszer, ital, dohányáru kiskereskedelme | E56: 4 | F56: 2 | G56: 2 | H56: 2 | I56: 3 | J56: 2 | K56: 2 | L56: 0 | M56: 2 | N56: 3 | S56: 3 | T56: 0 | U56: 616 | V56: 1233 | W56: 1498 | AA56: Gépjármű javítók | AF56: 3 | AG56: 15 millió Ft
A57: 55 | B57: 463 | C57: Élelmiszer, ital, dohányáru nagykereskedelme | E57: 4 | F57: 3 | G57: 4 | H57: 2 | I57: 1 | J57: 2 | K57: 2 | L57: 0 | M57: 3 | N57: 2 | S57: 4 | T57: 0 | U57: 890 | V57: 1781 | W57: 2164 | AA57: 5 millió Ft | AB57: 0.35
A58: 56 | B58: 9001 | C58: Előadó-művészet | E58: 4 | F58: 2 | G58: 3 | H58: 4 | I58: 4 | J58: 4 | K58: 0 | L58: 1 | M58: 3 | N58: 4 | S58: 5 | T58: 0 | U58: 1223 | V58: 2446 | W58: 2973 | AA58: 15 millió Ft | AB58: 0.45
A59: 57 | B59: 711 | C59: Építészmérnöki tevékenység | E59: 4 | F59: 2 | G59: 2 | H59: 4 | I59: 4 | J59: 4 | K59: 0 | L59: 0 | M59: 4 | N59: 4
A60: 58 | B60: 811 | C60: Építményüzemeltetés | E60: 2 | F60: 2 | G60: 3 | H60: 3 | I60: 4 | J60: 3 | K60: 0 | L60: 2 | M60: 3 | N60: 3 | S60: =VLOOKUP(S62,$X$31:$Y$34,2,FALSE) -> 5 millió Ft | T60: =VLOOKUP(T62,$X$31:$Y$34,2,FALSE) -> 5 millió Ft | U60: =VLOOKUP(U62,$X$31:$Y$34,2,FALSE) -> 5 millió Ft | V60: =VLOOKUP(V62,$X$31:$Y$34,2,FALSE) -> 5 millió Ft | W60: =VLOOKUP(W62,$X$31:$Y$34,2,FALSE) -> 5 millió Ft | AA60: Szállodai
A61: 59 | B61: 475203 | C61: Építőanyag- és szaniteráru-kereskedelem | E61: 4 | F61: 3 | G61: 3 | H61: 3 | I61: 3 | J61: 3 | K61: 3 | L61: 0 | M61: 3 | N61: 3 | S61: =VLOOKUP($O3,$A$3:$N$246,10) -> 2 | T61: =VLOOKUP(O4,$A$3:$L$246,10) -> 3 | U61: =VLOOKUP(O5,$A$3:$L$246,10) -> 2 | V61: =VLOOKUP(O6,$A$3:$L$246,10) -> 2 | W61: =VLOOKUP(O7,$A$3:$L$246,10) -> 2 | AA61: 2 | AB61: 2 | AC61: 2 | AD61: 2 | AE61: 2
A62: 60 | B62: 411 | C62: Épületépítési projekt szervezése | E62: 4 | F62: 3 | G62: 2 | H62: 2 | I62: 2 | J62: 5 | K62: 0 | L62: 3 | M62: 4 | N62: 2 | S62: 2 | T62: 2 | U62: 2 | V62: 2 | W62: 2 | AA62: =VLOOKUP(AA61,$AF$54:$AG$56,2,FALSE) -> 5 millió Ft | AB62: =VLOOKUP(AB61,$AF$54:$AG$56,2,FALSE) -> 5 millió Ft | AC62: =VLOOKUP(AC61,$AF$54:$AG$56,2,FALSE) -> 5 millió Ft | AD62: =VLOOKUP(AD61,$AF$54:$AG$56,2,FALSE) -> 5 millió Ft | AE62: =VLOOKUP(AE61,$AF$54:$AG$56,2,FALSE) -> 5 millió Ft
A63: 61 | B63: 475205 | C63: Épületfa-kiskereskedelem | E63: 4 | F63: 1 | G63: 2 | H63: 2 | I63: 3 | J63: 2 | K63: 2 | L63: 0 | M63: 3 | N63: 3 | S63: =HLOOKUP(S62,S64:W70,S61+2,FALSE) -> 1195 | T63: =HLOOKUP(T62,S64:W70,T61+2,FALSE) -> 1787 | U63: =HLOOKUP(U62,$S$64:$W$70,U61+2,FALSE) -> 1195 | V63: =HLOOKUP(V62,$S$64:$W$70,V61+2,FALSE) -> 1195 | W63: =HLOOKUP(W62,$S$64:$W$70,W61+2,FALSE) -> 1195
A64: 62 | B64: 432 | C64: Épületgépészeti szerelés | E64: 3 | F64: 3 | G64: 2 | H64: 4 | I64: 4 | J64: 4 | K64: 4 | L64: 4 | M64: 4 | N64: 3 | S64: Bérlői | T64: 1 | U64: 2 | V64: 3 | W64: 4
A65: 63 | B65: 024 | C65: Erdészeti szolgáltatás | E65: 4 | F65: 2 | G65: 2 | H65: 3 | I65: 4 | J65: 3 | K65: 1 | L65: 1 | M65: 2 | N65: 3 | S65: 0 | T65: 0 | U65: 0 | V65: 0 | W65: 0
A66: 64 | B66: 021 | C66: Erdészeti, egyéb erdőgazdálkodási tevékenység | E66: 4 | F66: 2 | G66: 2 | H66: 3 | I66: 4 | J66: 3 | K66: 1 | L66: 1 | M66: 2 | N66: 3 | S66: 1 | T66: 0 | U66: 591 | V66: 1183 | W66: 1437
A67: 65 | B67: 772903 | C67: Esküvői ruha, jelmez, egyéb ruházati termék kölcsönzése | E67: 3 | F67: 2 | G67: 2 | H67: 2 | I67: 2 | J67: 2 | K67: 1 | L67: 1 | M67: 3 | N67: 3 | S67: 2 | T67: 0 | U67: 1195 | V67: 2390 | W67: 2905
A68: 66 | B68: 561001 | C68: Éttermi, cukrászdai szolgáltatás | E68: 2 | F68: 2 | G68: 2 | H68: 2 | I68: 2 | J68: 3 | K68: 4 | L68: 0 | M68: 2 | N68: 3 | S68: 3 | T68: 0 | U68: 1787 | V68: 3573 | W68: 4343
A69: 67 | B69: 561 | C69: Éttermi, mozgó vendéglátás | E69: 2 | F69: 2 | G69: 2 | H69: 2 | I69: 2 | J69: 3 | K69: 3 | L69: 1 | M69: 2 | N69: 2 | S69: 4 | T69: 0 | U69: 2692 | V69: 5385 | W69: 6544
A70: 68 | B70: 012 | C70: Évelő növény termesztése | E70: 3 | F70: 1 | G70: 2 | H70: 2 | I70: 5 | J70: 2 | K70: 1 | L70: 1 | M70: 2 | N70: 2 | S70: 5 | T70: 0 | U70: 3586 | V70: 7171 | W70: 8716
A71: 69 | B71: 257 | C71: Evőeszköz, szerszám, általános fémáru gyártása | E71: 4 | F71: 2 | G71: 2 | H71: 2 | I71: 2 | J71: 2 | K71: 2 | L71: 0 | M71: 3 | N71: 3
A72: 70 | B72: 162 | C72: Fa-, parafatermék, fonottáru gyártása | E72: 6 | F72: 2 | G72: 5 | H72: 4 | I72: 5 | J72: 4 | K72: 3 | L72: 1 | M72: 3 | N72: 4 | S72: =VLOOKUP(S74,$X$75:$Y$78,2,FALSE) -> 5 millió Ft | T72: =VLOOKUP(T74,$X$75:$Y$78,2,FALSE) -> 5 millió Ft | U72: =VLOOKUP(U74,$X$75:$Y$78,2,FALSE) -> 5 millió Ft | V72: =VLOOKUP(V74,$X$75:$Y$78,2,FALSE) -> 5 millió Ft | W72: =VLOOKUP(W74,$X$75:$Y$78,2,FALSE) -> 5 millió Ft
A73: 71 | B73: 022 | C73: Fakitermelés | E73: 4 | F73: 2 | G73: 2 | H73: 3 | I73: 4 | J73: 3 | K73: 1 | L73: 1 | M73: 2 | N73: 3 | S73: =VLOOKUP(O3,$A$3:$N$246,12) -> 1 | T73: =VLOOKUP(O4,$A$3:$N$246,12) -> 0 | U73: =VLOOKUP(O5,$A$3:$N$246,12) -> 2 | V73: =VLOOKUP(O6,$A$3:$N$246,12) -> 2 | W73: =VLOOKUP(O7,$A$3:$N$246,12) -> 0
A74: 72 | B74: 861 | C74: Fekvőbeteg-ellátás | E74: 3 | F74: 3 | G74: 4 | H74: 5 | I74: 5 | J74: 3 | K74: 0 | L74: 0 | M74: 5 | N74: 3 | S74: 2 | T74: 2 | U74: 2 | V74: 2 | W74: 2 | AA74: Értékelés módja
A75: 73 | B75: 854 | C75: Felső szintű oktatás | E75: 4 | F75: 4 | G75: 4 | H75: 4 | I75: 4 | J75: 4 | K75: 4 | L75: 4 | M75: 3 | N75: 4 | S75: =HLOOKUP(S74,$S$76:$W$82,S73+2,FALSE) -> 430 | T75: =HLOOKUP(T74,$S$76:$W$82,T73+2,FALSE) -> 0 | U75: =HLOOKUP(U74,$S$76:$W$82,U73+2,FALSE) -> 620 | V75: =HLOOKUP(V74,$S$76:$W$82,V73+2,FALSE) -> 620 | W75: =HLOOKUP(W74,$S$76:$W$82,W73+2,FALSE) -> 0 | X75: 1 | Y75: 0 | AA75: 1.telephely | AB75: 2
A76: 74 | B76: 256 | C76: Fém felületkezelése, megmunkálása | E76: 4 | F76: 1 | G76: 4 | H76: 2 | I76: 2 | J76: 4 | K76: 2 | L76: 0 | M76: 3 | N76: 3 | S76: Szolg. | T76: 1 | U76: 2 | V76: 3 | W76: 4 | X76: 2 | Y76: 5 millió Ft | AA76: 2. telephely | AB76: 1
A77: 75 | B77: 251 | C77: Fémszerkezet, -épületelem gyártása | E77: 4 | F77: 2 | G77: 2 | H77: 2 | I77: 5 | J77: 2 | K77: 2 | L77: 0 | M77: 3 | N77: 3 | S77: 0 | T77: 0 | U77: 0 | V77: 0 | W77: 0 | X77: 3 | Y77: 15 millió Ft | AA77: 3. telephely | AB77: 2
A78: 76 | B78: 742 | C78: Fényképészet | E78: 2 | F78: 1 | G78: 2 | H78: 3 | I78: 2 | J78: 3 | K78: 0 | L78: 2 | M78: 3 | N78: 3 | S78: 1 | T78: 0 | U78: 430 | V78: 635 | W78: 731 | X78: 4 | Y78: 25 millió Ft | AA78: 4. telephely | AB78: 2
A79: 77 | B79: 203 | C79: Festék, bevonóanyag gyártása | E79: 6 | F79: 1 | G79: 4 | H79: 4 | I79: 4 | J79: 4 | K79: 4 | L79: 0 | M79: 5 | N79: 4 | S79: 2 | T79: 0 | U79: 620 | V79: 916 | W79: 1053 | AA79: 5. telephely | AB79: 2
A80: 78 | B80: 591 | C80: Film-, video-, televízióműsor-gyártás | E80: 3 | F80: 2 | G80: 4 | H80: 4 | I80: 4 | J80: 0 | K80: 0 | L80: 4 | M80: 3 | N80: 0 | S80: 3 | T80: 0 | U80: 760 | V80: 1123 | W80: 1291
A81: 79 | B81: 5914 | C81: Filmvetítés | E81: 3 | F81: 2 | G81: 3 | H81: 3 | I81: 2 | J81: 3 | K81: 0 | L81: 1 | M81: 2 | N81: 3 | S81: 4 | T81: 0 | U81: 1060 | V81: 1566 | W81: 1801
A82: 80 | B82: 9602 | C82: Fodrászat, szépségápolás | E82: 4 | F82: 2 | G82: 4 | H82: 3 | I82: 3 | J82: 3 | K82: 3 | L82: 4 | M82: 3 | N82: 3 | S82: 5 | T82: 0 | U82: 1620 | V82: 2393 | W82: 2752
A83: 81 | B83: 8623 | C83: Fogorvosi járóbeteg-ellátás | E83: 2 | F83: 1 | G83: 2 | H83: 2 | I83: 2 | J83: 2 | K83: 0 | L83: 0 | M83: 5 | N83: 3
A84: 82 | B84: 743 | C84: Fordítás, tolmácsolás | E84: 4 | F84: 1 | G84: 3 | H84: 1 | I84: 3 | J84: 1 | K84: 2 | L84: 1 | M84: 2 | N84: 3 | S84: =VLOOKUP(S86,$X$31:$Y$34,2,FALSE) -> 5 millió Ft | T84: =VLOOKUP(T86,$X$31:$Y$34,2,FALSE) -> 5 millió Ft | U84: =VLOOKUP(U86,$X$31:$Y$34,2,FALSE) -> 5 millió Ft | V84: =VLOOKUP(V86,$X$31:$Y$34,2,FALSE) -> 5 millió Ft | W84: =VLOOKUP(W86,$X$31:$Y$34,2,FALSE) -> 5 millió Ft
A85: 83 | B85: 477808 | C85: Fotó-,optikai cikk- kiskereskedelem | E85: 2 | F85: 2 | G85: 2 | H85: 2 | I85: 2 | J85: 2 | K85: 1 | L85: 0 | M85: 3 | N85: 3 | S85: =VLOOKUP(O3,$A$3:$N$246,14) -> 3 | T85: =VLOOKUP(O4,$A$3:$N$246,14) -> 3 | U85: =VLOOKUP(O5,$A$3:$N$246,14) -> 2 | V85: =VLOOKUP(O6,$A$3:$N$246,14) -> 2 | W85: =VLOOKUP(O7,$A$3:$N$246,14) -> 3
A86: 84 | B86: 161 | C86: Fűrészárugyártás | E86: 6 | F86: 2 | G86: 4 | H86: 2 | I86: 5 | J86: 2 | K86: 1 | L86: 0 | M86: 3 | N86: 4 | S86: 2 | T86: 2 | U86: 2 | V86: 2 | W86: 2
A87: 85 | B87: 252 | C87: Fűtési kazán, radiátor, fémtartály gyártása | E87: 4 | F87: 1 | G87: 2 | H87: 4 | I87: 4 | J87: 5 | K87: 2 | L87: 0 | M87: 3 | N87: 3 | S87: =HLOOKUP(S86,$S$88:$W$94,S85+2,FALSE) -> 684 | T87: =HLOOKUP(T86,$S$88:$W$94,T85+2,FALSE) -> 684 | U87: =HLOOKUP(U86,$S$88:$W$94,U85+2,FALSE) -> 558 | V87: =HLOOKUP(V86,$S$88:$W$94,V85+2,FALSE) -> 558 | W87: =HLOOKUP(W86,$S$88:$W$94,W85+2,FALSE) -> 684
A88: 86 | B88: 453 | C88: Gépjárműalkatrész-kereskedelem | E88: 2 | F88: 3 | G88: 1 | H88: 2 | I88: 1 | J88: 2 | K88: 3 | L88: 0 | M88: 2 | N88: 2 | S88: Bérbeadói | T88: 1 | U88: 2 | V88: 3 | W88: 4
A89: 87 | B89: 452 | C89: Gépjárműjavítás, -karbantartás | E89: 3 | F89: 2 | G89: 2 | H89: 2 | I89: 2 | J89: 2 | K89: 0 | L89: 2 | M89: 2 | N89: 2 | S89: 0 | T89: 0 | U89: 0 | V89: 0 | W89: 0
A90: 88 | B90: 292 | C90: Gépjármű-karosszéria, pótkocsi gyártása | E90: 4 | F90: 2 | G90: 3 | H90: 2 | I90: 2 | J90: 4 | K90: 0 | L90: 0 | M90: 4 | N90: 3 | S90: 1 | T90: 0 | U90: 258 | V90: 439 | W90: 516
A91: 89 | B91: 451 | C91: Gépjármű-kereskedelem | E91: 3 | F91: 3 | G91: 2 | H91: 2 | I91: 2 | J91: 2 | K91: 0 | L91: 2 | M91: 2 | N91: 2 | S91: 2 | T91: 0 | U91: 558 | V91: 949 | W91: 1116
A92: 90 | B92: 473 | C92: Gépjárműüzemanyag-kiskereskedelem | E92: 4 | F92: 4 | G92: 2 | H92: 4 | I92: 4 | J92: 4 | K92: 4 | L92: 0 | M92: 5 | N92: 3 | S92: 3 | T92: 0 | U92: 684 | V92: 1163 | W92: 1368
A93: 91 | B93: 253 | C93: Gőzkazán gyártása | E93: 4 | F93: 1 | G93: 2 | H93: 4 | I93: 4 | J93: 5 | K93: 2 | L93: 0 | M93: 3 | N93: 3 | S93: 4 | T93: 0 | U93: 1060 | V93: 1802 | W93: 2120
A94: 92 | B94: 221 | C94: Gumitermék gyártása | E94: 5 | F94: 2 | G94: 3 | H94: 3 | I94: 4 | J94: 3 | K94: 3 | L94: 0 | M94: 5 | N94: 3 | S94: 5 | T94: 0 | U94: 1620 | V94: 2754 | W94: 3240
A95: 93 | B95: 4773 | C95: Gyógyszer-kiskereskedelem | E95: 3 | F95: 4 | G95: 2 | H95: 4 | I95: 2 | J95: 3 | K95: 3 | L95: 0 | M95: 3 | N95: 3
A96: 94 | B96: 103 | C96: Gyümölcs-, zöldségfeldolgozás, -tartósítás | E96: 2 | F96: 2 | G96: 2 | H96: 2 | I96: 2 | J96: 2 | K96: 3 | L96: 0 | M96: 3 | N96: 2 | S96: =VLOOKUP(S98,$X$75:$Y$78,2,FALSE) -> 5 millió Ft | T96: =VLOOKUP(T98,$X$75:$Y$78,2,FALSE) -> 5 millió Ft | U96: =VLOOKUP(U98,$X$75:$Y$78,2,FALSE) -> 5 millió Ft | V96: =VLOOKUP(V98,$X$75:$Y$78,2,FALSE) -> 5 millió Ft | W96: =VLOOKUP(W98,$X$75:$Y$78,2,FALSE) -> 5 millió Ft
A97: 95 | B97: 031 | C97: Halászat | E97: 1 | F97: 1 | G97: 3 | H97: 2 | I97: 1 | J97: 2 | K97: 2 | L97: 1 | M97: 2 | N97: 2 | S97: =VLOOKUP(O3,$A$3:$N$246,13) -> 3 | T97: =VLOOKUP(O4,$A$3:$N$246,13) -> 3 | U97: =VLOOKUP(O5,$A$3:$N$246,13) -> 3 | V97: =VLOOKUP(O6,$A$3:$N$246,13) -> 3 | W97: =VLOOKUP(O7,$A$3:$N$246,13) -> 2
A98: 96 | B98: 102 | C98: Halfeldolgozás, -tartósítás | E98: 3 | F98: 2 | G98: 3 | H98: 3 | I98: 3 | J98: 3 | K98: 3 | L98: 0 | M98: 3 | N98: 3 | S98: 2 | T98: 2 | U98: 2 | V98: 2 | W98: 2
A99: 97 | B99: 032 | C99: Halgazdálkodás | E99: 1 | F99: 1 | G99: 3 | H99: 2 | I99: 1 | J99: 2 | K99: 2 | L99: 1 | M99: 2 | N99: 2 | S99: =HLOOKUP(S98,$S$100:$W$106,S97+2,FALSE) -> 150 | T99: =HLOOKUP(T98,$S$100:$W$106,T97+2,FALSE) -> 150 | U99: =HLOOKUP(U98,$S$100:$W$106,U97+2,FALSE) -> 150 | V99: =HLOOKUP(V98,$S$100:$W$106,V97+2,FALSE) -> 150 | W99: =HLOOKUP(W98,$S$100:$W$106,W97+2,FALSE) -> 120
A100: 98 | B100: 592 | C100: Hangfelvétel készítése, kiadása | E100: 3 | F100: 2 | G100: 2 | H100: 2 | I100: 2 | J100: 2 | K100: 0 | L100: 3 | M100: 2 | N100: 3 | S100: Környezet | T100: 1 | U100: 2 | V100: 3 | W100: 4
A101: 99 | B101: 322 | C101: Hangszergyártás | E101: 4 | F101: 2 | G101: 4 | H101: 2 | I101: 3 | J101: 2 | K101: 4 | L101: 0 | M101: 2 | N101: 2 | S101: 0 | T101: 0 | U101: 0 | V101: 0 | W101: 0
A102: 100 | B102: 475909 | C102: Hangszer-kiskereskedelem | E102: 2 | F102: 2 | G102: 2 | H102: 3 | I102: 3 | J102: 3 | K102: 1 | L102: 0 | M102: 2 | N102: 2 | S102: 1 | T102: 0 | U102: 60 | V102: 89 | W102: 102
A103: 101 | B103: 982 | C103: Háztartás szolgáltatása saját fogyasztásra | E103: 4 | F103: 2 | G103: 4 | H103: 4 | I103: 4 | J103: 3 | K103: 1 | L103: 0 | M103: 4 | N103: 3 | S103: 2 | T103: 0 | U103: 120 | V103: 178 | W103: 204
A104: 102 | B104: 981 | C104: Háztartás termék-előállítása, szolgáltatása saját fogyasztásra | E104: 4 | F104: 2 | G104: 4 | H104: 4 | I104: 4 | J104: 3 | K104: 1 | L104: 0 | M104: 4 | N104: 3 | S104: 3 | T104: 0 | U104: 150 | V104: 222 | W104: 255
A105: 103 | B105: 970 | C105: Háztartási alkalmazottat foglalkoztató magánháztartás | E105: 3 | F105: 2 | G105: 2 | H105: 4 | I105: 4 | J105: 2 | K105: 0 | L105: 0 | M105: 3 | N105: 3 | S105: 4 | T105: 0 | U105: 170 | V105: 252 | W105: 289
A106: 104 | B106: 464 | C106: Háztartási cikk nagykereskedelme | E106: 3 | F106: 2 | G106: 2 | H106: 3 | I106: 3 | J106: 3 | K106: 3 | L106: 0 | M106: 3 | N106: 3 | S106: 5 | T106: 0 | U106: 190 | V106: 281 | W106: 323
A107: 105 | B107: 275 | C107: Háztartási készülék gyártása | E107: 3 | F107: 1 | G107: 3 | H107: 2 | I107: 2 | J107: 2 | K107: 2 | L107: 0 | M107: 4 | N107: 2
A108: 106 | B108: 263 | C108: Híradás-technikai berendezés gyártása | E108: 3 | F108: 2 | G108: 3 | H108: 2 | I108: 2 | J108: 2 | K108: 2 | L108: 0 | M108: 4 | N108: 2 | S108: Megyei jogú város
A109: 107 | B109: 383 | C109: Hulladékanyag hasznosítása | E109: 4 | F109: 1 | G109: 2 | H109: 2 | I109: 2 | J109: 1 | K109: 0 | L109: 0 | M109: 0 | N109: 4 | S109: 5600 | T109: =VLOOKUP('1.telephely'!$F$5,$S$109:$S$244,1,FALSE) ->  | U109: =ISNA(T109) -> TRUE
A110: 108 | B110: 381 | C110: Hulladékgyűjtés | E110: 4 | F110: 1 | G110: 2 | H110: 2 | I110: 4 | J110: 2 | K110: 0 | L110: 1 | M110: 0 | N110: 4 | S110: 9400 | T110: =VLOOKUP('2.telephely'!$F$2,$S$109:$S$244,1,FALSE) ->  | U110: =ISNA(T110) -> TRUE
A111: 109 | B111: 101 | C111: Húsfeldolgozás, -tartósítás, húskészítmény gyártása | E111: 3 | F111: 2 | G111: 3 | H111: 2 | I111: 4 | J111: 3 | K111: 3 | L111: 0 | M111: 3 | N111: 3 | S111: 2400 | T111: =VLOOKUP('3.telephely'!$F$2,$S$109:$S$244,1,FALSE) ->  | U111: =ISNA(T111) -> TRUE
A112: 110 | B112: 873 | C112: Idősek, fogyatékosok bentlakásos ellátása | E112: 2 | F112: 2 | G112: 2 | H112: 4 | I112: 4 | J112: 4 | K112: 0 | L112: 3 | M112: 3 | N112: 4 | S112: 3300 | T112: =VLOOKUP('4.telephely'!$F$2,$S$109:$S$244,1,FALSE) ->  | U112: =ISNA(T112) -> TRUE
A113: 111 | B113: 881 | C113: Idősek, fogyatékosok szociális ellátása bentlakás nélkül | E113: 2 | F113: 1 | G113: 4 | H113: 3 | I113: 3 | J113: 3 | K113: 3 | L113: 3 | M113: 3 | N113: 3 | S113: 2030 | T113: =VLOOKUP('5.telephely'!$F$2,$S$109:$S$244,1,FALSE) ->  | U113: =ISNA(T113) -> TRUE
A114: 112 | B114: 4775 | C114: Illatszer-kiskereskedelem | E114: 4 | F114: 2 | G114: 3 | H114: 3 | I114: 3 | J114: 3 | K114: 3 | L114: 0 | M114: 3 | N114: 3 | S114: 6800
A115: 113 | B115: 474 | C115: Információs, híradás-technikai termék kiskereskedelme | E115: 3 | F115: 3 | G115: 2 | H115: 2 | I115: 2 | J115: 1 | K115: 2 | L115: 0 | M115: 3 | N115: 2 | S115: 7400
A116: 114 | B116: 620 | C116: Információ-technológiai szolgáltatás | E116: 3 | F116: 2 | G116: 4 | H116: 2 | I116: 2 | J116: 2 | K116: 2 | L116: 0 | M116: 3 | N116: 3 | S116: 6000
A117: 115 | B117: 465 | C117: Információtechnológiai, híradás-technikai termék nagykereskedelme | E117: 3 | F117: 3 | G117: 2 | H117: 2 | I117: 2 | J117: 1 | K117: 2 | L117: 0 | M117: 3 | N117: 2 | S117: 8800
A118: 116 | B118: 683 | C118: Ingatlanügynöki, -kezelési szolgáltatás | E118: 2 | F118: 3 | G118: 1 | H118: 2 | I118: 3 | J118: 2 | K118: 4 | L118: 1 | M118: 2 | N118: 2 | S118: 4400
A119: 117 | B119: 4719 | C119: Iparcikk jellegű bolti vegyes kiskereskedelem | E119: 3 | F119: 2 | G119: 3 | H119: 3 | I119: 3 | J119: 3 | K119: 3 | L119: 0 | M119: 2 | N119: 3 | S119: 3100
A120: 118 | B120: 332 | C120: Ipari gép, berendezés üzembe helyezése | E120: 3 | F120: 2 | G120: 2 | H120: 3 | I120: 4 | J120: 3 | K120: 4 | L120: 4 | M120: 4 | N120: 3 | S120: 7100
A121: 119 | B121: 331 | C121: Ipari gép, berendezés, eszköz javítása | E121: 3 | F121: 2 | G121: 1 | H121: 3 | I121: 4 | J121: 3 | K121: 4 | L121: 4 | M121: 4 | N121: 3 | S121: 8000
A122: 120 | B122: 851 | C122: Iskolai előkészítő oktatás | E122: 3 | F122: 4 | G122: 4 | H122: 4 | I122: 4 | J122: 4 | K122: 2 | L122: 4 | M122: 3 | N122: 4 | S122: 5000
A123: 121 | B123: 110 | C123: Italgyártás | E123: 3 | F123: 3 | G123: 3 | H123: 3 | I123: 4 | J123: 3 | K123: 3 | L123: 1 | M123: 3 | N123: 3 | S123: 9700
A124: 122 | B124: 563 | C124: Italszolgáltatás | E124: 2 | F124: 3 | G124: 2 | H124: 2 | I124: 2 | J124: 3 | K124: 3 | L124: 1 | M124: 2 | N124: 2 | S124: 2800
A125: 123 | B125: 8553 | C125: Járművezető-oktatás | E125: 3 | F125: 1 | G125: 2 | H125: 2 | I125: 4 | J125: 2 | K125: 0 | L125: 1 | M125: 3 | N125: 4 | S125: 8200
A126: 124 | B126: 324 | C126: Játékgyártás | E126: 3 | F126: 1 | G126: 3 | H126: 2 | I126: 2 | J126: 2 | K126: 4 | L126: 0 | M126: 2 | N126: 2 | S126: 8900
A127: 125 | B127: 4765 | C127: Játék-kiskereskedelem | E127: 3 | F127: 3 | G127: 3 | H127: 3 | I127: 2 | J127: 3 | K127: 3 | L127: 0 | M127: 3 | N127: 2 | S127: 4000
A128: 126 | B128: 691 | C128: Jogi tevékenység | E128: 2 | F128: 3 | G128: 2 | H128: 2 | I128: 2 | J128: 2 | K128: 0 | L128: 5 | M128: 2 | N128: 3 | S128: 4002
A129: 127 | B129: 553 | C129: Kempingszolgáltatás | E129: 3 | F129: 2 | G129: 3 | H129: 3 | I129: 1 | J129: 3 | K129: 2 | L129: 2 | M129: 3 | N129: 2 | S129: 4024
A130: 128 | B130: 233 | C130: Kerámia, agyag építőanyag gyártása | E130: 3 | F130: 2 | G130: 3 | H130: 3 | I130: 3 | J130: 3 | K130: 2 | L130: 0 | M130: 3 | N130: 3 | S130: 4025
A131: 129 | B131: 581 | C131: Kiadói tevékenység | E131: 4 | F131: 2 | G131: 1 | H131: 2 | I131: 2 | J131: 2 | K131: 0 | L131: 0 | M131: 3 | N131: 3 | S131: 4026
A132: 130 | B132: 823 | C132: Konferencia, kereskedelmi bemutató szervezése | E132: 4 | F132: 1 | G132: 2 | H132: 2 | I132: 2 | J132: 2 | K132: 0 | L132: 2 | M132: 2 | N132: 3 | S132: 4027
A133: 131 | B133: 4942 | C133: Költöztetés | E133: 4 | F133: 2 | G133: 3 | H133: 3 | I133: 4 | J133: 3 | K133: 1 | L133: 1 | M133: 3 | N133: 3 | S133: 4028
A134: 132 | B134: 237 | C134: Kőmegmunkálás | E134: 2 | F134: 1 | G134: 1 | H134: 1 | I134: 5 | J134: 1 | K134: 1 | L134: 0 | M134: 3 | N134: 2 | S134: 4029
A135: 133 | B135: 4761 | C135: Könyv-kiskereskedelem | E135: 2 | F135: 2 | G135: 2 | H135: 2 | I135: 2 | J135: 2 | K135: 1 | L135: 0 | M135: 3 | N135: 2 | S135: 4030
A136: 134 | B136: 910 | C136: Könyvtári, levéltári, múzeumi, egyéb kulturális tevékenység | E136: 4 | F136: 2 | G136: 3 | H136: 3 | I136: 3 | J136: 3 | K136: 0 | L136: 1 | M136: 3 | N136: 3 | S136: 4031
A137: 135 | B137: 143 | C137: Kötött, hurkolt cikk gyártása | E137: 5 | F137: 1 | G137: 4 | H137: 2 | I137: 2 | J137: 2 | K137: 2 | L137: 0 | M137: 3 | N137: 2 | S137: 4032
A138: 136 | B138: 853 | C138: Középfokú oktatás | E138: 4 | F138: 4 | G138: 4 | H138: 4 | I138: 4 | J138: 4 | K138: 3 | L138: 1 | M138: 3 | N138: 4 | S138: 4033
A139: 137 | B139: 841 | C139: Közigazgatás | E139: 4 | F139: 2 | G139: 4 | H139: 4 | I139: 4 | J139: 4 | K139: 2 | L139: 5 | M139: 4 | N139: 3 | S139: 4034
A140: 138 | B140: 422 | C140: Közműépítés | E140: 2 | F140: 3 | G140: 1 | H140: 5 | I140: 4 | J140: 3 | K140: 4 | L140: 5 | M140: 4 | N140: 3 | S140: 9000
A141: 139 | B141: 291 | C141: Közúti gépjármű gyártása | E141: 4 | F141: 2 | G141: 3 | H141: 2 | I141: 2 | J141: 4 | K141: 0 | L141: 0 | M141: 4 | N141: 3 | S141: 9021
A142: 140 | B142: 293 | C142: Közúti jármű alkatrészeinek gyártása | E142: 4 | F142: 2 | G142: 4 | H142: 2 | I142: 2 | J142: 3 | K142: 0 | L142: 0 | M142: 4 | N142: 3 | S142: 9022
A143: 141 | B143: 476 | C143: Kulturális, szabadidős cikk bolti kiskereskedelme | E143: 3 | F143: 3 | G143: 3 | H143: 3 | I143: 3 | J143: 3 | K143: 2 | L143: 0 | M143: 2 | N143: 2 | S143: 9023
A144: 142 | B144: 4772 | C144: Lábbeli-, bőráru-kiskereskedelem | E144: 2 | F144: 3 | G144: 2 | H144: 2 | I144: 2 | J144: 2 | K144: 2 | L144: 0 | M144: 3 | N144: 3 | S144: 9024
A145: 143 | B145: 152 | C145: Lábbeligyártás | E145: 4 | F145: 1 | G145: 4 | H145: 1 | I145: 2 | J145: 1 | K145: 3 | L145: 0 | M145: 3 | N145: 2 | S145: 9025
A146: 144 | B146: 412 | C146: Lakó- és nem lakó épület építése | E146: 3 | F146: 3 | G146: 1 | H146: 5 | I146: 5 | J146: 4 | K146: 4 | L146: 0 | M146: 4 | N146: 2 | S146: 9026
A147: 145 | B147: 429 | C147: M.n.s. egyéb építmény építése | E147: 2 | F147: 2 | G147: 2 | H147: 5 | I147: 4 | J147: 4 | K147: 5 | L147: 3 | M147: 4 | N147: 3 | S147: 9027
A148: 146 | B148: 329 | C148: M.n.s. egyéb feldolgozóipari tevékenység | E148: 4 | F148: 2 | G148: 3 | H148: 2 | I148: 2 | J148: 1 | K148: 4 | L148: 0 | M148: 2 | N148: 2 | S148: 9028
A149: 147 | B149: 9499 | C149: M.n.s. egyéb közösségi, társadalmi tevékenység | E149: 3 | F149: 4 | G149: 2 | H149: 4 | I149: 2 | J149: 4 | K149: 0 | L149: 2 | M149: 3 | N149: 4 | S149: 9029
A150: 148 | B150: 749 | C150: M.n.s. egyéb szakmai, tudományos, műszaki tevékenység | E150: 4 | F150: 2 | G150: 3 | H150: 2 | I150: 2 | J150: 2 | K150: 0 | L150: 0 | M150: 3 | N150: 3 | S150: 9030
A151: 149 | B151: 268 | C151: Mágneses, optikai információhordozó gyártása | E151: 3 | F151: 3 | G151: 3 | H151: 2 | I151: 2 | J151: 1 | K151: 2 | L151: 0 | M151: 3 | N151: 2 | S151: 9011
A152: 150 | B152: 106 | C152: Malomipari termék, keményítő gyártása | E152: 3 | F152: 2 | G152: 3 | H152: 2 | I152: 2 | J152: 2 | K152: 2 | L152: 0 | M152: 3 | N152: 2 | S152: 9012
A153: 151 | B153: 872 | C153: Mentális, szenvedélybeteg bentlakásos ellátása | E153: 5 | F153: 2 | G153: 4 | H153: 4 | I153: 5 | J153: 4 | K153: 0 | L153: 5 | M153: 3 | N153: 4 | S153: 9019
A154: 152 | B154: 475206 | C154: Mezőgazdasági eszközök, kiskereskedelme | E154: 3 | F154: 3 | G154: 3 | H154: 3 | I154: 3 | J154: 3 | K154: 3 | L154: 0 | M154: 3 | N154: 3 | S154: 5623
A155: 153 | B155: 462 | C155: Mezőgazdasági nyersanyag, élőállat nagykereskedelme | E155: 3 | F155: 2 | G155: 2 | H155: 2 | I155: 2 | J155: 3 | K155: 3 | L155: 0 | M155: 3 | N155: 3 | S155: 5671
A156: 154 | B156: 202 | C156: Mezőgazdasági vegyi termék gyártása | E156: 4 | F156: 2 | G156: 4 | H156: 4 | I156: 4 | J156: 4 | K156: 4 | L156: 0 | M156: 5 | N156: 4 | S156: 4063
A157: 155 | B157: 016 | C157: Mezőgazdasági, betakarítást követő szolgáltatás | E157: 3 | F157: 2 | G157: 2 | H157: 2 | I157: 4 | J157: 2 | K157: 2 | L157: 1 | M157: 2 | N157: 2 | S157: 4078
A158: 156 | B158: 283 | C158: Mezőgazdasági, erdészeti gép gyártása | E158: 3 | F158: 1 | G158: 3 | H158: 2 | I158: 2 | J158: 2 | K158: 2 | L158: 0 | M158: 4 | N158: 3 | S158: 4079
A159: 157 | B159: 641 | C159: Monetáris közvetítés | E159: 2 | F159: 2 | G159: 1 | H159: 2 | I159: 2 | J159: 2 | K159: 0 | L159: 0 | M159: 2 | N159: 3 | S159: 4225
A160: 158 | B160: 454 | C160: Motorkerékpár, -alkatrész kereskedelme, javítása | E160: 3 | F160: 2 | G160: 2 | H160: 2 | I160: 2 | J160: 2 | K160: 2 | L160: 2 | M160: 2 | N160: 2 | S160: 2407
A161: 159 | B161: 782 | C161: Munkaerőkölcsönzés | E161: 2 | F161: 1 | G161: 2 | H161: 2 | I161: 2 | J161: 2 | K161: 0 | L161: 4 | M161: 3 | N161: 3 | S161: 3304
A162: 160 | B162: 781 | C162: Munkaközvetítés | E162: 2 | F162: 1 | G162: 2 | H162: 2 | I162: 2 | J162: 2 | K162: 0 | L162: 4 | M162: 3 | N162: 3 | S162: 6806
A163: 161 | B163: 477814 | C163: Mutatványoskellékáru-kiskereskedelem | E163: 3 | F163: 2 | G163: 3 | H163: 2 | I163: 2 | J163: 2 | K163: 1 | L163: 0 | M163: 3 | N163: 3 | S163: 6008
A164: 162 | B164: 9102 | C164: Múzeumi tevékenység | E164: 2 | F164: 2 | G164: 2 | H164: 4 | I164: 3 | J164: 4 | K164: 0 | L164: 1 | M164: 3 | N164: 3 | S164: 6044
A165: 163 | B165: 222 | C165: Műanyag termék gyártása | E165: 5 | F165: 2 | G165: 5 | H165: 3 | I165: 4 | J165: 3 | K165: 2 | L165: 0 | M165: 5 | N165: 3 | S165: 3500
A166: 164 | B166: 712 | C166: Műszaki vizsgálat, elemzés | E166: 2 | F166: 2 | G166: 2 | H166: 2 | I166: 2 | J166: 2 | K166: 0 | L166: 3 | M166: 3 | N166: 3 | S166: 3501
A167: 165 | B167: 265 | C167: Műszer-, óragyártás | E167: 3 | F167: 3 | G167: 2 | H167: 2 | I167: 2 | J167: 2 | K167: 2 | L167: 0 | M167: 3 | N167: 2 | S167: 3508
A168: 166 | B168: 479 | C168: Nem bolti, piaci kiskereskedelem | E168: 2 | F168: 3 | G168: 2 | H168: 2 | I168: 2 | J168: 2 | K168: 2 | L168: 0 | M168: 2 | N168: 2 | S168: 3510
A169: 167 | B169: 011 | C169: Nem évelő növény termesztése | E169: 3 | F169: 1 | G169: 2 | H169: 2 | I169: 5 | J169: 2 | K169: 1 | L169: 1 | M169: 2 | N169: 2 | S169: 3515
A170: 168 | B170: 471 | C170: Nem szakosodott bolti vegyes kiskereskedelem | E170: 3 | F170: 2 | G170: 2 | H170: 3 | I170: 3 | J170: 3 | K170: 3 | L170: 0 | M170: 2 | N170: 3 | S170: 3516
A171: 169 | B171: 9104 | C171: Növény-, állatkert, természetvédelmi terület működtetése | E171: 4 | F171: 3 | G171: 2 | H171: 5 | I171: 4 | J171: 5 | K171: 0 | L171: 1 | M171: 3 | N171: 3 | S171: 3517
A172: 170 | B172: 013 | C172: Növényi szaporítóanyag termesztése | E172: 3 | F172: 1 | G172: 2 | H172: 2 | I172: 5 | J172: 2 | K172: 1 | L172: 1 | M172: 2 | N172: 2 | S172: 3518
A173: 171 | B173: 104 | C173: Növényi, állati olaj gyártása | E173: 3 | F173: 1 | G173: 3 | H173: 2 | I173: 2 | J173: 2 | K173: 2 | L173: 0 | M173: 3 | N173: 2 | S173: 3519
A174: 172 | B174: 181 | C174: Nyomdai tevékenység | E174: 3 | F174: 1 | G174: 3 | H174: 2 | I174: 2 | J174: 2 | K174: 2 | L174: 2 | M174: 3 | N174: 2 | S174: 3521
A175: 173 | B175: 856 | C175: Oktatást kiegészítő tevékenység | E175: 3 | F175: 4 | G175: 4 | H175: 4 | I175: 4 | J175: 4 | K175: 2 | L175: 4 | M175: 3 | N175: 4 | S175: 3524
A176: 174 | B176: 267 | C176: Optikai eszköz gyártása | E176: 3 | F176: 1 | G176: 2 | H176: 2 | I176: 2 | J176: 3 | K176: 2 | L176: 0 | M176: 3 | N176: 2 | S176: 3525
A177: 175 | B177: 325 | C177: Orvosi eszköz gyártása | E177: 3 | F177: 2 | G177: 3 | H177: 2 | I177: 2 | J177: 3 | K177: 0 | L177: 0 | M177: 3 | N177: 2 | S177: 3526
A178: 176 | B178: 551002 | C178: Panzió szolgáltatás | E178: 2 | F178: 3 | G178: 2 | H178: 2 | I178: 2 | J178: 2 | K178: 2 | L178: 1 | M178: 2 | N178: 2 | S178: 3527
A179: 177 | B179: 960903 | C179: Partnerközvetítés, társkeresés | E179: 2 | F179: 1 | G179: 1 | H179: 3 | I179: 2 | J179: 3 | K179: 0 | L179: 3 | M179: 3 | N179: 3 | S179: 3528
A180: 178 | B180: 107 | C180: Pékáru, tésztafélék gyártása | E180: 3 | F180: 2 | G180: 3 | H180: 2 | I180: 3 | J180: 2 | K180: 3 | L180: 0 | M180: 3 | N180: 2 | S180: 3529
A181: 179 | B181: 661 | C181: Pénzügyi kiegészítő tevékenység (kivéve: biztosítás, nyugdíjalap) | E181: 3 | F181: 5 | G181: 2 | H181: 1 | I181: 1 | J181: 1 | K181: 0 | L181: 0 | M181: 2 | N181: 2 | S181: 3530
A182: 180 | B182: 732 | C182: Piac-, közvélemény-kutatás | E182: 2 | F182: 1 | G182: 2 | H182: 2 | I182: 2 | J182: 2 | K182: 0 | L182: 3 | M182: 3 | N182: 3 | S182: 3531
A183: 181 | B183: 234 | C183: Porcelán, kerámiatermék gyártása | E183: 3 | F183: 2 | G183: 3 | H183: 2 | I183: 3 | J183: 2 | K183: 3 | L183: 0 | M183: 3 | N183: 3 | S183: 3532
A184: 182 | B184: 531 | C184: Postai tevékenység (egyetemes kötelezettséggel) | E184: 2 | F184: 2 | G184: 1 | H184: 2 | I184: 4 | J184: 2 | K184: 0 | L184: 1 | M184: 3 | N184: 3 | S184: 3533
A185: 183 | B185: 601 | C185: Rádióműsor-szolgáltatás | E185: 3 | F185: 2 | G185: 2 | H185: 2 | I185: 2 | J185: 2 | K185: 0 | L185: 3 | M185: 2 | N185: 2 | S185: 3534
A186: 184 | B186: 521 | C186: Raktározás, tárolás | E186: 4 | F186: 4 | G186: 3 | H186: 2 | I186: 3 | J186: 2 | K186: 1 | L186: 1 | M186: 3 | N186: 3 | S186: 3535
A187: 185 | B187: 731 | C187: Reklám | E187: 4 | F187: 4 | G187: 2 | H187: 3 | I187: 3 | J187: 3 | K187: 0 | L187: 3 | M187: 3 | N187: 3 | S187: 8808
A188: 186 | B188: 562 | C188: Rendezvényi étkeztetés és egyéb vendéglátás | E188: 4 | F188: 4 | G188: 4 | H188: 5 | I188: 4 | J188: 5 | K188: 5 | L188: 0 | M188: 3 | N188: 3 | S188: 8809
A189: 187 | B189: 141 | C189: Ruházat gyártása (kivéve: szőrmeruházat) | E189: 4 | F189: 2 | G189: 4 | H189: 2 | I189: 2 | J189: 2 | K189: 2 | L189: 0 | M189: 3 | N189: 2 | S189: 8831
A190: 188 | B190: 4771 | C190: Ruházat kiskereskedelem | E190: 4 | F190: 4 | G190: 3 | H190: 4 | I190: 3 | J190: 4 | K190: 4 | L190: 0 | M190: 3 | N190: 3 | S190: 4246
A191: 189 | B191: 952911 | C191: Ruházati és egyéb konfekcionált termékek javítása | E191: 2 | F191: 2 | G191: 1 | H191: 2 | I191: 1 | J191: 2 | K191: 1 | L191: 1 | M191: 4 | N191: 2 | S191: 4405
A192: 190 | B192: 681 | C192: Saját tulajdonú ingatlan adásvétele | E192: 2 | F192: 2 | G192: 2 | H192: 3 | I192: 3 | J192: 3 | K192: 0 | L192: 0 | M192: 2 | N192: 2 | S192: 4412
A193: 191 | B193: 682 | C193: Saját tulajdonú, bérelt ingatlan bérbeadása, üzemeltetése | E193: 2 | F193: 2 | G193: 2 | H193: 3 | I193: 2 | J193: 3 | K193: 0 | L193: 3 | M193: 2 | N193: 2 | S193: 4431
A194: 192 | B194: 323 | C194: Sportszergyártás | E194: 4 | F194: 2 | G194: 3 | H194: 2 | I194: 3 | J194: 2 | K194: 4 | L194: 0 | M194: 2 | N194: 2 | S194: 4432
A195: 193 | B195: 4764 | C195: Sportszer-kiskereskedelem | E195: 3 | F195: 3 | G195: 3 | H195: 3 | I195: 2 | J195: 3 | K195: 2 | L195: 0 | M195: 2 | N195: 2 | S195: 4433
A196: 194 | B196: 931 | C196: Sporttevékenység | E196: 4 | F196: 2 | G196: 4 | H196: 4 | I196: 3 | J196: 4 | K196: 0 | L196: 2 | M196: 3 | N196: 4 | S196: 4481
A197: 195 | B197: 8622 | C197: Szakorvosi járóbeteg-ellátás | E197: 2 | F197: 1 | G197: 2 | H197: 3 | I197: 3 | J197: 3 | K197: 0 | L197: 0 | M197: 5 | N197: 3 | S197: 4551
A198: 196 | B198: 942 | C198: Szakszervezeti tevékenység | E198: 2 | F198: 2 | G198: 2 | H198: 2 | I198: 2 | J198: 4 | K198: 0 | L198: 0 | M198: 3 | N198: 4 | S198: 7621
A199: 197 | B199: 551 | C199: Szállodai szolgáltatás | E199: 2 | F199: 2 | G199: 2 | H199: 2 | I199: 2 | J199: 2 | K199: 2 | L199: 1 | M199: 2 | N199: 2 | S199: 7622
A200: 198 | B200: 951 | C200: Számítógép, kommunikációs eszköz javítása | E200: 3 | F200: 2 | G200: 2 | H200: 2 | I200: 2 | J200: 2 | K200: 2 | L200: 2 | M200: 4 | N200: 2 | S200: 7623
... 47 more rows

Sheet 1.telephely
A1: KVB-13 díjkalkuláció
A4: Telephely megnevezése | D4: Telephely és kockázatviselés helye
A5: Tevékenység megnevezése | D5: Telephely irányítószám
A6: Kódja | B6: =VLOOKUP(Tarifa!O3,Tarifa!A3:L246,2) -> 310 | D6: Település címe
A9: Alapadatok | D9: Felelősségbiztosítási limitek | F9: Felelősségbiztosítási záradék limitek
A10: Éves árbevétel (e Ft) | B10: 0 | D10: Általános és épülethasználói felelősségbiztosítás | F10: Tanuló baleseti és felelősségbiztosítás | G10: 5 millió Ft
A11: Alkalmazottak száma (fő) | B11: 0 | D11: Munkáltatói felelősségbiztosítás | F11: Szálloda üzemeltetői, szállásadói felelősségbiztosítás
A12: Éves forgalom (e Ft) | B12: 0 | D12: Termékfelelősség biztosítás | F12: Gépjárműjavítók felelősségbiztosítása
A13: Éves bérleti díj (e Ft) | B13: 0 | D13: Bérlői felelősségbiztosítás | F13: Gépjármű eredetiségvizsgálatot végzők felelősségbiztosítása | G13: 5 millió Ft
A14: Éves bérbeadásból származó forgalom (e Ft) | B14: 0 | D14: Szolgáltatói felelősségbiztosítás | F14: Szolgáltatás tárgyában okozott károk biztosítása | G14: 5 millió Ft
D15: Bérbeadói felelősségbiztosítás
A16: Tárgyi eszközk értékelésének módja | D16: Környezetszennyezési felelősségbiztosítás
B18: Biztosított vagyontárgyak biztosítási összege (e Ft) | C18: Díj | D18: Betöréses lopás és rablás biztosítás
A19: Épület, építmény | B19: 0
A20: Egyéb tárgyi eszközök | B20: 0 | E20: FALSE
A21: Saját készletek | B21: 0 | E21: FALSE
A22: Idegen készletek | B22: 0
A23: Készpénz | B23: 0 | E23: FALSE | F23: Díjkategória besorolás
A24: Összesen | B24: =IF(OR(B19>0,B20>0),SUM(B19:B23),0) -> 0 | C24: =IF(B24+'2.telephely'!B21+'3.telephely'!B21+'4.telephely'!B21+'5.telephely'!B21>500000,"A vállalkozás teljes vagyonértéke nem haladja meg a 500 millió Ft-ot!",B24*Tarifa!S9) -> 0 | F24: =Tarifa!S8 -> 5
E25: Vidéki díjengedmény
A26: Betöréses lopás és rablás biztosítás (e Ft) | C26: =IF(C24=0,0,((IF(E20=TRUE,B20,0))+(IF(E21=TRUE,SUM(B21:B22),0))+(IF(E23=TRUE,B23,0)))*Tarifa!S16*Tarifa!S14) -> 0 | E26: =IF(Tarifa!S13="Vidék","Igen","-") -> - | F26: =Tarifa!S15 -> 2
A28: Irodai és kereskedelmi elektronikus berendezések, eszközök biztosítása (e Ft) | B28: 0 | C28: =IF(B28>10000,0,(IF(C24=0,0,IF(E28=TRUE,B28*Tarifa!AB20,0)))) -> 0 | E28: FALSE
A30: Üzemszünet biztosítás | B30: =B10 -> 0 | C30: =IF(C24=0,0,IF(E30=TRUE,B30*Tarifa!T22,0)) -> 0 | E30: FALSE | F30: =Tarifa!T21 -> 5
A32: Szállítmány biztosítás | B32: 0 | C32: =IF(B32>2000,0,(IF(C24=0,0,IF(E32=TRUE,B32*Tarifa!AB21,0)))) -> 0 | E32: FALSE
A34: Vakolat károk biztosítása | B34: =B19 -> 0 | C34: =IF(C24=0,0,IF(E34=TRUE,B34*Tarifa!AE20,0)) -> 0 | E34: FALSE
A36: Tetőbeázási károk biztosítása | B36: =B19 -> 0 | C36: =IF(C24=0,0,IF(E36=TRUE,B36*Tarifa!AE21,0)) -> 0 | E36: FALSE
A38: Vandalizmus károk biztosítása (e Ft) | B38: 0 | C38: =IF(B38>(B24*0.1),0,(IF(C24=0,0,IF(E38=TRUE,B38*Tarifa!AH20,0)))) -> 0 | E38: FALSE
A40: Különleges üvegek üvegtörés biztosítása (e Ft) | B40: 0 | C40: =IF(C24=0,0,IF(E40=TRUE,B40*Tarifa!AH21,0)) -> 0 | E40: FALSE
A42: Általános és épülethasználói felelősségbiztosítás (fő) | B42: =B11 -> 0 | C42: =IF(C24=0,0,IF(E42=TRUE,B42*Tarifa!S29,0)) -> 0 | E42: FALSE | F42: =Tarifa!S27 -> 2
A43: Tanuló baleseti és felelősségbiztosítás (fő) | B43: 0 | C43: =IF(C24=0,0,IF(C42>0,IF(E43=TRUE,Tarifa!AE44,0),0)) -> 0 | E43: FALSE | F43: =Tarifa!AA39 -> 2 | G43: =Tarifa!AG39 -> 4
A44: Munkáltatói felelősségbiztosítás | B44: =B11 -> 0 | C44: =IF(C24=0,0,IF(C42>0,IF(E44=TRUE,B44*Tarifa!S40,0),0)) -> 0 | E44: FALSE | F44: =Tarifa!S38 -> 4
A45: Termékfelelősség biztosítás | B45: =B12 -> 0 | C45: =IF(C24=0,0,IF(C42>0,IF(E45=TRUE,((B45*Tarifa!S51)/1000),0),0)) -> 0 | E45: FALSE | F45: =Tarifa!S49 -> 4
A46: Bérlői felelősségbiztosítás | B46: =B13 -> 0 | C46: =IF(C24=0,0,IF(C42>0,IF(E46=TRUE,((B46*Tarifa!S63)/1000),0),0)) -> 0 | E46: FALSE | F46: =Tarifa!S61 -> 2
A47: Szolgáltatói felelősségbiztosítás | B47: =B12 -> 0 | C47: =IF(C24=0,0,IF(C42>0,IF(E47=TRUE,((B47*Tarifa!S75)/1000),0),0)) -> 0 | E47: FALSE | F47: =Tarifa!S73 -> 1
A48: Szálloda üzemeltetői, szállásadói felelősségbiztosítása | C48: =IF(E48=FALSE,0,C47) -> 0 | E48: FALSE
A49: Gépjárműjavítók felelősségbiztosítása | B49: =B12 -> 0 | C49: =IF(C47=0,0,IF(E49=FALSE,0,Tarifa!AA55)) -> 0 | E49: FALSE
A50: Gépjármű-eredetiségvizsgálatot végzők felelősségbiztosítása | C50: =IF(C47=0,0,IF(E50=FALSE,0,Tarifa!AB51)) -> 0 | E50: FALSE
A51: Szolgáltatás tárgyában okozott károk biztosítása | C51: =IF(E51=FALSE,0,C47) -> 0 | E51: FALSE
A52: Bérbeadói felelősségbiztosítás | B52: =B14 -> 0 | C52: =IF(C24=0,0,IF(C42>0,IF(E52=TRUE,((B52*Tarifa!S87)/1000),0),0)) -> 0 | E52: FALSE | F52: =Tarifa!S85 -> 3
A53: Környezetszennyezési felelősségbiztosítás | B53: =B12 -> 0 | C53: =IF(C24=0,0,IF(C42>0,IF(E53=TRUE,((B12*Tarifa!S99)/1000),0),0)) -> 0 | E53: FALSE | F53: =Tarifa!S97 -> 3
A55: Éves díj 1. telephelyre | C55: =C24+C26+C28+C30+C32+C34+C36+C38+C40+C42+C43+C44+C45+C46+C47+C48+C49+C50+C51+C52+C53 -> 0
A57: Volumen engedmény | B57: =VLOOKUP(1,Tarifa!AA31:AE36,5,FALSE) -> Nincs
A58: Csomag engedmény | B58: =VLOOKUP(1,Tarifa!AE16:AI18,5,FALSE) -> Nincs
A59: Lojalitás engedmény
A60: Díjeltérítési szorzó szerinti engedmény | C60: 1
A61: Központi díjeltérítési szorzó szerinti engedmény | C61: 1
A63: Általános adatok
A64: Díjfizetés gyakorisága
A65: Díjfizetés módja
A67: Fizetendő éves biztosítási díj | B67: =IF(AND(Tarifa!AC8="havi",ROUND((C55+'2.telephely'!C52+'3.telephely'!C52+'4.telephely'!C52+'5.telephely'!C52)*Tarifa!Z8*Tarifa!AP12*Tarifa!AB12,0)<24000),24000,IF(AND(Tarifa!AC8<>"havi",ROUND((C55+'2.telephely'!C52+'3.telephely'!C52+'4.telephely'!C52+'5.telephely'!C52)*Tarifa!Z8*Tarifa!AP12*Tarifa!AB12,0)<12000),12000,ROUND((C55+'2.telephely'!C52+'3.telephely'!C52+'4.telephely'!C52+'5.telephely'!C52)*Tarifa!Z8*Tarifa!AP12*Tarifa!AB12,0))) -> 12000

Sheet 2.telephely
A1: Telephely megnevezése | D1: Telephely és kockázatviselés helye
A2: Tevékenység megnevezése | D2: Telephely irányítószám
A3: Kódja | B3: =VLOOKUP(Tarifa!O4,Tarifa!A3:L246,2) -> 477813 | D3: Település címe
A6: Alapadatok | D6: Felelősségbiztosítási limitek | F6: Felelősségbiztosítási záradék limitek
A7: Éves árbevétel (e Ft) | B7: 0 | D7: Általános és épülethasználói felelősségbiztosítás | F7: Tanuló baleseti és felelősségbiztosítás | G7: 5 millió Ft
A8: Alkalmazottak száma (fő) | B8: 0 | D8: Munkáltatói felelősségbiztosítás | F8: Szálloda üzemeltetői, szállásadói felelősségbiztosítás
A9: Éves forgalom (e Ft) | B9: 0 | D9: Termékfelelősség biztosítás | F9: Gépjárműjavítók felelősségbiztosítása
A10: Éves bérleti díj (e Ft) | B10: 0 | D10: Bérlői felelősségbiztosítás | F10: Gépjármű eredetiségvizsgálatot végzők felelősségbiztosítása | G10: 5 millió Ft
A11: Éves bérbeadásból származó forgalom (e Ft) | B11: 0 | D11: Szolgáltatói felelősségbiztosítás | F11: Szolgáltatás tárgyában okozott károk biztosítása | G11: 5 millió Ft
D12: Bérbeadói felelősségbiztosítás
A13: Tárgyi eszközk értékelésének módja | D13: Környezetszennyezési felelősségbiztosítás
B15: Biztosítási összeg (e Ft) | C15: Díj | D15: Betöréses lopás és rablás biztosítás
A16: Épület, építmény | B16: 0
A17: Egyéb tárgyi eszközök | B17: 0 | E17: FALSE
A18: Saját készletek | B18: 0 | E18: FALSE
A19: Idegen készletek | B19: 0
A20: Készpénz | B20: 0 | E20: FALSE | F20: Díjkategória besorolás
A21: Összesen | B21: =IF(OR(B16>0,B17>0),SUM(B16:B20),0) -> 0 | C21: =IF('1.telephely'!B24+'2.telephely'!B21+'3.telephely'!B21+'4.telephely'!B21+'5.telephely'!B21>500000,"A vállalkozás teljes vagyonértéke nem haladja meg a 500 millió Ft-ot!",B21*Tarifa!T9) -> 0 | F21: =Tarifa!T8 -> 3
E22: Vidéki díjengedmény
A23: Betöréses lopás és rablás biztosítás (e Ft) | C23: =IF(C21=0,0,((IF(E17=TRUE,B17,0))+(IF(E18=TRUE,SUM(B18:B19),0))+(IF(E20=TRUE,B20,0)))*Tarifa!T16*Tarifa!T14) -> 0 | E23: =IF(Tarifa!T13="Vidék","Igen","-") -> - | F23: =Tarifa!T15 -> 2
A25: Irodai és kereskedelmi elektronikus berendezések, eszközök biztosítása (e Ft) | B25: 0 | C25: =IF(B25>10000,0,(IF(C21=0,0,IF(E25=TRUE,B25*Tarifa!AB20,0)))) -> 0 | E25: FALSE
A27: Üzemszünet biztosítás (e Ft) | B27: =B7 -> 0 | C27: =IF(C21=0,0,IF(E27=TRUE,B27*Tarifa!U22,0)) -> 0 | E27: FALSE | F27: =Tarifa!U21 -> 2
A29: Szállítmány biztosítás (e Ft) | B29: 0 | C29: =IF(B29>2000,0,(IF(C21=0,0,IF(E29=TRUE,B29*Tarifa!AB21,0)))) -> 0 | E29: FALSE
A31: Vakolat károk biztosítása (e Ft) | B31: =B16 -> 0 | C31: =IF(C21=0,0,IF(E31=TRUE,B31*Tarifa!AE20,0)) -> 0 | E31: FALSE
A33: Tetőbeázási károk biztosítása (e Ft) | B33: =B16 -> 0 | C33: =IF(C21=0,0,IF(E33=TRUE,B33*Tarifa!AE21,0)) -> 0 | E33: FALSE
A35: Vandalizmus károk biztosítása (e Ft) | B35: 0 | C35: =IF(B35>(B21*0.1),0,(IF(C21=0,0,IF(E35=TRUE,B35*Tarifa!AH20,0)))) -> 0 | E35: FALSE
A37: Különleges üvegek üvegtörés biztosítása (e Ft) | B37: 0 | C37: =IF(C21=0,0,IF(E37=TRUE,B37*Tarifa!AH21,0)) -> 0 | E37: FALSE
A39: Általános és épülethasználói felelősségbiztosítás (fő) | B39: =B8 -> 0 | C39: =IF(C21=0,0,IF(E39=TRUE,B39*Tarifa!T29,0)) -> 0 | E39: FALSE | F39: =Tarifa!T27 -> 3
A40: Tanuló baleseti és felelősségbiztosítás (fő) | C40: =IF(C21=0,0,IF(C39>0,IF(E40=TRUE,Tarifa!AE45,0),0)) -> 0 | E40: FALSE | F40: =Tarifa!AB39 -> 3 | G40: =Tarifa!AH39 -> 2
A41: Munkáltatói felelősségbiztosítás | B41: =B8 -> 0 | C41: =IF(C21=0,0,IF(C39>0,IF(E41=TRUE,B41*Tarifa!T40,0),0)) -> 0 | E41: FALSE | F41: =Tarifa!T38 -> 2
A42: Termékfelelősség biztosítás | B42: =B9 -> 0 | C42: =IF(C21=0,0,IF(C39>0,IF(E42=TRUE,((B42*Tarifa!T51)/1000),0),0)) -> 0 | E42: FALSE | F42: =Tarifa!T49 -> 3
A43: Bérlői felelősségbiztosítás | B43: =B10 -> 0 | C43: =IF(C21=0,0,IF(C39>0,IF(E43=TRUE,((B43*Tarifa!T63)/1000),0),0)) -> 0 | E43: FALSE | F43: =Tarifa!T61 -> 3
A44: Szolgáltatói felelősségbiztosítás | B44: =B9 -> 0 | C44: =IF(C21=0,0,IF(C39>0,IF(E44=TRUE,((B44*Tarifa!T75)/1000),0),0)) -> 0 | E44: FALSE | F44: =Tarifa!T73 -> 0
A45: Szálloda üzemeltetői, szállásadói felelősségbiztosítása | C45: =IF(E45=FALSE,0,C44) -> 0 | E45: FALSE
A46: Gépjárműjavítók felelősségbiztosítása | B46: =B9 -> 0 | C46: =IF(C44=0,0,IF(E46=FALSE,0,Tarifa!AB55)) -> 0 | E46: FALSE
A47: Gépjármű-eredetiségvizsgálatot végzők felelősségbiztosítása | C47: =IF(C44=0,0,IF(E47=FALSE,0,Tarifa!AB51)) -> 0 | E47: FALSE
A48: Szolgáltatás tárgyában okozott károk biztosítása | C48: =IF(E48=FALSE,0,C44) -> 0 | E48: FALSE
A49: Bérbeadói felelősségbiztosítás | B49: =B11 -> 0 | C49: =IF(C21=0,0,IF(C39>0,IF(E49=TRUE,((B49*Tarifa!T87)/1000),0),0)) -> 0 | E49: FALSE | F49: =Tarifa!T85 -> 3
A50: Környezetszennyezési felelősségbiztosítás | B50: =B9 -> 0 | C50: =IF(C21=0,0,IF(C39>0,IF(E50=TRUE,((B9*Tarifa!T99)/1000),0),0)) -> 0 | E50: FALSE | F50: =Tarifa!T97 -> 3
A52: Éves díj 2. telephelyre | C52: =C21+C23+C25+C27+C29+C31+C33+C35+C37+C39+C40+C41+C42+C43+C44+C45+C46+C47+C48+C49+C50 -> 0

Sheet 3.telephely
A1: Telephely megnevezése | D1: Telephely és kockázatviselés helye
A2: Tevékenység megnevezése | D2: Telephely irányítószám
A3: Kódja | B3: =VLOOKUP(Tarifa!O5,Tarifa!A3:L246,2) -> 182 | D3: Település címe
A6: Alapadatok | D6: Felelősségbiztosítási limitek | F6: Felelősségbiztosítási záradék limitek
A7: Éves árbevétel (e Ft) | B7: 0 | D7: Általános és épülethasználói felelősségbiztosítás | F7: Tanuló baleseti és felelősségbiztosítás | G7: 5 millió Ft
A8: Alkalmazottak száma | B8: 0 | D8: Munkáltatói felelősségbiztosítás | F8: Szálloda üzemeltetői, szállásadói felelősségbiztosítás
A9: Éves forgalom (e Ft) | B9: 0 | D9: Termékfelelősség biztosítás | F9: Gépjárműjavítók felelősségbiztosítása
A10: Éves bérleti díj (e Ft) | B10: 0 | D10: Bérlői felelősségbiztosítás | F10: Gépjármű eredetiségvizsgálatot végzők felelősségbiztosítása | G10: 5 millió Ft
A11: Éves bérbeadásból származó forgalom (e Ft) | B11: 0 | D11: Szolgáltatói felelősségbiztosítás | F11: Szolgáltatás tárgyában okozott károk biztosítása | G11: 5 millió Ft
D12: Bérbeadói felelősségbiztosítás
A13: Tárgyi eszközk értékelésének módja | D13: Környezetszennyezési felelősségbiztosítás
B15: Biztosítási összeg (e Ft) | C15: Díj | D15: Betöréses lopás és rablás biztosítás
A16: Épület, építmény | B16: 0
A17: Egyéb tárgyi eszközök | B17: 0 | E17: FALSE
A18: Saját készletek | B18: 0 | E18: FALSE
A19: Idegen készletek | B19: 0
A20: Készpénz | B20: 0 | E20: FALSE | F20: Díjkategória besorolás
A21: Összesen | B21: =IF(OR(B16>0,B17>0),SUM(B16:B20),0) -> 0 | C21: =IF('1.telephely'!B24+'2.telephely'!B21+'3.telephely'!B21+'4.telephely'!B21+'5.telephely'!B21>500000,"A vállalkozás teljes vagyonértéke nem haladja meg a 500 millió Ft-ot!",B21*Tarifa!U9) -> 0 | F21: =Tarifa!U8 -> 3
E22: Vidéki díjengedmény
A23: Betöréses lopás és rablás biztosítás (e Ft) | C23: =IF(C21=0,0,((IF(E17=TRUE,B17,0))+(IF(E18=TRUE,SUM(B18:B19),0))+(IF(E20=TRUE,B20,0)))*Tarifa!U16*Tarifa!U14) -> 0 | E23: =IF(Tarifa!U13="Vidék","Igen","-") -> - | F23: =Tarifa!U15 -> 1
A25: Irodai és kereskedelmi elektronikus berendezések, eszközök biztosítása (e Ft) | B25: 0 | C25: =IF(B25>10000,0,(IF(C21=0,0,IF(E25=TRUE,B25*Tarifa!AB20,0)))) -> 0 | E25: FALSE
A27: Üzemszünet biztosítás (e Ft) | B27: =B7 -> 0 | C27: =IF(C21=0,0,IF(E27=TRUE,B27*Tarifa!V22,0)) -> 0 | E27: FALSE | F27: =Tarifa!V21 -> 3
A29: Szállítmány biztosítás (e Ft) | B29: 0 | C29: =IF(B29>2000,0,(IF(C21=0,0,IF(E29=TRUE,B29*Tarifa!AB21,0)))) -> 0 | E29: FALSE
A31: Vakolat károk biztosítása (e Ft) | B31: =B16 -> 0 | C31: =IF(C21=0,0,IF(E31=TRUE,B31*Tarifa!AE20,0)) -> 0 | E31: FALSE
A33: Tetőbeázási károk biztosítása (e Ft) | B33: =B16 -> 0 | C33: =IF(C21=0,0,IF(E33=TRUE,B33*Tarifa!AE21,0)) -> 0 | E33: FALSE
A35: Vandalizmus károk biztosítása (e Ft) | B35: 0 | C35: =IF(B35>(B21*0.1),0,(IF(C21=0,0,IF(E35=TRUE,B35*Tarifa!AH20,0)))) -> 0 | E35: FALSE
A37: Különleges üvegek üvegtörés biztosítása (e Ft) | B37: 0 | C37: =IF(C21=0,0,IF(E37=TRUE,B37*Tarifa!AH21,0)) -> 0 | E37: FALSE
A39: Általános és épülethasználói felelősségbiztosítás (fő) | B39: =B8 -> 0 | C39: =IF(C21=0,0,IF(E39=TRUE,B39*Tarifa!U29,0)) -> 0 | E39: FALSE | F39: =Tarifa!U27 -> 2
A40: Tanuló baleseti és felelősségbiztosítás (fő) | B40: 0 | C40: =IF(C21=0,0,IF(C39>0,IF(E40=TRUE,Tarifa!AE46,0),0)) -> 0 | E40: FALSE | F40: =Tarifa!AC39 -> 2 | G40: =Tarifa!AI39 -> 2
A41: Munkáltatói felelősségbiztosítás | B41: =B8 -> 0 | C41: =IF(C21=0,0,IF(C39>0,IF(E41=TRUE,B41*Tarifa!U40,0),0)) -> 0 | E41: FALSE | F41: =Tarifa!U38 -> 2
A42: Termékfelelősség biztosítás | B42: =B9 -> 0 | C42: =IF(C21=0,0,IF(C39>0,IF(E42=TRUE,((B42*Tarifa!U51)/1000),0),0)) -> 0 | E42: FALSE | F42: =Tarifa!U49 -> 2
A43: Bérlői felelősségbiztosítás | B43: =B10 -> 0 | C43: =IF(C21=0,0,IF(C39>0,IF(E43=TRUE,((B43*Tarifa!U63)/1000),0),0)) -> 0 | E43: FALSE | F43: =Tarifa!U61 -> 2
A44: Szolgáltatói felelősségbiztosítás | B44: =B9 -> 0 | C44: =IF(C21=0,0,IF(C39>0,IF(E44=TRUE,((B44*Tarifa!U75)/1000),0),0)) -> 0 | E44: FALSE | F44: =Tarifa!U73 -> 2
A45: Szálloda üzemeltetői, szállásadói felelősségbiztosítása | C45: =IF(E45=FALSE,0,C44) -> 0 | E45: FALSE
A46: Gépjárműjavítók felelősségbiztosítása | B46: =B9 -> 0 | C46: =IF(C44=0,0,IF(E46=FALSE,0,Tarifa!AC55)) -> 0 | E46: FALSE
A47: Gépjármű-eredetiségvizsgálatot végzők felelősségbiztosítása | C47: =IF(C44=0,0,IF(E47=FALSE,0,Tarifa!AB51)) -> 0 | E47: FALSE
A48: Szolgáltatás tárgyában okozott károk biztosítása | C48: =IF(E48=FALSE,0,C44) -> 0 | E48: FALSE
A49: Bérbeadói felelősségbiztosítás | B49: =B11 -> 0 | C49: =IF(C21=0,0,IF(C39>0,IF(E49=TRUE,((B49*Tarifa!U87)/1000),0),0)) -> 0 | E49: FALSE | F49: =Tarifa!U85 -> 2
A50: Környezetszennyezési felelősségbiztosítás | B50: =B9 -> 0 | C50: =IF(C21=0,0,IF(C39>0,IF(E50=TRUE,((B9*Tarifa!U99)/1000),0),0)) -> 0 | E50: FALSE | F50: =Tarifa!U97 -> 3
A52: Éves díj 3. telephelyre | C52: =C21+C23+C25+C27+C29+C31+C33+C35+C37+C39+C40+C41+C42+C43+C44+C45+C46+C47+C48+C49+C50 -> 0

Sheet 4.telephely
A1: Telephely megnevezése | D1: Telephely és kockázatviselés helye
A2: Tevékenység megnevezése | D2: Telephely irányítószám
A3: Kódja | B3: =VLOOKUP(Tarifa!O6,Tarifa!A3:L246,2) -> 182 | D3: Település címe
A6: Alapadatok | D6: Felelősségbiztosítási limitek | F6: Felelősségbiztosítási záradék limitek
A7: Éves árbevétel (e Ft) | B7: 0 | D7: Általános és épülethasználói felelősségbiztosítás | F7: Tanuló baleseti és felelősségbiztosítás | G7: 5 millió Ft
A8: Alkalmazottak száma (fő) | B8: 0 | D8: Munkáltatói felelősségbiztosítás | F8: Szálloda üzemeltetői, szállásadói felelősségbiztosítás
A9: Éves forgalom (e Ft) | B9: 0 | D9: Termékfelelősség biztosítás | F9: Gépjárműjavítók felelősségbiztosítása
A10: Éves bérleti díj (e Ft) | B10: 0 | D10: Bérlői felelősségbiztosítás | F10: Gépjármű eredetiségvizsgálatot végzők felelősségbiztosítása | G10: 5 millió Ft
A11: Éves bérbeadásból származó forgalom (e Ft) | B11: 0 | D11: Szolgáltatói felelősségbiztosítás | F11: Szolgáltatás tárgyában okozott károk biztosítása | G11: 5 millió Ft
D12: Bérbeadói felelősségbiztosítás
A13: Tárgyi eszközk értékelésének módja | D13: Környezetszennyezési felelősségbiztosítás
B15: Biztosított vagyontárgyak biztosítási összege (e Ft) | C15: Díj | D15: Betöréses lopás és rablás biztosítás
A16: Épület, építmény | B16: 0
A17: Egyéb tárgyi eszközök | B17: 0 | E17: FALSE
A18: Saját készletek | B18: 0 | E18: FALSE
A19: Idegen készletek | B19: 0
A20: Készpénz | B20: 0 | E20: FALSE | F20: Díjkategória besorolás
A21: Összesen | B21: =IF(OR(B16>0,B17>0),SUM(B16:B20),0) -> 0 | C21: =IF('1.telephely'!B24+'2.telephely'!B21+'3.telephely'!B21+'4.telephely'!B21+'5.telephely'!B21>500000,"A vállalkozás teljes vagyonértéke nem haladja meg a 500 millió Ft-ot!",B21*Tarifa!V9) -> 0 | F21: =Tarifa!V8 -> 3
E22: Vidéki díjengedmény
A23: Betöréses lopás és rablás biztosítás (e Ft) | C23: =IF(C21=0,0,((IF(E17=TRUE,B17,0))+(IF(E18=TRUE,SUM(B18:B19),0))+(IF(E20=TRUE,B20,0)))*Tarifa!V16*Tarifa!V14) -> 0 | E23: =IF(Tarifa!V13="Vidék","Igen","-") -> - | F23: =Tarifa!V15 -> 1
A25: Irodai és kereskedelmi elektronikus berendezések, eszközök biztosítása (e Ft) | B25: 0 | C25: =IF(B25>10000,0,(IF(C21=0,0,IF(E25=TRUE,B25*Tarifa!AB20,0)))) -> 0 | E25: FALSE
A27: Üzemszünet biztosítás (e Ft) | B27: =B7 -> 0 | C27: =IF(C21=0,0,IF(E27=TRUE,B27*Tarifa!W22,0)) -> 0 | E27: FALSE | F27: =Tarifa!W21 -> 3
A29: Szállítmány biztosítás (e Ft) | B29: 0 | C29: =IF(B29>2000,0,(IF(C21=0,0,IF(E29=TRUE,B29*Tarifa!AB21,0)))) -> 0 | E29: FALSE
A31: Vakolat károk biztosítása (e Ft) | B31: =B16 -> 0 | C31: =IF(C21=0,0,IF(E31=TRUE,B31*Tarifa!AE20,0)) -> 0 | E31: FALSE
A33: Tetőbeázási károk biztosítása (e Ft) | B33: =B16 -> 0 | C33: =IF(C21=0,0,IF(E33=TRUE,B33*Tarifa!AE21,0)) -> 0 | E33: FALSE
A35: Vandalizmus károk biztosítása (e Ft) | B35: 0 | C35: =IF(B35>(B21*0.1),0,(IF(C21=0,0,IF(E35=TRUE,B35*Tarifa!AH20,0)))) -> 0 | E35: FALSE
A37: Különleges üvegek üvegtörés biztosítása (e Ft) | B37: 0 | C37: =IF(C21=0,0,IF(E37=TRUE,B37*Tarifa!AH21,0)) -> 0 | E37: FALSE
A39: Általános és épülethasználói felelősségbiztosítás (fő) | B39: =B8 -> 0 | C39: =IF(C21=0,0,IF(E39=TRUE,B39*Tarifa!V29,0)) -> 0 | E39: FALSE | F39: =Tarifa!V27 -> 2
A40: Tanuló baleseti és felelősségbiztosítás (fő) | B40: 0 | C40: =IF(C21=0,0,IF(C39>0,IF(E40=TRUE,Tarifa!AE47,0),0)) -> 0 | E40: FALSE | F40: =Tarifa!AD39 -> 2 | G40: =Tarifa!AJ39 -> 2
A41: Munkáltatói felelősségbiztosítás | B41: =B8 -> 0 | C41: =IF(C21=0,0,IF(C39>0,IF(E41=TRUE,B41*Tarifa!V40,0),0)) -> 0 | E41: FALSE | F41: =Tarifa!V38 -> 2
A42: Termékfelelősség biztosítás | B42: =B9 -> 0 | C42: =IF(C21=0,0,IF(C39>0,IF(E42=TRUE,((B42*Tarifa!V51)/1000),0),0)) -> 0 | E42: FALSE | F42: =Tarifa!V49 -> 2
A43: Bérlői felelősségbiztosítás | B43: =B10 -> 0 | C43: =IF(C21=0,0,IF(C39>0,IF(E43=TRUE,((B43*Tarifa!V63)/1000),0),0)) -> 0 | E43: FALSE | F43: =Tarifa!V61 -> 2
A44: Szolgáltatói felelősségbiztosítás | B44: =B9 -> 0 | C44: =IF(C21=0,0,IF(C39>0,IF(E44=TRUE,((B44*Tarifa!V75)/1000),0),0)) -> 0 | E44: FALSE | F44: =Tarifa!V73 -> 2
A45: Szálloda üzemeltetői, szállásadói felelősségbiztosítása | C45: =IF(E45=FALSE,0,C44) -> 0 | E45: FALSE
A46: Gépjárműjavítók felelősségbiztosítása | B46: =B9 -> 0 | C46: =IF(C44=0,0,IF(E46=FALSE,0,Tarifa!AD55)) -> 0 | E46: FALSE
A47: Gépjármű-eredetiségvizsgálatot végzők felelősségbiztosítása | C47: =IF(C44=0,0,IF(E47=FALSE,0,Tarifa!AB51)) -> 0 | E47: FALSE
A48: Szolgáltatás tárgyában okozott károk biztosítása | C48: =IF(E48=FALSE,0,C44) -> 0 | E48: FALSE
A49: Bérbeadói felelősségbiztosítás | B49: =B11 -> 0 | C49: =IF(C21=0,0,IF(C39>0,IF(E49=TRUE,((B49*Tarifa!V87)/1000),0),0)) -> 0 | E49: FALSE | F49: =Tarifa!V85 -> 2
A50: Környezetszennyezési felelősségbiztosítás | B50: =B9 -> 0 | C50: =IF(C21=0,0,IF(C39>0,IF(E50=TRUE,((B9*Tarifa!V99)/1000),0),0)) -> 0 | E50: FALSE | F50: =Tarifa!V97 -> 3
A52: Éves díj 4. telephelyre | C52: =C21+C23+C25+C27+C29+C31+C33+C35+C37+C39+C40+C41+C42+C43+C44+C45+C46+C47+C48+C49+C50 -> 0

Sheet 5.telephely
A1: Telephely megnevezése | D1: Telephely és kockázatviselés helye
A2: Tevékenység megnevezése | D2: Telephely irányítószám
A3: Kódja | B3: =VLOOKUP(Tarifa!O7,Tarifa!A3:L246,2) -> 643 | D3: Település címe
A6: Alapadatok | D6: Felelősségbiztosítási limitek | F6: Felelősségbiztosítási záradék limitek
A7: Éves árbevétel (e Ft) | B7: 0 | D7: Általános és épülethasználói felelősségbiztosítás | F7: Tanuló baleseti és felelősségbiztosítás | G7: 5 millió Ft
A8: Alkalmazottak száma (fő) | B8: 0 | D8: Munkáltatói felelősségbiztosítás | F8: Szálloda üzemeltetői, szállásadói felelősségbiztosítás
A9: Éves forgalom (e Ft) | B9: 0 | D9: Termékfelelősség biztosítás | F9: Gépjárműjavítók felelősségbiztosítása
A10: Éves bérleti díj (e Ft) | B10: 0 | D10: Bérlői felelősségbiztosítás | F10: Gépjármű eredetiségvizsgálatot végzők felelősségbiztosítása | G10: 5 millió Ft
A11: Éves bérbeadásból származó forgalom (e Ft) | B11: 0 | D11: Szolgáltatói felelősségbiztosítás | F11: Szolgáltatás tárgyában okozott károk biztosítása | G11: 5 millió Ft
D12: Bérbeadói felelősségbiztosítás
A13: Tárgyi eszközk értékelésének módja | D13: Környezetszennyezési felelősségbiztosítás
B15: Biztosított vagyontárgyak biztosítási összege (e Ft) | C15: Díj | D15: Betöréses lopás és rablás biztosítás
A16: Épület, építmény | B16: 0
A17: Egyéb tárgyi eszközök | B17: 0 | E17: FALSE
A18: Saját készletek | B18: 0 | E18: FALSE
A19: Idegen készletek | B19: 0
A20: Készpénz | B20: 0 | E20: FALSE | F20: Díjkategória besorolás
A21: Összesen | B21: =IF(OR(B16>0,B17>0),SUM(B16:B20),0) -> 0 | C21: =IF('1.telephely'!B24+'2.telephely'!B21+'3.telephely'!B21+'4.telephely'!B21+'5.telephely'!B21>500000,"A vállalkozás teljes vagyonértéke nem haladja meg a 500 millió Ft-ot!",B21*Tarifa!W9) -> 0 | F21: =Tarifa!W8 -> 2
E22: Vidéki díjengedmény
A23: Betöréses lopás és rablás biztosítás (e Ft) | C23: =IF(C21=0,0,((IF(E17=TRUE,B17,0))+(IF(E18=TRUE,SUM(B18:B19),0))+(IF(E20=TRUE,B20,0)))*Tarifa!W16*Tarifa!W14) -> 0 | E23: =IF(Tarifa!W13="Vidék","Igen","-") -> - | F23: =Tarifa!W15 -> 2
A25: Irodai és kereskedelmi elektronikus berendezések, eszközök biztosítása (e Ft) | B25: 0 | C25: =IF(B25>10000,0,(IF(C21=0,0,IF(E25=TRUE,B25*Tarifa!AB20,0)))) -> 0 | E25: FALSE
A27: Üzemszünet biztosítás (e Ft) | B27: =B7 -> 0 | C27: =IF(C21=0,0,IF(E27=TRUE,B27*Tarifa!X22,0)) -> 0 | E27: FALSE | F27: =Tarifa!X21 -> 1
A29: Szállítmány biztosítás (e Ft) | B29: 0 | C29: =IF(B29>2000,0,(IF(C21=0,0,IF(E29=TRUE,B29*Tarifa!AB21,0)))) -> 0 | E29: FALSE
A31: Vakolat károk biztosítása (e Ft) | B31: =B16 -> 0 | C31: =IF(C21=0,0,IF(E31=TRUE,B31*Tarifa!AE20,0)) -> 0 | E31: FALSE
A33: Tetőbeázási károk biztosítása (e Ft) | B33: =B16 -> 0 | C33: =IF(C21=0,0,IF(E33=TRUE,B33*Tarifa!AE21,0)) -> 0 | E33: FALSE
A35: Vandalizmus károk biztosítása (e Ft) | B35: 0 | C35: =IF(B35>(B21*0.1),0,(IF(C21=0,0,IF(E35=TRUE,B35*Tarifa!AH20,0)))) -> 0 | E35: FALSE
A37: Különleges üvegek üvegtörés biztosítása (e Ft) | B37: 0 | C37: =IF(C21=0,0,IF(E37=TRUE,B37*Tarifa!AH21,0)) -> 0 | E37: FALSE
A39: Általános és épülethasználói felelősségbiztosítás (fő) | B39: =B8 -> 0 | C39: =IF(C21=0,0,IF(E39=TRUE,B39*Tarifa!W29,0)) -> 0 | E39: FALSE | F39: =Tarifa!W27 -> 2
A40: Tanuló baleseti és felelősségbiztosítás (fő) | B40: 0 | C40: =IF(C21=0,0,IF(C39>0,IF(E40=TRUE,Tarifa!AE48,0),0)) -> 0 | E40: FALSE | F40: =Tarifa!AE39 -> 2 | G40: =Tarifa!AK39 -> 2
A41: Munkáltatói felelősségbiztosítás | B41: =B8 -> 0 | C41: =IF(C21=0,0,IF(C39>0,IF(E41=TRUE,B41*Tarifa!W40,0),0)) -> 0 | E41: FALSE | F41: =Tarifa!W38 -> 2
A42: Termékfelelősség biztosítás | B42: =B9 -> 0 | C42: =IF(C21=0,0,IF(C39>0,IF(E42=TRUE,((B42*Tarifa!W51)/1000),0),0)) -> 0 | E42: FALSE | F42: =Tarifa!W49 -> 0
A43: Bérlői felelősségbiztosítás | B43: =B10 -> 0 | C43: =IF(C21=0,0,IF(C39>0,IF(E43=TRUE,((B43*Tarifa!V63)/1000),0),0)) -> 0 | E43: FALSE | F43: =Tarifa!W61 -> 2
A44: Szolgáltatói felelősségbiztosítás | B44: =B9 -> 0 | C44: =IF(C21=0,0,IF(C39>0,IF(E44=TRUE,((B44*Tarifa!W75)/1000),0),0)) -> 0 | E44: FALSE | F44: =Tarifa!W73 -> 0
A45: Szálloda üzemeltetői, szállásadói felelősségbiztosítása | C45: =IF(E45=FALSE,0,C44) -> 0 | E45: FALSE
A46: Gépjárműjavítók felelősségbiztosítása | B46: =B9 -> 0 | C46: =IF(C44=0,0,IF(E46=FALSE,0,Tarifa!AE55)) -> 0 | E46: FALSE
A47: Gépjármű-eredetiségvizsgálatot végzők felelősségbiztosítása | C47: =IF(C44=0,0,IF(E47=FALSE,0,Tarifa!AB51)) -> 0 | E47: FALSE
A48: Szolgáltatás tárgyában okozott károk biztosítása | C48: =IF(E48=FALSE,0,C44) -> 0 | E48: FALSE
A49: Bérbeadói felelősségbiztosítás | B49: =B11 -> 0 | C49: =IF(C21=0,0,IF(C39>0,IF(E49=TRUE,((B49*Tarifa!W87)/1000),0),0)) -> 0 | E49: FALSE | F49: =Tarifa!W85 -> 3
A50: Környezetszennyezési felelősségbiztosítás | B50: =B9 -> 0 | C50: =IF(C21=0,0,IF(C39>0,IF(E50=TRUE,((B9*Tarifa!W99)/1000),0),0)) -> 0 | E50: FALSE | F50: =Tarifa!W97 -> 2
A52: Éves díj 5. telephelyre | C52: =C21+C23+C25+C27+C29+C31+C33+C35+C37+C39+C40+C41+C42+C43+C44+C45+C46+C47+C48+C49+C50 -> 0

Sheet Adatfelvétel
B2: Adatfelvétel
B4: Biztosításközvetítő azonosítója
B5: Biztosításközvetítő nyilvántartási száma
B6: Biztosításközvetítő neve
B7: Biztosításközvetítő képviselője (cég esetén)
B8: Biztosításközvetítő telefonszáma
B9: Jogi forma
B10: Állandó lakóhely/székhely
B11: Ajánlat felvételének helye
B12: Dátuma | Q12: =TODAY() -> 2017-03-28 | W12: =IF(Q12>Tarifa!AN3,"Lejárt kalkulátor, kérem töltse le a legfrissebb verziót!"," ") -> 
B14: Szerződő azonosításához szükséges adatok
B16: Név ( szervezet megnevezése )
B17: Születéskori név ( leánykori név )
B18: Születés dátuma ( éééé.hh.nn)
B19: Születés helye
B20: Anya neve
B21: Szervezet adószáma
B23: Lakóhely / szervezet székhelyének címe
C24: Irányítószám
C25: Helység
C26: Út/utca/tér/stb
B28: Kapcsolat tartásához szükséges adatok
B30: Levelezési cím ( ha eltér a lakhely/székhely címétől )
C31: Irányítószám
C32: Helység
C33: Út/utca/tér/stb
B34: Kapcsolattartó neve
B35: Telefonszám
B36: Mobil szám
B37: E-mail
B38: Fax
B40: Ügyfélkapcsolattartó kijelöléséhez szükséges adatok
B42: Éves árbevétel 200 millió Ft felett | AH42: FALSE
B43: Állandó alkalmazottak száma 10 fő felett | AH43: FALSE
B45: Csak mezőgazdasági ügyfelek esetén
B47: Szántó/erdő terület 50 ha felett | AH47: FALSE
B48: Kertészeti kultúra 5 ha felett | AH48: FALSE
B49: Számosállatainak száma 30 felett | AH49: FALSE
B51: Kockázati besoroláshoz szükséges adatok a 45/1996. (XII.29) PM rendelet alapján
B53: Mérleg főösszege 1,5 milliárd forint felett? | AH53: FALSE
B54: Üzelti forgalom (nettó) 3 milliárd forint felett? | AH54: FALSE
B55: Átlagos alkalmazotti létszám 1000 fő felett? | AH55: FALSE
B57: Kockázatviselés kezdete | L57: =IF(Q60<TODAY()+1,"A kockázatviselés kezdete nem lehet a holnapi nap 0:00-nál korábbi!"," ") -> A kockázatviselés kezdete nem lehet a holnapi nap 0:00-nál korábbi!
B60: Kockázatviselés kezdete ( éééé.hh.nn )
B63: Zálogjogosult adatai
B65: Neve
B66: Adószáma
B67: Címe
C68: Irányítószám
C69: Helység
C70: Út/utca/tér/stb
B71: Hitel összege
B72: Hitel lejárata
B73: Hitelszám
B74: Kárkifizetési korlátozás

Sheet Díjkalkuláció nyomtatása
B2: Díjkalkuláció a K&H vállalkozói biztosításhoz | K2: Díjkalkuláció a K&H vállalkozói biztosításhoz (3. telephely) | T2: Díjkalkuláció a K&H vállalkozói biztosításhoz (5.telephely)
B4: vállalkozói biztosítás kalkulációs adatai | K4: vállalkozói biztosítás kalkulációs adatai | T4: vállalkozói biztosítás kalkulációs adatai
B6: tevékenység megnevezése | F6: =Tarifa!Q3 -> Bútorgyártás | K6: tevékenység megnevezése | O6: =Tarifa!Q5 -> Egyéb sokszorosítás | T6: tevékenység megnevezése | X6: =Tarifa!Q7 -> Befektetési alapok és hasonlók
B7: tevékenység kódja | F7: ='1.telephely'!B6 -> 310 | K7: tevékenység kódja | O7: ='3.telephely'!$B$3 -> 182 | T7: tevékenység kódja | X7: ='5.telephely'!$B$3 -> 643
B8: telephely irányítószáma | F8: ='1.telephely'!F5 -> 0 | K8: telephely irányítószáma | O8: ='3.telephely'!$F$2 -> 0 | T8: telephely irányítószáma | X8: ='5.telephely'!$F$2 -> 0
B10: telephely éves árbevétele (e Ft) | F10: ='1.telephely'!B10 -> 0 | K10: telephely éves árbevétele (e Ft) | O10: ='3.telephely'!$B$7 -> 0 | T10: telephely éves árbevétele (e Ft) | X10: ='5.telephely'!$B$7 -> 0
B11: éves forgalom (e Ft) | F11: ='1.telephely'!B12 -> 0 | K11: éves forgalom (e Ft) | O11: ='3.telephely'!$B$9 -> 0 | T11: éves forgalom (e Ft) | X11: ='5.telephely'!$B$9 -> 0
B12: alkalmazottak száma (fő) | F12: ='1.telephely'!B11 -> 0 | K12: alkalmazottak száma (fő) | O12: ='3.telephely'!$B$8 -> 0 | T12: alkalmazottak száma (fő) | X12: ='5.telephely'!$B$8 -> 0
B13: éves bérleti díj (e Ft) | F13: ='1.telephely'!B13 -> 0 | K13: éves bérleti díj (e Ft) | O13: ='3.telephely'!$B$10 -> 0 | T13: éves bérleti díj (e Ft) | X13: ='5.telephely'!$B$10 -> 0
B14: bérbeadásból származó forgalom (e Ft) | F14: ='1.telephely'!B14 -> 0 | K14: bérbeadásból származó forgalom (e Ft) | O14: ='3.telephely'!$B$11 -> 0 | T14: bérbeadásból származó forgalom (e Ft) | X14: ='5.telephely'!$B$11 -> 0
B16: alapbiztosítás keretében biztosított vagyontárgyak | K16: alapbiztosítás keretében biztosított vagyontárgyak | T16: alapbiztosítás keretében biztosított vagyontárgyak
B17: épület, építmény (e Ft) | E17: ='1.telephely'!B19 -> 0 | K17: épület, építmény (e Ft) | N17: ='3.telephely'!$B$16 -> 0 | T17: épület, építmény (e Ft) | W17: ='5.telephely'!$B$16 -> 0
B18: egyéb tárgyi eszközök (e Ft) | E18: ='1.telephely'!B20 -> 0 | K18: egyéb tárgyi eszközök (e Ft) | N18: ='3.telephely'!$B$17 -> 0 | T18: egyéb tárgyi eszközök (e Ft) | W18: ='5.telephely'!$B$17 -> 0
B19: készletek (e Ft) | E19: ='1.telephely'!B21+'1.telephely'!B22 -> 0 | K19: készletek (e Ft) | N19: ='3.telephely'!$B$18 -> 0 | T19: készletek (e Ft) | W19: ='5.telephely'!$B$18 -> 0
B20: készpénz (e Ft) | E20: ='1.telephely'!B23 -> 0 | G20: biztosítási összeg vagy kártérítési limit | I20: biztosítási díj | K20: készpénz (e Ft) | N20: ='3.telephely'!$B$19 -> 0 | P20: biztosítási összeg vagy kártérítési limit | R20: biztosítási díj | T20: készpénz (e Ft) | W20: ='5.telephely'!$B$19 -> 0 | Y20: biztosítási összeg vagy kártérítési limit | AA20: biztosítási díj
B21: alapbiztosítás | K21: alapbiztosítás | T21: alapbiztosítás
B22: tűz és elemi károk | G22: =IF('1.telephely'!C24>0,'1.telephely'!B24,"Nem biztosított") -> Nem biztosított | I22: ='1.telephely'!C24 -> 0 | K22: tűz és elemi károk | P22: =IF('3.telephely'!C21>0,'3.telephely'!$B$21,"Nem biztosított") -> Nem biztosított | R22: ='3.telephely'!$C$21 -> 0 | T22: tűz és elemi károk | Y22: =IF('5.telephely'!C21>0,'5.telephely'!$B$21,"Nem biztosított") -> Nem biztosított | AA22: ='5.telephely'!$C$21 -> 0
B24: kiegészítő biztosítások | K24: kiegészítő biztosítások | T24: kiegészítő biztosítások
B25: betöréses lopás és rablás biztosítás | G25: =IF('1.telephely'!C26=0,"Nem biztosított",((IF('1.telephely'!E20=TRUE,'1.telephely'!B20,0))+(IF('1.telephely'!E21=TRUE,SUM('1.telephely'!B21:'1.telephely'!B22),0))+(IF('1.telephely'!E23=TRUE,'1.telephely'!B23,0)))) -> Nem biztosított | I25: ='1.telephely'!C26 -> 0 | K25: betöréses lopás és rablás biztosítás | P25: =IF('3.telephely'!C23=0,"Nem biztosított",((IF('3.telephely'!$E$17=TRUE,'3.telephely'!$B$17,0))+(IF('3.telephely'!$E$18=TRUE,SUM('3.telephely'!$B$18:'3.telephely'!$B$19),0))+(IF('3.telephely'!$E$20=TRUE,'3.telephely'!$B$20,0)))) -> Nem biztosított | R25: ='3.telephely'!$C$23 -> 0 | T25: betöréses lopás és rablás biztosítás | Y25: =IF('5.telephely'!C23=0,"Nem biztosított",((IF('5.telephely'!$E$17=TRUE,'5.telephely'!$B$17,0))+(IF('5.telephely'!$E$18=TRUE,SUM('5.telephely'!$B$18:'5.telephely'!$B$19),0))+(IF('5.telephely'!$E$20=TRUE,'5.telephely'!$B$20,0)))) -> Nem biztosított | AA25: ='5.telephely'!$C$23 -> 0
B26: irodai és kereskedelmi elektronikus berendezések, eszközök | G26: =IF('1.telephely'!C28>0,'1.telephely'!B28,"Nem biztosított") -> Nem biztosított | I26: ='1.telephely'!C28 -> 0 | K26: irodai és kereskedelmi elektronikus berendezések, eszközök | P26: =IF('3.telephely'!C25>0,'3.telephely'!$B$25,"Nem biztosított") -> Nem biztosított | R26: ='3.telephely'!$C$25 -> 0 | T26: irodai és kereskedelmi elektronikus berendezések, eszközök | Y26: =IF('5.telephely'!C25>0,'5.telephely'!$B$25,"Nem biztosított") -> Nem biztosított | AA26: ='5.telephely'!$C$25 -> 0
B27: üzemszünet biztosítás | G27: =IF('1.telephely'!C30>0,"Szerződési feltételek szerint","Nem biztosított") -> Nem biztosított | I27: ='1.telephely'!C30 -> 0 | K27: üzemszünet biztosítás | P27: =IF('3.telephely'!$C$27>0,"Szerződési feltételek szerint","Nem biztosított") -> Nem biztosított | R27: ='3.telephely'!$C$27 -> 0 | T27: üzemszünet biztosítás | Y27: =IF('5.telephely'!$C$27>0,"Szerződési feltételek szerint","Nem biztosított") -> Nem biztosított | AA27: ='5.telephely'!$C$27 -> 0
B28: szállítmány biztosítás | G28: =IF('1.telephely'!C32>0,'1.telephely'!B32,"Nem biztosított") -> Nem biztosított | I28: ='1.telephely'!C32 -> 0 | K28: szállítmány biztosítás | P28: =IF('3.telephely'!C29>0,'3.telephely'!$B$29,"Nem biztosított") -> Nem biztosított | R28: ='3.telephely'!$C$29 -> 0 | T28: szállítmány biztosítás | Y28: =IF('5.telephely'!C29>0,'5.telephely'!$B$29,"Nem biztosított") -> Nem biztosított | AA28: ='5.telephely'!$C$29 -> 0
B29: vakolat károk biztosítása | G29: =IF('1.telephely'!C34>0,"Szerződési feltételek szerint","Nem biztosított") -> Nem biztosított | I29: ='1.telephely'!C34 -> 0 | K29: vakolat károk biztosítása | P29: =IF('3.telephely'!$C$31>0,"Szerződési feltételek szerint","Nem biztosított") -> Nem biztosított | R29: ='3.telephely'!$C$31 -> 0 | T29: vakolat károk biztosítása | Y29: =IF('5.telephely'!$C$31>0,"Szerződési feltételek szerint","Nem biztosított") -> Nem biztosított | AA29: ='5.telephely'!$C$31 -> 0
B30: tetőbeázási károk biztosítása | G30: =IF('1.telephely'!C36>0,"Szerződési feltételek szerint","Nem biztosított") -> Nem biztosított | I30: ='1.telephely'!C36 -> 0 | K30: tetőbeázási károk biztosítása | P30: =IF('3.telephely'!$C$33>0,"Szerződési feltételek szerint","Nem biztosított") -> Nem biztosított | R30: ='3.telephely'!$C$33 -> 0 | T30: tetőbeázási károk biztosítása | Y30: =IF('5.telephely'!$C$33>0,"Szerződési feltételek szerint","Nem biztosított") -> Nem biztosított | AA30: ='5.telephely'!$C$33 -> 0
B31: vandalizmus károk biztosítása | G31: =IF('1.telephely'!C38>0,'1.telephely'!B38,"Nem biztosított") -> Nem biztosított | I31: ='1.telephely'!C38 -> 0 | K31: vandalizmus károk biztosítása | P31: =IF('3.telephely'!C35>0,'3.telephely'!$B$35,"Nem biztosított") -> Nem biztosított | R31: ='3.telephely'!$C$35 -> 0 | T31: vandalizmus károk biztosítása | Y31: =IF('5.telephely'!C35>0,'5.telephely'!$B$35,"Nem biztosított") -> Nem biztosított | AA31: ='5.telephely'!$C$35 -> 0
B32: különleges üvegek üvegtörés biztosítása | G32: =IF('1.telephely'!C40>0,'1.telephely'!B40,"Nem biztosított") -> Nem biztosított | I32: ='1.telephely'!C40 -> 0 | K32: különleges üvegek üvegtörés biztosítása | P32: =IF('3.telephely'!C37>0,'3.telephely'!$B$37,"Nem biztosított") -> Nem biztosított | R32: ='3.telephely'!$C$37 -> 0 | T32: különleges üvegek üvegtörés biztosítása | Y32: =IF('5.telephely'!C37>0,'5.telephely'!$B$37,"Nem biztosított") -> Nem biztosított | AA32: ='5.telephely'!$C$37 -> 0
B33: általános és épülethasználói felelősségbiztosítás | G33: =IF('1.telephely'!C42>0,Tarifa!S26,"Nem biztosított") -> Nem biztosított | I33: ='1.telephely'!C42 -> 0 | K33: általános és épülethasználói felelősségbiztosítás | P33: =IF('3.telephely'!$C$39>0,Tarifa!U26,"Nem biztosított") -> Nem biztosított | R33: ='3.telephely'!$C$39 -> 0 | T33: általános és épülethasználói felelősségbiztosítás | Y33: =IF('5.telephely'!$C$39>0,Tarifa!W26,"Nem biztosított") -> Nem biztosított | AA33: ='5.telephely'!$C$39 -> 0
B34: tanuló baleseti és felelősségbiztosítás | G34: =IF('1.telephely'!C43>0,"5 millió Ft","Nem biztosított") -> Nem biztosított | I34: ='1.telephely'!C43 -> 0 | K34: tanuló baleseti és felelősségbiztosítás | P34: =IF('3.telephely'!$C$40>0,"5 millió Ft","Nem biztosított") -> Nem biztosított | R34: ='3.telephely'!$C$40 -> 0 | T34: tanuló baleseti és felelősségbiztosítás | Y34: =IF('5.telephely'!$C$40>0,"5 millió Ft","Nem biztosított") -> Nem biztosított | AA34: ='5.telephely'!$C$40 -> 0
B35: munkáltatói felelősségbiztosítás | G35: =IF('1.telephely'!C44>0,Tarifa!S37,"Nem biztosított") -> Nem biztosított | I35: ='1.telephely'!C44 -> 0 | K35: munkáltatói felelősségbiztosítás | P35: =IF('3.telephely'!$C$41>0,Tarifa!U37,"Nem biztosított") -> Nem biztosított | R35: ='3.telephely'!$C$41 -> 0 | T35: munkáltatói felelősségbiztosítás | Y35: =IF('5.telephely'!$C$41>0,Tarifa!W37,"Nem biztosított") -> Nem biztosított | AA35: ='5.telephely'!$C$41 -> 0
B36: termékfelelősség biztosítás | G36: =IF('1.telephely'!C45>0,Tarifa!S48,"Nem biztosított") -> Nem biztosított | I36: ='1.telephely'!C45 -> 0 | K36: termékfelelősség biztosítás | P36: =IF('3.telephely'!$C$42>0,Tarifa!U48,"Nem biztosított") -> Nem biztosított | R36: ='3.telephely'!$C$42 -> 0 | T36: termékfelelősség biztosítás | Y36: =IF('5.telephely'!$C$42>0,Tarifa!W48,"Nem biztosított") -> Nem biztosított | AA36: ='5.telephely'!$C$42 -> 0
B37: bérlői felelősségbiztosítás | G37: =IF('1.telephely'!C46>0,Tarifa!S60,"Nem biztosított") -> Nem biztosított | I37: ='1.telephely'!C46 -> 0 | K37: bérlői felelősségbiztosítás | P37: =IF('3.telephely'!$C$43>0,Tarifa!U60,"Nem biztosított") -> Nem biztosított | R37: ='3.telephely'!$C$43 -> 0 | T37: bérlői felelősségbiztosítás | Y37: =IF('5.telephely'!$C$43>0,Tarifa!W60,"Nem biztosított") -> Nem biztosított | AA37: ='5.telephely'!$C$43 -> 0
B38: szolgáltatói felelősségbiztosítás | G38: =IF('1.telephely'!C47>0,Tarifa!S72,"Nem biztosított") -> Nem biztosított | I38: ='1.telephely'!C47 -> 0 | K38: szolgáltatói felelősségbiztosítás | P38: =IF('3.telephely'!$C$44>0,Tarifa!U72,"Nem biztosított") -> Nem biztosított | R38: ='3.telephely'!$C$44 -> 0 | T38: szolgáltatói felelősségbiztosítás | Y38: =IF('5.telephely'!$C$44>0,Tarifa!W72,"Nem biztosított") -> Nem biztosított | AA38: ='5.telephely'!$C$44 -> 0
B39: szálloda üzemeltetői, szállásadói felelősségbiztosítása | G39: =IF('1.telephely'!C48>0,Tarifa!AA62,"Nem biztosított") -> Nem biztosított | I39: ='1.telephely'!C48 -> 0 | K39: szálloda üzemeltetői, szállásadói felelősségbiztosítása | P39: =IF('3.telephely'!$C$45>0,Tarifa!AC62,"Nem biztosított") -> Nem biztosított | R39: ='3.telephely'!$C$45 -> 0 | T39: szálloda üzemeltetői, szállásadói felelősségbiztosítása | Y39: =IF('5.telephely'!$C$45>0,Tarifa!AE62,"Nem biztosított") -> Nem biztosított | AA39: ='5.telephely'!$C$45 -> 0
B40: gépjárműjavítók felelősségbiztosítása | G40: =IF('1.telephely'!C49>0,Tarifa!AA53,"Nem biztosított") -> Nem biztosított | I40: ='1.telephely'!C49 -> 0 | K40: gépjárműjavítók felelősségbiztosítása | P40: =IF('3.telephely'!$C$46>0,Tarifa!AC53,"Nem biztosított") -> Nem biztosított | R40: ='3.telephely'!$C$46 -> 0 | T40: gépjárműjavítók felelősségbiztosítása | Y40: =IF('5.telephely'!$C$46>0,Tarifa!AE53,"Nem biztosított") -> Nem biztosított | AA40: ='5.telephely'!$C$46 -> 0
B41: gépjármű-eredetiségvizsgálatot végzők felelősségbiztosítása | G41: =IF('1.telephely'!C50>0,"5 millió Ft","Nem biztosított") -> Nem biztosított | I41: ='1.telephely'!C50 -> 0 | K41: gépjármű-eredetiségvizsgálatot végzők felelősségbiztosítása | P41: =IF('3.telephely'!$C$47>0,"5 millió Ft","Nem biztosított") -> Nem biztosított | R41: ='3.telephely'!$C$47 -> 0 | T41: gépjármű-eredetiségvizsgálatot végzők felelősségbiztosítása | Y41: =IF('5.telephely'!$C$47>0,"5 millió Ft","Nem biztosított") -> Nem biztosított | AA41: ='5.telephely'!$C$47 -> 0
B42: szolgáltatás tárgyában okozott károk biztosítása | G42: =IF('1.telephely'!C51>0,"5 millió Ft","Nem biztosított") -> Nem biztosított | I42: ='1.telephely'!C51 -> 0 | K42: szolgáltatás tárgyában okozott károk biztosítása | P42: =IF('3.telephely'!$C$48>0,"5 millió Ft","Nem biztosított") -> Nem biztosított | R42: ='3.telephely'!$C$48 -> 0 | T42: szolgáltatás tárgyában okozott károk biztosítása | Y42: =IF('5.telephely'!$C$48>0,"5 millió Ft","Nem biztosított") -> Nem biztosított | AA42: ='5.telephely'!$C$48 -> 0
B43: bérbeadói felelősségbiztosítás | G43: =IF('1.telephely'!C52>0,Tarifa!S84,"Nem biztosított") -> Nem biztosított | I43: ='1.telephely'!C52 -> 0 | K43: bérbeadói felelősségbiztosítás | P43: =IF('3.telephely'!$C$49>0,Tarifa!U84,"Nem biztosított") -> Nem biztosított | R43: ='3.telephely'!$C$49 -> 0 | T43: bérbeadói felelősségbiztosítás | Y43: =IF('5.telephely'!$C$49>0,Tarifa!W84,"Nem biztosított") -> Nem biztosított | AA43: ='5.telephely'!$C$49 -> 0
B44: környezetszennyezési felelősségbiztosítás | G44: =IF('1.telephely'!C53>0,Tarifa!S96,"Nem biztosított") -> Nem biztosított | I44: ='1.telephely'!C53 -> 0 | K44: környezetszennyezési felelősségbiztosítás | P44: =IF('3.telephely'!$C$50>0,Tarifa!U96,"Nem biztosított") -> Nem biztosított | R44: ='3.telephely'!$C$50 -> 0 | T44: környezetszennyezési felelősségbiztosítás | Y44: =IF('5.telephely'!$C$50>0,Tarifa!W96,"Nem biztosított") -> Nem biztosított | AA44: ='5.telephely'!$C$50 -> 0
B46: éves díj 1. telephelyre: | I46: ='1.telephely'!C55 -> 0 | K46: éves díj 3. telephelyre: | R46: ='3.telephely'!$C$52 -> 0 | T46: éves díj 5. telephelyre: | AA46: ='5.telephely'!$C$52 -> 0
B48: kedvezmények | F48: általános adatok
B49: volumen engedmény | E49: ='1.telephely'!B57 -> Nincs | F49: díjfizetés gyakorisága | H49: =Tarifa!AC8 -> negyedéves
B50: csomag engedmény | E50: ='1.telephely'!B58 -> Nincs | F50: díjfizetés módja | H50: =Tarifa!AE8 -> postai utalás
B51: lojalitás engedmény | E51: =Tarifa!AD15 -> Nincs
B52: díjfizetés engedmény | E52: =Tarifa!AA8 -> 0.02
B53: díjeltérítési szorzó engedmény | E53: =Tarifa!AC11 -> 0
B55: Fizetendő éves biztosítási díj | F55: ='1.telephely'!B67 -> 12000
D58: =TODAY() -> 2017-03-28
B60: Jelen kalkuláció nem minosül hivatalos ajánlattételnek, az kizárólag tájékoztató jellegű!
B63: Díjkalkuláció a K&H vállalkozói biztosításhoz (2. telephely) | K63: Díjkalkuláció a K&H vállalkozói biztosításhoz (4.telephely)
B65: vállalkozói biztosítás kalkulációs adatai | K65: vállalkozói biztosítás kalkulációs adatai
B67: tevékenység megnevezése | F67: =Tarifa!$Q$4 -> Ajándéktárgy-kiskereskedelem | K67: tevékenység megnevezése | O67: =Tarifa!Q6 -> Egyéb sokszorosítás
B68: tevékenység kódja | F68: ='2.telephely'!$B$3 -> 477813 | K68: tevékenység kódja | O68: ='4.telephely'!$B$3 -> 182
B69: telephely irányítószáma | F69: ='2.telephely'!$F$2 -> 0 | K69: telephely irányítószáma | O69: ='4.telephely'!$F$2 -> 0
B71: telephely éves árbevétele (e Ft) | F71: ='2.telephely'!$B$7 -> 0 | K71: telephely éves árbevétele (e Ft) | O71: ='4.telephely'!$B$7 -> 0
B72: éves forgalom (e Ft) | F72: ='2.telephely'!$B$9 -> 0 | K72: éves forgalom (e Ft) | O72: ='4.telephely'!$B$9 -> 0
B73: alkalmazottak száma (fő) | F73: ='2.telephely'!$B$8 -> 0 | K73: alkalmazottak száma (fő) | O73: ='4.telephely'!$B$8 -> 0
B74: éves bérleti díj (e Ft) | F74: ='2.telephely'!$B$10 -> 0 | K74: éves bérleti díj (e Ft) | O74: ='4.telephely'!$B$10 -> 0
B75: bérbeadásból származó forgalom (e Ft) | F75: ='2.telephely'!$B$11 -> 0 | K75: bérbeadásból származó forgalom (e Ft) | O75: ='4.telephely'!$B$11 -> 0
B77: alapbiztosítás keretében biztosított vagyontárgyak | K77: alapbiztosítás keretében biztosított vagyontárgyak
B78: épület, építmény (e Ft) | E78: ='2.telephely'!$B$16 -> 0 | K78: épület, építmény (e Ft) | N78: ='4.telephely'!$B$16 -> 0
B79: egyéb tárgyi eszközök (e Ft) | E79: ='2.telephely'!$B$17 -> 0 | K79: egyéb tárgyi eszközök (e Ft) | N79: ='4.telephely'!$B$17 -> 0
B80: készletek (e Ft) | E80: ='2.telephely'!$B$18 -> 0 | K80: készletek (e Ft) | N80: ='4.telephely'!$B$18 -> 0
B81: készpénz (e Ft) | E81: ='2.telephely'!$B$19 -> 0 | G81: biztosítási összeg vagy kártérítési limit | I81: biztosítási díj | K81: készpénz (e Ft) | N81: ='4.telephely'!$B$19 -> 0 | P81: biztosítási összeg vagy kártérítési limit | R81: biztosítási díj
B82: alapbiztosítás | K82: alapbiztosítás
B83: tűz és elemi károk | G83: =IF('2.telephely'!$C$21>0,'2.telephely'!$B$21,"Nem biztosított") -> Nem biztosított | I83: ='2.telephely'!$C$21 -> 0 | K83: tűz és elemi károk | P83: =IF('4.telephely'!C21>0,'4.telephely'!$B$21,"Nem biztosított") -> Nem biztosított | R83: ='4.telephely'!$C$21 -> 0
B85: kiegészítő biztosítások | K85: kiegészítő biztosítások
B86: betöréses lopás és rablás biztosítás | G86: =IF('2.telephely'!C23=0,"Nem biztosított",((IF('2.telephely'!$E$17=TRUE,'2.telephely'!$B$17,0))+(IF('2.telephely'!$E$18=TRUE,SUM('2.telephely'!$B$18:'2.telephely'!$B$19),0))+(IF('2.telephely'!$E$20=TRUE,'2.telephely'!$B$20,0)))) -> Nem biztosított | I86: ='2.telephely'!$C$23 -> 0 | K86: betöréses lopás és rablás biztosítás | P86: =IF('4.telephely'!C23=0,"Nem biztosított",((IF('4.telephely'!$E$17=TRUE,'4.telephely'!$B$17,0))+(IF('4.telephely'!$E$18=TRUE,SUM('4.telephely'!$B$18:'4.telephely'!$B$19),0))+(IF('4.telephely'!$E$20=TRUE,'4.telephely'!$B$20,0)))) -> Nem biztosított | R86: ='4.telephely'!$C$23 -> 0
B87: irodai és kereskedelmi elektronikus berendezések, eszközök | G87: =IF('2.telephely'!$C$25>0,'2.telephely'!$C$23,"Nem biztosított") -> Nem biztosított | I87: ='2.telephely'!$C$25 -> 0 | K87: irodai és kereskedelmi elektronikus berendezések, eszközök | P87: =IF('4.telephely'!C25>0,'4.telephely'!$B$25,"Nem biztosított") -> Nem biztosított | R87: ='4.telephely'!$C$25 -> 0
B88: üzemszünet biztosítás | G88: =IF('2.telephely'!$C$27>0,"Szerződési feltételek szerint","Nem biztosított") -> Nem biztosított | I88: ='2.telephely'!$C$27 -> 0 | K88: üzemszünet biztosítás | P88: =IF('4.telephely'!$C$27>0,"Szerződési feltételek szerint","Nem biztosított") -> Nem biztosított | R88: ='4.telephely'!$C$27 -> 0
B89: szállítmány biztosítás | G89: =IF('2.telephely'!$C$29>0,'2.telephely'!$B$29,"Nem biztosított") -> Nem biztosított | I89: ='2.telephely'!$C$29 -> 0 | K89: szállítmány biztosítás | P89: =IF('4.telephely'!C29>0,'4.telephely'!$B$29,"Nem biztosított") -> Nem biztosított | R89: ='4.telephely'!$C$29 -> 0
B90: vakolat károk biztosítása | G90: =IF('2.telephely'!$C$31>0,"Szerződési feltételek szerint","Nem biztosított") -> Nem biztosított | I90: ='2.telephely'!$C$31 -> 0 | K90: vakolat károk biztosítása | P90: =IF('4.telephely'!$C$31>0,"Szerződési feltételek szerint","Nem biztosított") -> Nem biztosított | R90: ='4.telephely'!$C$31 -> 0
B91: tetőbeázási károk biztosítása | G91: =IF('2.telephely'!$C$33>0,"Szerződési feltételek szerint","Nem biztosított") -> Nem biztosított | I91: ='2.telephely'!$C$33 -> 0 | K91: tetőbeázási károk biztosítása | P91: =IF('4.telephely'!$C$33>0,"Szerződési feltételek szerint","Nem biztosított") -> Nem biztosított | R91: ='4.telephely'!$C$33 -> 0
B92: vandalizmus károk biztosítása | G92: =IF('2.telephely'!$C$35>0,'2.telephely'!$B$35,"Nem biztosított") -> Nem biztosított | I92: ='2.telephely'!$C$35 -> 0 | K92: vandalizmus károk biztosítása | P92: =IF('4.telephely'!C35>0,'4.telephely'!$B$35,"Nem biztosított") -> Nem biztosított | R92: ='4.telephely'!$C$35 -> 0
B93: különleges üvegek üvegtörés biztosítása | G93: =IF('2.telephely'!$C$37>0,'2.telephely'!B37,"Nem biztosított") -> Nem biztosított | I93: ='2.telephely'!$C$37 -> 0 | K93: különleges üvegek üvegtörés biztosítása | P93: =IF('4.telephely'!C37>0,'4.telephely'!$B$37,"Nem biztosított") -> Nem biztosított | R93: ='4.telephely'!$C$37 -> 0
B94: általános és épülethasználói felelősségbiztosítás | G94: =IF('2.telephely'!$C$39>0,Tarifa!J89,"Nem biztosított") -> Nem biztosított | I94: ='2.telephely'!$C$39 -> 0 | K94: általános és épülethasználói felelősségbiztosítás | P94: =IF('4.telephely'!$C$39>0,Tarifa!V26,"Nem biztosított") -> Nem biztosított | R94: ='4.telephely'!$C$39 -> 0
B95: tanuló baleseti és felelősségbiztosítás | G95: =IF('2.telephely'!$C$40>0,"5 millió Ft","Nem biztosított") -> Nem biztosított | I95: ='2.telephely'!$C$40 -> 0 | K95: tanuló baleseti és felelősségbiztosítás | P95: =IF('4.telephely'!$C$40>0,"5 millió Ft","Nem biztosított") -> Nem biztosított | R95: ='4.telephely'!$C$40 -> 0
B96: munkáltatói felelősségbiztosítás | G96: =IF('2.telephely'!$C$41>0,Tarifa!$T$37,"Nem biztosított") -> Nem biztosított | I96: ='2.telephely'!$C$41 -> 0 | K96: munkáltatói felelősségbiztosítás | P96: =IF('4.telephely'!$C$41>0,Tarifa!V37,"Nem biztosított") -> Nem biztosított | R96: ='4.telephely'!$C$41 -> 0
B97: termékfelelősség biztosítás | G97: =IF('2.telephely'!$C$42>0,Tarifa!$T$48,"Nem biztosított") -> Nem biztosított | I97: ='2.telephely'!$C$42 -> 0 | K97: termékfelelősség biztosítás | P97: =IF('4.telephely'!$C$42>0,Tarifa!V48,"Nem biztosított") -> Nem biztosított | R97: ='4.telephely'!$C$42 -> 0
B98: bérlői felelősségbiztosítás | G98: =IF('2.telephely'!$C$43>0,Tarifa!$T$60,"Nem biztosított") -> Nem biztosított | I98: ='2.telephely'!$C$43 -> 0 | K98: bérlői felelősségbiztosítás | P98: =IF('4.telephely'!$C$43>0,Tarifa!V60,"Nem biztosított") -> Nem biztosított | R98: ='4.telephely'!$C$43 -> 0
B99: szolgáltatói felelősségbiztosítás | G99: =IF('2.telephely'!$C$44>0,Tarifa!$T$72,"Nem biztosított") -> Nem biztosított | I99: ='2.telephely'!$C$44 -> 0 | K99: szolgáltatói felelősségbiztosítás | P99: =IF('4.telephely'!$C$44>0,Tarifa!V72,"Nem biztosított") -> Nem biztosított | R99: ='4.telephely'!$C$44 -> 0
B100: szálloda üzemeltetői, szállásadói felelősségbiztosítása | G100: =IF('2.telephely'!$C$45>0,Tarifa!$AB$62,"Nem biztosított") -> Nem biztosított | I100: ='2.telephely'!$C$45 -> 0 | K100: szálloda üzemeltetői, szállásadói felelősségbiztosítása | P100: =IF('4.telephely'!$C$45>0,Tarifa!AD62,"Nem biztosított") -> Nem biztosított | R100: ='4.telephely'!$C$45 -> 0
B101: gépjárműjavítók felelősségbiztosítása | G101: =IF('2.telephely'!$C$46>0,Tarifa!$AB$53,"Nem biztosított") -> Nem biztosított | I101: ='2.telephely'!$C$46 -> 0 | K101: gépjárműjavítók felelősségbiztosítása | P101: =IF('4.telephely'!$C$46>0,Tarifa!AD53,"Nem biztosított") -> Nem biztosított | R101: ='4.telephely'!$C$46 -> 0
B102: gépjármű-eredetiségvizsgálatot végzők felelősségbiztosítása | G102: =IF('2.telephely'!$C$47>0,"5 millió Ft","Nem biztosított") -> Nem biztosított | I102: ='2.telephely'!$C$47 -> 0 | K102: gépjármű-eredetiségvizsgálatot végzők felelősségbiztosítása | P102: =IF('4.telephely'!$C$47>0,"5 millió Ft","Nem biztosított") -> Nem biztosított | R102: ='4.telephely'!$C$47 -> 0
B103: szolgáltatás tárgyában okozott károk biztosítása | G103: =IF('2.telephely'!$C$48>0,"5 millió Ft","Nem biztosított") -> Nem biztosított | I103: ='2.telephely'!$C$48 -> 0 | K103: szolgáltatás tárgyában okozott károk biztosítása | P103: =IF('4.telephely'!$C$48>0,"5 millió Ft","Nem biztosított") -> Nem biztosított | R103: ='4.telephely'!$C$48 -> 0
B104: bérbeadói felelősségbiztosítás | G104: =IF('2.telephely'!$C$49>0,Tarifa!$T$84,"Nem biztosított") -> Nem biztosított | I104: ='2.telephely'!$C$49 -> 0 | K104: bérbeadói felelősségbiztosítás | P104: =IF('4.telephely'!$C$49>0,Tarifa!V84,"Nem biztosított") -> Nem biztosított | R104: ='4.telephely'!$C$49 -> 0
B105: környezetszennyezési felelősségbiztosítás | G105: =IF('2.telephely'!$C$50>0,Tarifa!$T$96,"Nem biztosított") -> Nem biztosított | I105: ='2.telephely'!$C$50 -> 0 | K105: környezetszennyezési felelősségbiztosítás | P105: =IF('4.telephely'!$C$50>0,Tarifa!V96,"Nem biztosított") -> Nem biztosított | R105: ='4.telephely'!$C$50 -> 0
B107: éves díj 2. telephelyre: | I107: ='2.telephely'!$C$52 -> 0 | K107: éves díj 4. telephelyre: | R107: ='4.telephely'!$C$52 -> 0

Sheet Ajánlat+Telephelyi adatközlő
A1: előzetes díjkalkuláció a K&H vállalkozó biztosítás megkötésére | J1: K&H Biztosító Zrt.
J2: 1095 Budapest, Lechner Ödön fasor 9.
A3: biztosításközvetítő neve: | D3: =Adatfelvétel!Q6 -> 0
A4: biztosításközvetítő K&H-s nyilvántartási száma: | E4: =Adatfelvétel!Q4 -> 0 | H4: telefonszám: | I4: =Adatfelvétel!Q8 -> 0
A5: Szerzodo (Biztosított) adatai („ügyfél adatlap biztosítási szerzodés megkötéséhez” nyomtatvány adattartalmával egyenértékű adatok)
A6: név (szervezet rövid neve): | E6: =Adatfelvétel!O16 -> 0
A7: születéskori név (leánykori név): | E7: =Adatfelvétel!O17 -> 0
A8: anyja neve: | E8: =Adatfelvétel!O20 -> 0
A9: születési dátum: | D9: =IF(Adatfelvétel!O18=0," ",Adatfelvétel!O18) ->  | E9: születés helye: | F9: =Adatfelvétel!O19 -> 0 | H9: szervezet adószáma: | J9: =Adatfelvétel!O21 -> 0
A10: lakóhely / szervezet székhelyének címe: | E10: =Adatfelvétel!I24 -> 0 | F10: =Adatfelvétel!I25 -> 0 | H10: =Adatfelvétel!I26 -> 0
A11: kapcsolattartáshoz szükséges adatok
A12: ha a levelezési cím nem a lakóhely / szervezet székhelye, akkor más levelezési cím:
A13: kapcsolattartó neve: | D13: =Adatfelvétel!I34 -> 0
A14: telefonszám: | D14: =Adatfelvétel!I35 -> 0 | G14: mobil telefonszám: | I14: =Adatfelvétel!I36 -> 0
A15: e-mail cím: | D15: =Adatfelvétel!I37 -> 0 | G15: fax: | H15: =Adatfelvétel!I38 -> 0
A16: ügyfélkapcsolattartó kijelöléséhez szükséges adatok:
A17: Éves árbevétel 200 millió forint felett? | E17: =IF(Adatfelvétel!AH42=TRUE,"igen","nem") -> nem | H17: Állandó alkalmazottak száma 10 fő felett? | K17: =IF(Adatfelvétel!AH43=TRUE,"igen","nem") -> nem
A18: csak mezogazdasági ügyfelek esetén:
A19: Szántó/erdo terület 50 ha felett? | E19: =IF(Adatfelvétel!AH47=TRUE,"igen","nem") -> nem | H19: Kertészeti kultúra 5 ha felett? | K19: =IF(Adatfelvétel!AH48=TRUE,"igen","nem") -> nem
A20: Számosállatainak száma 30 felett? | E20: =IF(Adatfelvétel!AH49=TRUE,"igen","nem") -> nem
A21: kockázati besoroláshoz szükséges adatok a 45/1996. (XII.29.) PM rendelet alapján
A22: Mérleg főösszege 1,5 milliárd forint | E22: =IF(Adatfelvétel!AH53=TRUE,"igen","nem") -> nem | H22: Üzleti forgalom (nettó) 3 milliárd forint felett? | K22: =IF(Adatfelvétel!AH54=TRUE,"igen","nem") -> nem
A23: Átlagos alkalmazotti létszám 1000 fő felett? | E23: =IF(Adatfelvétel!AH55=TRUE,"igen","nem") -> nem
A24: Felhívjuk szíves figyelmét, hogy - eltérő rendelkezés hiányában - a jelen ajánlaton közölt Szerződő (Biztosított) adatait a többi, társaságunknál hatályos szerződés vonatkozásában is figyelembe vesszük, illetve alkalmazzuk.
A26: zálogjogosult adatai
A27: neve | B27: =Adatfelvétel!I65 -> 0 | F27: címe | G27: =Adatfelvétel!I68 -> 0 | H27: =Adatfelvétel!I69 -> 0 | I27: =Adatfelvétel!I70 -> 0
A28: zálogjogosult adószáma | D28: =Adatfelvétel!I66 -> 0 | F28: hitelszám | H28: =Adatfelvétel!I73 -> 0
A29: hitel összege | D29: =Adatfelvétel!I71 -> 0 | F29: hitel lejárata | H29: =IF(Adatfelvétel!I72=0," ",Adatfelvétel!I72) -> 
A30: Kárkifizetési korlátozás: Kijelentem, hogy | E30: =Adatfelvétel!J74 -> 0 | F30: forintot meghaladó kár esetén a Biztosító szolgáltatására a
A31: kárkifizetéskor fennálló hitelösszeg és járulékainak erejéig a kötvényen (fedezetet igazoló dokumentumon) megjelölt kölcsönnyújtó hitelintézet javára zálogjog kerül bejegyzésre. Hozzájárulok ahhoz, hogy a hitelre vonatkozó adataimat a hitelintézet a Biztosítónak átadja, illetve a Biztosító a hitelhez kapcsolódó biztosításomra teljes köréről a vonatkozó adatok hitelintézetet tájékoztassa.
A32: biztosítási szerzodés általános adatai
A33: kockázatviselés kezdete : | D33: =Adatfelvétel!Q60 -> 00:00:00 | E33: ,de legkorábban az ajánlat aláírását követő nap 0:00 órája.
A34: A biztosítás tartama határozatlan. Az évforduló minden évben a kockázatviselés kezdete hónapjának 1. napja.
A35: díjfizetés gyakorisága: | D35: =Tarifa!AC8 -> negyedéves | H35: díjfizetés módja: | J35: =Tarifa!AE8 -> postai utalás
A36: Fizetendő éves biztosítási díj: | E36: ='1.telephely'!B67 -> 12000 | F36: Ft
A37: kedvezmények
A38: =IF(Tarifa!AF31<1,"volumen engedmény"," ") ->  | C38: =IF(Tarifa!AF31=1," ",Tarifa!AF32) ->  | D38: =IF(Tarifa!AA15<1,"lojalitás engedmény"," ") ->  | F38: =IF(Tarifa!AA15=1," ",Tarifa!AD15) ->  | H38: =IF(Tarifa!AO12<0.5,"Az összesített kedvezmény mértéke maximálisan 50% lehet, a díjfizetési engedményen és a központi díjeltérítési szorzón kívül."," ") -> 
A39: =IF(Tarifa!AE15<1,"csomag engedmény"," ") ->  | C39: =IF(Tarifa!AE15=1," ",Tarifa!AG15) ->  | D39: =IF(Tarifa!Z8<1,"díjfizetési engedmény"," ") -> díjfizetési engedmény | F39: =IF(Tarifa!Z8=1," ",Tarifa!AA8) -> 0.02
A40: =IF(Tarifa!AB11<1,"díjeltérítési szorzó"," ") ->  | C40: =IF(Tarifa!AB11=1," ",Tarifa!AC11) ->  | D40: =IF(Tarifa!AB12<1,"központi díjeltérítési szorzó"," ") ->  | F40: =IF(Tarifa!AB12=1," ",Tarifa!AC12) -> 
A41: a helyszíni kockázatelbírálást végzo személy
A42: [ ] biztosításközvetítő [ ] egyéb képviselő:
I43: a helyszíni Kockázatelbíráló aláírása
A45: Alulírott szerződő kötelezettséget vállalok arra, hogy a szerződés részét képező szerződési feltételek alapján megállapított, a kötvényben (fedezetet igazoló dokumentumban) előírt díjat a jelen megállapodás szerint megfizetem. A felek az első díj tekintetében a kötvényben (fedezetet igazoló dokumentumban) és a díjesedékességi értesítőben foglalt díjesedékességi határidőig halasztásban állapodnak meg. Tudomásul veszem, hogy a szerződésre a K&H vállalkozói biztosítás (KVB-13) szerződési feltételei vonatkoznak, amelyet az ügyfél-tájékoztatóval együtt az ajánlat aláírása előtt átvettem, és annak tartalmát megértettem. Felhatalmazom a Biztosítót arra, hogy az igényelt biztosítással összefüggő adatokat számítógépen tárolja, és az illetékes viszontbiztosítónak átadja. Kívánságomra megadják annak a címét és adatait, akinek adataimat továbbították. Vállalom, hogy a szerződést érintő adatokban bekövetkező változásokat a Biztosítónak 8 napon belül bejelentem. A "nyilatkozat nem-életbiztosítási szerződés megkötéséhez" nyomtatvány a szerződés részét képezi. Nem jön létre a szerződés, ha az ajánlatot a Biztosító annak átadását követően számított 15 napon belül visszautasítja. A Biztosító akkor is jogosult az ajánlat visszautasítására, ha a 15 napos kockázatelbírálási határidő alatt biztosítási esemény következik be. Az arról való tájékoztatást, hogy a K&H Biztosító Zrt. biztosításközvetítői a K&H Biztosító Zrt. nevében biztosítási díj átvételére nem jogosultak, megkaptam.
A56: Az előzetes díjkalkuláció | C56: =Tarifa!AN3 -> 2017-06-30 | E56: -ig érvényes.
A58: Előzetes díjkalkuláció kiállításának dátuma | E58: =Adatfelvétel!Q12 -> 2017-03-28
A64: Kelt: | I64: Szerződő (szervezet képviseletére jogosult) /
I65: Biztosított aláírása
A68: telephelyi adatközlő és díjszámítás K&H vállalkozói biztosításhoz | J68: K&H Biztosító Zrt.
C69: adatközlő sorszáma | E69: =IF(AND('1.telephely'!C55>0,'2.telephely'!C52=0,'3.telephely'!C52=0,'4.telephely'!C52=0,'5.telephely'!C52=0),"1/1",IF(AND('1.telephely'!C55>0,'2.telephely'!C52>0,'3.telephely'!C52=0,'4.telephely'!C52=0,'5.telephely'!C52=0),"1/2",IF(AND('1.telephely'!C55>0,'2.telephely'!C52>0,'3.telephely'!C52>0,'4.telephely'!C52=0,'5.telephely'!C52=0),"1/3",IF(AND('1.telephely'!C55>0,'2.telephely'!C52>0,'3.telephely'!C52>0,'4.telephely'!C52>0,'5.telephely'!C52=0),"1/4",IF(AND('1.telephely'!C55>0,'2.telephely'!C52>0,'3.telephely'!C52>0,'4.telephely'!C52>0,'5.telephely'!C52>0),"1/5",0))))) -> 0 | J69: 1095 Budapest, Lechner Ödön fasor 9.
A71: telephely megnevezése: | C71: ='1.telephely'!B4 -> 0
A72: telephely és kockázatviselés helye: | E72: ='1.telephely'!F5 -> 0 | F72: ='1.telephely'!F6 -> 0
A73: tevékenység kódja és megnevezése: | E73: =Tarifa!P3 -> 310 | F73: =Tarifa!Q3 -> Bútorgyártás
A74: tárgyi eszközök értékelésének módja: | E74: =IF(Tarifa!AB75=1,"Új értéken","Valós értéken") -> Valós értéken | F74: éves árbevétel: | H74: ='1.telephely'!B10 -> 0 | I74: alkalmazottak száma: | K74: ='1.telephely'!B11 -> 0
A75: alapbiztosítás - tűz és elemi károk, biztosított épületek üvegkárai
A76: biztosított vagyontárgyak, biztosítási összeg | G76: Kockázati osztály: | I76: ='1.telephely'!F24 -> 5
A77: épület, építmény: | D77: ='1.telephely'!B19 -> 0 | E77: saját készletek: | F77: ='1.telephely'!B21 -> 0 | G77: idegen készletek: | I77: ='1.telephely'!B22 -> 0 | J77: készpénz: | K77: ='1.telephely'!B23 -> 0
A78: egyéb tárgyi eszközök: | D78: ='1.telephely'!B20 -> 0 | E78: összesen | F78: ='1.telephely'!B24 -> 0 | J78: díj: | K78: ='1.telephely'!C24 -> 0
A79: kiegészítő biztosítások
A80: Betöréses lopás és rablás biztosítás | E80: Vidéki kedvezmény: | G80: ='1.telephely'!E26 -> - | I80: Kockázati osztály: | K80: ='1.telephely'!F26 -> 2
A81: egyéb tárgyi eszközök: | C81: =IF('1.telephely'!E20=FALSE," ",'1.telephely'!B20) ->  | E81: készletek (saját + idegen): | G81: =IF('1.telephely'!E21=FALSE," ",SUM('1.telephely'!B21,'1.telephely'!B22)) ->  | I81: készpénz: | J81: =IF('1.telephely'!E23=FALSE," ",'1.telephely'!B23) -> 
J82: díj: | K82: =IF('1.telephely'!C26>0,'1.telephely'!C26,"Nem biztosított") -> Nem biztosított
A83: Irodai és kereskedelmi elektronikus berendezések, eszközök biztosítása
A84: biztosítási összeg: | D84: =IF('1.telephely'!E28=FALSE," ",'1.telephely'!B28) ->  | J84: díj: | K84: =IF('1.telephely'!C28>0,'1.telephely'!C28,"Nem biztosított") -> Nem biztosított
A85: Üzemszünet biztosítás | G85: Kockázati osztály: | I85: ='1.telephely'!F30 -> 5
A86: éves árbevétel: | D86: ='1.telephely'!B10 -> 0 | J86: díj: | K86: =IF('1.telephely'!C30>0,'1.telephely'!C30,"Nem biztosított") -> Nem biztosított
A87: Szállítmány biztosítás
A88: biztosítási összeg: | D88: =IF('1.telephely'!E32=FALSE," ",'1.telephely'!B32) ->  | J88: díj: | K88: =IF('1.telephely'!C32>0,'1.telephely'!C32,"Nem biztosított") -> Nem biztosított
A89: Vakolat károk biztosítása
A90: biztosítási összeg: | D90: =IF('1.telephely'!E34=FALSE," ",'1.telephely'!B19) ->  | J90: díj: | K90: =IF('1.telephely'!C34>0,'1.telephely'!C34,"Nem biztosított") -> Nem biztosított
A91: Tetőbeázási károk biztosítása
A92: biztosítási összeg: | D92: =IF('1.telephely'!E36=FALSE," ",'1.telephely'!B19) ->  | J92: díj: | K92: =IF('1.telephely'!C36>0,'1.telephely'!C36,"Nem biztosított") -> Nem biztosított
A93: Vandalizmus károk biztosítása
A94: biztosítási összeg: | D94: =IF('1.telephely'!E38=FALSE," ",'1.telephely'!B38) ->  | J94: díj: | K94: =IF('1.telephely'!C38>0,'1.telephely'!C38,"Nem biztosított") -> Nem biztosított
A95: Különleges üvegek üvegtörés biztosítása
A96: biztosítási összeg: | D96: =IF('1.telephely'!E40=FALSE," ",'1.telephely'!B40) ->  | J96: díj: | K96: =IF('1.telephely'!C40>0,'1.telephely'!C40,"Nem biztosított") -> Nem biztosított
A97: Általános és épülethasználói felelősségbiztosítás | G97: Kockázati osztály: | I97: ='1.telephely'!F42 -> 2
A98: alkalmazottak száma (fő): | C98: ='1.telephely'!B11 -> 0 | E98: Kártérítési limit: | G98: =IF('1.telephely'!E42=FALSE," ",Tarifa!S26) ->  | J98: díj: | K98: =IF('1.telephely'!C42>0,'1.telephely'!C42,"Nem biztosított") -> Nem biztosított
A99: Tanuló baleseti és felelősségbiztosítás | E99: Kockázati osztály (általános): | G99: ='1.telephely'!F43 -> 2 | H99: Kockázati osztály (munkáltatói): | K99: ='1.telephely'!G43 -> 4
A100: tanulók létszáma (fő): | C100: ='1.telephely'!B43 -> 0 | E100: Kártérítési limit: | G100: =IF('1.telephely'!E43=FALSE," ","5 millió Ft") ->  | J100: díj: | K100: =IF('1.telephely'!C43>0,'1.telephely'!C43,"Nem biztosított") -> Nem biztosított
A101: Munkáltatói felelősségbiztosítás | G101: Kockázati osztály: | I101: ='1.telephely'!F44 -> 4
A102: alkalmazottak száma (fő): | C102: ='1.telephely'!B11 -> 0 | E102: Kártérítési limit: | G102: =IF('1.telephely'!E44=FALSE," ",Tarifa!S37) ->  | J102: díj: | K102: =IF('1.telephely'!C44>0,'1.telephely'!C44,"Nem biztosított") -> Nem biztosított
A103: Termékfelelősség biztosítás | G103: Kockázati osztály: | I103: ='1.telephely'!F45 -> 4
A104: éves forgalom: | D104: ='1.telephely'!B12 -> 0 | E104: Kártérítési limit: | G104: =IF('1.telephely'!E45=FALSE," ",Tarifa!S48) ->  | J104: díj: | K104: =IF('1.telephely'!C45>0,'1.telephely'!C45,"Nem biztosított") -> Nem biztosított
A105: Bérlői felelősségbiztosítás | G105: Kockázati osztály: | I105: ='1.telephely'!F46 -> 2
A106: éves bérleti díj: | D106: ='1.telephely'!B13 -> 0 | E106: Kártérítési limit: | G106: =IF('1.telephely'!E46=FALSE," ",Tarifa!S60) ->  | J106: díj: | K106: =IF('1.telephely'!C46>0,'1.telephely'!C46,"Nem biztosított") -> Nem biztosított
A107: Szolgáltatói felelősségbiztosítás | G107: Kockázati osztály: | I107: ='1.telephely'!F47 -> 1
A108: éves forgalom: | D108: ='1.telephely'!B12 -> 0 | E108: Kártérítési limit: | G108: =IF('1.telephely'!E47=FALSE," ",Tarifa!S72) ->  | J108: díj: | K108: =IF('1.telephely'!C47>0,'1.telephely'!C47,"Nem biztosított") -> Nem biztosított
A109: Szálloda üzemeltetői, szállásadói felelősségbiztosítása
E110: Kártérítési limit: | G110: =IF('1.telephely'!E48=FALSE," ",Tarifa!AA62) ->  | J110: díj: | K110: =IF('1.telephely'!C48>0,'1.telephely'!C48,"Nem biztosított") -> Nem biztosított
A111: Gépjárműjavítók felelősségbiztosítása
A112: éves forgalom: | D112: ='1.telephely'!B12 -> 0 | E112: Kártérítési limit: | G112: =IF('1.telephely'!E49=FALSE," ",Tarifa!AA53) ->  | J112: díj: | K112: =IF('1.telephely'!C49>0,'1.telephely'!C49,"Nem biztosított") -> Nem biztosított
A113: Gépjármű-eredetiségvizsgálatot végzők felelősségbiztosítása
E114: Kártérítési limit: | G114: =IF('1.telephely'!E50=FALSE," ","5 millió Ft") ->  | J114: díj: | K114: =IF('1.telephely'!C50>0,'1.telephely'!C50,"Nem biztosított") -> Nem biztosított
A115: Szolgáltatás tárgyában okozott károk biztosítása
E116: Kártérítési limit: | G116: =IF('1.telephely'!E51=FALSE," ","5 millió Ft") ->  | J116: díj: | K116: =IF('1.telephely'!C51>0,'1.telephely'!C51,"Nem biztosított") -> Nem biztosított
A117: Bérbeadói felelősségbiztosítás
A118: bérbeadásból származó forgalom: | D118: ='1.telephely'!B14 -> 0 | E118: Kártérítési limit: | G118: =IF('1.telephely'!E52=FALSE," ",Tarifa!S84) ->  | J118: díj: | K118: =IF('1.telephely'!C52>0,'1.telephely'!C52,"Nem biztosított") -> Nem biztosított
A119: Környezetszennyezési felelősségbiztosítás
A120: éves forgalom: | D120: ='1.telephely'!B12 -> 0 | E120: Kártérítési limit: | G120: =IF('1.telephely'!E53=FALSE," ",Tarifa!S96) ->  | J120: díj: | K120: =IF('1.telephely'!C53>0,'1.telephely'!C53,"Nem biztosított") -> Nem biztosított
F122: éves biztosítási díj a 1. telephelyre: | K122: ='1.telephely'!C55 -> 0
A124: Kelt: | H124: Szerződő (szervezet képviseletére jogosult) /
H125: Biztosított aláírása
A131: telephelyi adatközlő és díjszámítás K&H vállalkozói biztosításhoz | J131: K&H Biztosító Zrt.
C132: adatközlő sorszáma | E132: =IF(AND('1.telephely'!C55>0,'2.telephely'!C52>0,'3.telephely'!C52=0,'4.telephely'!C52=0,'5.telephely'!C52=0),"2/2",IF(AND('1.telephely'!C55>0,'2.telephely'!C52>0,'3.telephely'!C52>0,'4.telephely'!C52=0,'5.telephely'!C52=0),"2/3",IF(AND('1.telephely'!C55>0,'2.telephely'!C52>0,'3.telephely'!C52>0,'4.telephely'!C52>0,'5.telephely'!C52=0),"2/4",IF(AND('1.telephely'!C55>0,'2.telephely'!C52>0,'3.telephely'!C52>0,'4.telephely'!C52>0,'5.telephely'!C52>0),"2/5",0)))) -> 0 | J132: 1095 Budapest, Lechner Ödön fasor 9.
A134: telephely megnevezése: | C134: ='2.telephely'!$B$1 -> 0
A135: telephely és kockázatviselés helye: | E135: ='2.telephely'!$F$2 -> 0 | F135: ='2.telephely'!F3 -> 0
A136: tevékenység kódja és megnevezése: | E136: =Tarifa!P4 -> 477813 | F136: =Tarifa!Q4 -> Ajándéktárgy-kiskereskedelem
A137: tárgyi eszközök értékelésének módja: | E137: =IF(Tarifa!AB76=1,"Új értéken","Valós értéken") -> Új értéken | F137: éves árbevétel: | H137: ='2.telephely'!$B$7 -> 0 | I137: alkalmazottak száma: | K137: ='2.telephely'!$B$8 -> 0
A138: alapbiztosítás - tűz és elemi károk, biztosított épületek üvegkárai
A139: biztosított vagyontárgyak, biztosítási összeg | G139: Kockázati osztály: | I139: ='2.telephely'!$F$21 -> 3
A140: épület, építmény: | D140: ='2.telephely'!$B$16 -> 0 | E140: saját készletek: | F140: ='2.telephely'!$B$18 -> 0 | G140: idegen készletek: | I140: ='2.telephely'!$B$19 -> 0 | J140: készpénz: | K140: ='2.telephely'!$B$20 -> 0
A141: egyéb tárgyi eszközök: | D141: ='2.telephely'!$B$17 -> 0 | E141: összesen | F141: ='2.telephely'!$B$21 -> 0 | J141: díj: | K141: ='2.telephely'!$C$21 -> 0
A142: kiegészítő biztosítások
A143: Betöréses lopás és rablás biztosítás | E143: Vidéki kedvezmény: | G143: ='2.telephely'!E23 -> - | I143: Kockázati osztály: | K143: ='2.telephely'!$F$23 -> 2
A144: egyéb tárgyi eszközök: | D144: =IF('2.telephely'!$E$17=FALSE," ",'2.telephely'!$B$17) ->  | E144: készletek (saját + idegen): | G144: =IF('2.telephely'!$E$18=FALSE," ",'2.telephely'!$B$18+'2.telephely'!$B$19) ->  | I144: készpénz: | J144: =IF('2.telephely'!E20=FALSE," ",'2.telephely'!$B$20) -> 
J145: díj: | K145: =IF('2.telephely'!$C$23>0,'2.telephely'!$C$23,"Nem biztosított") -> Nem biztosított
A146: Irodai és kereskedelmi elektronikus berendezések, eszközök biztosítása
A147: biztosítási összeg: | D147: =IF('2.telephely'!$E$25=FALSE," ",'2.telephely'!$B$25) ->  | J147: díj: | K147: =IF('2.telephely'!$C$25>0,'2.telephely'!$C$25,"Nem biztosított") -> Nem biztosított
A148: Üzemszünet biztosítás | G148: Kockázati osztály: | I148: ='2.telephely'!$F$27 -> 2
A149: éves árbevétel: | D149: ='2.telephely'!$B$7 -> 0 | J149: díj: | K149: =IF('2.telephely'!$C$27>0,'2.telephely'!$C$27,"Nem biztosított") -> Nem biztosított
A150: Szállítmány biztosítás
A151: biztosítási összeg: | D151: =IF('2.telephely'!$E$29=FALSE," ",'2.telephely'!$B$29) ->  | J151: díj: | K151: =IF('2.telephely'!$C$29>0,'2.telephely'!$C$29,"Nem biztosított") -> Nem biztosított
A152: Vakolat károk biztosítása
A153: biztosítási összeg: | D153: =IF('2.telephely'!$E$31=FALSE," ",'2.telephely'!$B$16) ->  | J153: díj: | K153: =IF('2.telephely'!$C$31>0,'2.telephely'!$C$31,"Nem biztosított") -> Nem biztosított
A154: Tetőbeázási károk biztosítása
A155: biztosítási összeg: | D155: =IF('2.telephely'!$E$33=FALSE," ",'2.telephely'!$B$16) ->  | J155: díj: | K155: =IF('2.telephely'!$C$33>0,'2.telephely'!$C$33,"Nem biztosított") -> Nem biztosított
A156: Vandalizmus károk biztosítása
A157: biztosítási összeg: | D157: =IF('2.telephely'!$E$35=FALSE," ",'2.telephely'!$B$35) ->  | J157: díj: | K157: =IF('2.telephely'!$C$35>0,'2.telephely'!$C$35,"Nembiztosított") -> Nembiztosított
A158: Különleges üvegek üvegtörés biztosítása
A159: biztosítási összeg: | D159: =IF('2.telephely'!$E$37=FALSE," ",'2.telephely'!$B$37) ->  | J159: díj: | K159: =IF('2.telephely'!$C$37>0,'2.telephely'!$C$37,"Nem biztosított") -> Nem biztosított
A160: Általános és épülethasználói felelősségbiztosítás | G160: Kockázati osztály: | I160: ='2.telephely'!$F$39 -> 3
A161: alkalmazottak száma (fő): | C161: ='2.telephely'!$B$8 -> 0 | E161: Kártérítési limit: | G161: =IF('2.telephely'!$E$39=FALSE," ",Tarifa!T26) ->  | J161: díj: | K161: =IF('2.telephely'!$C$39>0,'2.telephely'!$C$39,"Nem biztosított") -> Nem biztosított
A162: Tanuló baleseti és felelősségbiztosítás | E162: Kockázati osztály (általános): | G162: ='2.telephely'!$F$40 -> 3 | H162: Kockázati osztály (munkáltatói): | K162: ='2.telephely'!$G$40 -> 2
A163: tanulók létszáma (fő): | C163: ='2.telephely'!$B$40 -> 0 | E163: Kártérítési limit: | G163: =IF('2.telephely'!$E$40=FALSE," ","5 millió Ft") ->  | J163: díj: | K163: =IF('2.telephely'!$C$40>0,'2.telephely'!$C$40,"Nem biztosított") -> Nem biztosított
A164: Munkáltatói felelősségbiztosítás | G164: Kockázati osztály: | I164: ='2.telephely'!$F$41 -> 2
A165: alkalmazottak száma (fő): | C165: ='2.telephely'!$B$8 -> 0 | E165: Kártérítési limit: | G165: =IF('2.telephely'!$E$41=FALSE," ",Tarifa!T37) ->  | J165: díj: | K165: =IF('2.telephely'!$C$41>0,'2.telephely'!$C$41,"Nem biztosított") -> Nem biztosított
A166: Termékfelelősség biztosítás | G166: Kockázati osztály: | I166: ='2.telephely'!$F$42 -> 3
A167: éves forgalom: | D167: ='2.telephely'!$B$9 -> 0 | E167: Kártérítési limit: | G167: =IF('2.telephely'!$E$42=FALSE," ",Tarifa!T48) ->  | J167: díj: | K167: =IF('2.telephely'!$C$42>0,'2.telephely'!$C$42,"Nem biztosított") -> Nem biztosított
A168: Bérlői felelősségbiztosítás | G168: Kockázati osztály: | I168: ='2.telephely'!$F$43 -> 3
A169: éves bérleti díj: | D169: ='2.telephely'!$B$10 -> 0 | E169: Kártérítési limit: | G169: =IF('2.telephely'!$E$43=FALSE," ",Tarifa!T60) ->  | J169: díj: | K169: =IF('2.telephely'!$C$43>0,'2.telephely'!$C$43,"Nem biztosított") -> Nem biztosított
A170: Szolgáltatói felelősségbiztosítás | G170: Kockázati osztály: | I170: ='2.telephely'!$F$44 -> 0
A171: éves forgalom: | D171: ='2.telephely'!$B$9 -> 0 | E171: Kártérítési limit: | G171: =IF('2.telephely'!$E$44=FALSE," ",Tarifa!T72) ->  | J171: díj: | K171: =IF('2.telephely'!$C$44>0,'2.telephely'!$C$44,"Nem biztosított") -> Nem biztosított
A172: Szálloda üzemeltetői, szállásadói felelősségbiztosítása
E173: Kártérítési limit: | G173: =IF('2.telephely'!$E$45=FALSE," ",Tarifa!AB62) ->  | J173: díj: | K173: =IF('2.telephely'!$C$45>0,'2.telephely'!$C$45,"Nem biztosított") -> Nem biztosított
A174: Gépjárműjavítók felelősségbiztosítása
A175: éves forgalom: | D175: ='2.telephely'!$B$9 -> 0 | E175: Kártérítési limit: | G175: =IF('2.telephely'!$E$46=FALSE," ",Tarifa!AB53) ->  | J175: díj: | K175: =IF('2.telephely'!$C$46>0,'2.telephely'!$C$46,"Nem biztosított") -> Nem biztosított
A176: Gépjármű-eredetiségvizsgálatot végzők felelősségbiztosítása
E177: Kártérítési limit: | G177: =IF('2.telephely'!$E$47=FALSE," ","5 millió Ft") ->  | J177: díj: | K177: =IF('2.telephely'!$C$47>0,'2.telephely'!$C$47,"Nem biztosított") -> Nem biztosított
A178: Szolgáltatás tárgyában okozott károk biztosítása
E179: Kártérítési limit: | G179: =IF('2.telephely'!$E$48=FALSE," ","5 millió Ft") ->  | J179: díj: | K179: =IF('2.telephely'!$C$48>0,'2.telephely'!$C$48,"Nem biztosított") -> Nem biztosított
A180: Bérbeadói felelősségbiztosítás
A181: bérbeadásból származó forgalom: | D181: ='2.telephely'!$B$11 -> 0 | E181: Kártérítési limit: | G181: =IF('2.telephely'!$E$49=FALSE," ",Tarifa!T84) ->  | J181: díj: | K181: =IF('2.telephely'!$C$49>0,'2.telephely'!$C$49,"Nem biztosított") -> Nem biztosított
A182: Környezetszennyezési felelősségbiztosítás
A183: éves forgalom: | D183: ='2.telephely'!$B$9 -> 0 | E183: Kártérítési limit: | G183: =IF('2.telephely'!$E$50=FALSE," ",Tarifa!T96) ->  | J183: díj: | K183: =IF('2.telephely'!$C$50>0,'2.telephely'!$C$50,"Nem biztosított") -> Nem biztosított
F187: éves biztosítási díj a 2. telephelyre: | K187: ='2.telephely'!$C$52 -> 0
A191: Kelt: | H191: Szerződő (szervezet képviseletére jogosult) /
H192: Biztosított aláírása
A197: telephelyi adatközlő és díjszámítás K&H vállalkozói biztosításhoz | J197: K&H Biztosító Zrt.
C198: adatközlő sorszáma | E198: =IF(AND('1.telephely'!C55>0,'2.telephely'!C52>0,'3.telephely'!C52>0,'4.telephely'!C52=0,'5.telephely'!C52=0),"3/3",IF(AND('1.telephely'!C55>0,'2.telephely'!C52>0,'3.telephely'!C52>0,'4.telephely'!C52>0,'5.telephely'!C52=0),"3/4",IF(AND('1.telephely'!C55>0,'2.telephely'!C52>0,'3.telephely'!C52>0,'4.telephely'!C52>0,'5.telephely'!C52>0),"3/5",0))) -> 0 | J198: 1095 Budapest, Lechner Ödön fasor 9.
A200: telephely megnevezése: | C200: ='3.telephely'!$B$1 -> 0
A201: telephely és kockázatviselés helye: | E201: ='3.telephely'!$F$2 -> 0 | F201: ='3.telephely'!$E$3:$F$3 -> 0
A202: tevékenység kódja és megnevezése: | E202: =Tarifa!P5 -> 182 | F202: =Tarifa!Q5 -> Egyéb sokszorosítás
A203: tárgyi eszközök értékelésének módja: | E203: =IF(Tarifa!AB77=1,"Új értéken","Valós értéken") -> Valós értéken | F203: éves árbevétel: | H203: ='3.telephely'!$B$7 -> 0 | I203: alkalmazottak száma: | K203: ='3.telephely'!$B$8 -> 0
A204: alapbiztosítás - tűz és elemi károk, biztosított épületek üvegkárai
A205: biztosított vagyontárgyak, biztosítási összeg | G205: Kockázati osztály: | I205: ='3.telephely'!$F$21 -> 3
A206: épület, építmény: | D206: ='3.telephely'!$B$16 -> 0 | E206: saját készletek: | F206: ='3.telephely'!$B$18 -> 0 | G206: idegen készletek: | I206: ='3.telephely'!$B$19 -> 0 | J206: készpénz: | K206: ='3.telephely'!$B$20 -> 0
A207: egyéb tárgyi eszközök: | D207: ='3.telephely'!$B$17 -> 0 | E207: összesen | F207: ='3.telephely'!$B$21 -> 0 | I207: díj: | J207: ='3.telephely'!$C$21 -> 0
A208: kiegészítő biztosítások
A209: Betöréses lopás és rablás biztosítás | E209: Vidéki kedvezmény: | G209: ='3.telephely'!$E$23 -> - | I209: Kockázati osztály: | K209: ='3.telephely'!$F$23 -> 1
A210: egyéb tárgyi eszközök: | C210: =IF('3.telephely'!$E$17=FALSE," ",'3.telephely'!$B$17) ->  | E210: készletek (saját + idegen): | G210: =IF('3.telephely'!$E$18=FALSE," ",'3.telephely'!$B$18+'3.telephely'!$B$19) ->  | I210: készpénz: | J210: =IF('3.telephely'!E20=FALSE," ",'3.telephely'!$B$20) -> 
J211: díj: | K211: =IF('3.telephely'!$C$23>0,'3.telephely'!$C$23,"Nem biztosított") -> Nem biztosított
A212: Irodai és kereskedelmi elektronikus berendezések, eszközök biztosítása
A213: biztosítási összeg: | D213: =IF('3.telephely'!$E$25=FALSE," ",'3.telephely'!$B$25) ->  | J213: díj: | K213: =IF('3.telephely'!$C$25>0,'3.telephely'!$C$25,"Nem biztosított") -> Nem biztosított
A214: Üzemszünet biztosítás | G214: Kockázati osztály: | I214: ='3.telephely'!$F$27 -> 3
A215: éves árbevétel: | D215: ='3.telephely'!$B$7 -> 0 | J215: díj: | K215: =IF('3.telephely'!$C$27>0,'3.telephely'!$C$27,"Nem biztosított") -> Nem biztosított
A216: Szállítmány biztosítás
A217: biztosítási összeg: | D217: =IF('3.telephely'!$E$29=FALSE," ",'3.telephely'!$B$29) ->  | J217: díj: | K217: =IF('3.telephely'!$C$29>0,'3.telephely'!$C$29,"Nem biztosított") -> Nem biztosított
A218: Vakolat károk biztosítása
A219: biztosítási összeg: | D219: =IF('3.telephely'!$E$31=FALSE," ",'3.telephely'!$B$16) ->  | J219: díj: | K219: =IF('3.telephely'!$C$31>0,'3.telephely'!$C$31,"Nem biztosított") -> Nem biztosított
A220: Tetőbeázási károk biztosítása
A221: biztosítási összeg: | D221: =IF('3.telephely'!$E$33=FALSE," ",'3.telephely'!$B$16) ->  | J221: díj: | K221: =IF('3.telephely'!$C$33>0,'3.telephely'!$C$33,"Nem biztosított") -> Nem biztosított
A222: Vandalizmus károk biztosítása
A223: biztosítási összeg: | D223: =IF('3.telephely'!$E$35=FALSE," ",'3.telephely'!$B$35) ->  | J223: díj: | K223: =IF('3.telephely'!$C$35>0,'3.telephely'!$C$35,"Nembiztosított") -> Nembiztosított
A224: Különleges üvegek üvegtörés biztosítása
A225: biztosítási összeg: | D225: =IF('3.telephely'!$E$37=FALSE," ",'3.telephely'!$B$37) ->  | J225: díj: | K225: =IF('3.telephely'!$C$37>0,'3.telephely'!$C$37,"Nem biztosított") -> Nem biztosított
A226: Általános és épülethasználói felelősségbiztosítás | G226: Kockázati osztály: | I226: ='3.telephely'!$F$39 -> 2
A227: alkalmazottak száma (fő): | C227: ='3.telephely'!$B$8 -> 0 | E227: Kártérítési limit: | G227: =IF('3.telephely'!$E$39=FALSE," ",Tarifa!U26) ->  | J227: díj: | K227: =IF('3.telephely'!$C$39>0,'3.telephely'!$C$39,"Nem biztosított") -> Nem biztosított
A228: Tanuló baleseti és felelősségbiztosítás | D228: Kockázati osztály (általános): | G228: ='3.telephely'!$F$40 -> 2 | H228: Kockázati osztály (munkáltatói): | K228: ='3.telephely'!$G$40 -> 2
A229: tanulók létszáma (fő): | C229: ='3.telephely'!$B$40 -> 0 | E229: Kártérítési limit: | G229: =IF('3.telephely'!$E$40=FALSE," ","5 millió Ft") ->  | J229: díj: | K229: =IF('3.telephely'!$C$40>0,'3.telephely'!$C$40,"Nem biztosított") -> Nem biztosított
A230: Munkáltatói felelősségbiztosítás | G230: Kockázati osztály: | I230: ='3.telephely'!$F$41 -> 2
A231: alkalmazottak száma (fő): | C231: ='3.telephely'!$B$8 -> 0 | E231: Kártérítési limit: | G231: =IF('3.telephely'!$E$41=FALSE," ",Tarifa!U37) ->  | J231: díj: | K231: =IF('3.telephely'!$C$41>0,'3.telephely'!$C$41,"Nem biztosított") -> Nem biztosított
A232: Termékfelelősség biztosítás | G232: Kockázati osztály: | I232: ='3.telephely'!$F$42 -> 2
A233: éves forgalom: | D233: ='3.telephely'!$B$9 -> 0 | E233: Kártérítési limit: | G233: =IF('3.telephely'!$E$42=FALSE," ",Tarifa!U48) ->  | J233: díj: | K233: =IF('3.telephely'!$C$42>0,'3.telephely'!$C$42,"Nem biztosított") -> Nem biztosított
A234: Bérlői felelősségbiztosítás | G234: Kockázati osztály: | I234: ='3.telephely'!$F$43 -> 2
A235: éves bérleti díj: | D235: ='3.telephely'!$B$10 -> 0 | E235: Kártérítési limit: | G235: =IF('3.telephely'!$E$43=FALSE," ",Tarifa!U60) ->  | J235: díj: | K235: =IF('3.telephely'!$C$43>0,'3.telephely'!$C$43,"Nem biztosított") -> Nem biztosított
A236: Szolgáltatói felelősségbiztosítás | G236: Kockázati osztály: | I236: ='3.telephely'!$F$44 -> 2
A237: éves forgalom: | D237: ='3.telephely'!$B$9 -> 0 | E237: Kártérítési limit: | G237: =IF('3.telephely'!$E$44=FALSE," ",Tarifa!U72) ->  | J237: díj: | K237: =IF('3.telephely'!$C$44>0,'3.telephely'!$C$44,"Nem biztosított") -> Nem biztosított
A238: Szálloda üzemeltetői, szállásadói felelősségbiztosítása
E239: Kártérítési limit: | G239: =IF('3.telephely'!$E$45=FALSE," ",Tarifa!AC62) ->  | J239: díj: | K239: =IF('3.telephely'!$C$45>0,'3.telephely'!$C$45,"Nem biztosított") -> Nem biztosított
A240: Gépjárműjavítók felelősségbiztosítása
... 163 more rows
